Workbook

Sheet MATRIZ DE INDICADORES
D2: MACROPROCESO ESTRATÉGICO | S2: CÓDIGO: ESGr027
D3: PROCESO GESTIÓN SISTEMAS INTEGRADOS - CALIDAD | S3: VERSIÓN: 8
D4: MATRIZ DE MEDICIÓN Y SEGUIMIENTO A LOS PROCESOS DE GESTIÓN | S4: VIGENCIA: 2023-07-28
S5: PÁGINA: 1 de 5
Q7: FECHA DE ACTUALIZACIÓN: | S7: AÑO | T7: MES | U7: DÍA
S8: 2023 | T8: 4 | U8: 25
B10: ALINEACIÓN DE LOS INDICADORES CON LOS DOCUMENTOS ESTRATÉGICOS Y LOS OBJETIVOS DE CALIDAD
B12: PROCESO GESTIÓN | C12: FRENTES DEL PLAN ESTRATÉGICO | D12: LINEAMIENTOS DE LA POLÍTICA DE CALIDAD | E12: OBJETIVOS DE CALIDAD | F12: OBJETIVO GENERAL DEL PROCESO | G12: OBJETIVOS ESPECÍFICOS | H12: NOMBRE INDICADOR | I12: FÓRMULA | J12: TIPO DE INDICADOR | K12: SEGUIMIENTO MEDICIÓN | L12: META | M12: ACTIVIDAD | N12: RESPONSABLE DE LA ACTIVIDAD | O12: ¿QUÉ RECURSOS SE REQUIEREN? | P12: FECHA EJECUCIÓN DE ACTIVIDADES | Q12: EVIDENCIA | R12: ¿CUÁNDO FINALIZARÁ? | S12: RESULTADO | T12: NIVEL OBTENIDO | U12: ACCESO
B13: GRADUADOS | C13: Frente Estratégico I: Campo Multidimensional de Aprendizaje (CMA) | D13: Se legitima como una organización social del conocimiento y el aprendizaje, que se compromete con el pensamiento basado en riesgos y el mejoramiento continuo, mediante buenas prácticas administrativas y académicas en busca de la acreditación de programas y la acreditación institucional | E13: 2. Lograr la acreditación de programas y la acreditación institucional de acuerdo a la planificación de las metas institucionales resultantes de los ejercicios de autoevaluación y acreditación. A su vez se relacionan todos los requisitos. | F13: Planear, promover y ejecutar los lineamientos establecidos en el Acuerdo 007 del 21 de mayo de 2020 por el cual se adopta la política de graduados de la Universidad de Cundinamarca. Con el fin de Fortalecer la identidad del graduado de la UCUNDINAMARCA promoviendo la participación en los procesos institucionales e identificar el impacto de su desempeño profesional para la transformación de la sociedad y para el mejoramiento de los programas académicos. | G13: Lograr un nivel de satisfacción de los graduados del 60%, en la participación de los mismos en los eventos realizados por la Universidad durante la vigencia 2023. | H13: Satisfacción de Graduados | I13: Número de graduados satisfechos *100 / Número de graduados que participan en eventos | J13: Eficacia | K13: Semestral | L13: 0.6 | M13: Jornadas y talleres de formación para tarjeta profesional | N13: Graduados | O13: Tecnológicos | P13: Febrero 2023 Marzo 2023 | Q13: Listados de asistencia Registro fotográfico | R13: Diciembre 2023 | S13: ='MGD-1'!E49 -> 0.516 | T13: BUENO | U13: MGD-1
M14: 1° feria virtual laboral Ucundinamarca | N14: Graduados | O14: Tecnológicos | P14: 2021-03-01 | Q14: Listados de asistencia Registro fotográfico
M15: Reunión y socialización de política de graduados Encuentro de graduandos | N15: Graduados | O15: Financiero Planta Física - todas las sedes | P15: Marzo 2023 Septiembre 2023 | Q15: Asistencia Registro Fotográfico
M16: Conversatorio con graduados de ingeniería de sistemas Fusagasugá | N16: Graduados - Programa de ingeniería | O16: Espacios acade4micos universidad de Cundinamarca sede Fusagasugá Tecnológicos | P16: 2023-05-01 | Q16: Listados de asistencia Registro fotográfico
M17: contratar ingeniero de sistemas para el mejoramiento del sistema de información de graduados | N17: Graduados - Talento Humano | O17: Financiero | P17: 2023-08-01 | Q17: Contrato
M18: Difusión de eventos | N18: Graduados - Comunicaciones | O18: Redes sociales Correos masivos Impresos | P18: Vigencia 2023 | Q18: Correos electrónico
M19: Ejecutar el V encuentro deportivo y cultural de graduados | N19: Graduados - Bienestar Universitario | O19: Financiero Planta Física Universidad de Cundinamarca sedes Facatativá, Ubaté, Fusagasugá, Girardot | P19: Agosto 2023 Noviembre 2023 | Q19: Asistencia Registro Fotográfico
M20: Ejecutar 3 talleres de empleabilidad y clínica de hoja de vida | N20: Graduados | O20: Financiero Tecnológico | P20: 2023-08-01 | Q20: Asistencia Registro Fotográfico Contrato
M21: Ejecutar el IV congreso de graduados Cundinamarca - Emprendimiento e Innovación | N21: Graduados | O21: Financiero Planta Física Universidad de Cundinamarca sede Chía | P21: 2023-10-28 | Q21: Asistencia Registro Fotográfico
M22: Gestionar ofertas laborales de las empresas que contactan a la Universidad. | N22: Graduados | O22: Tecnológicos | P22: Vigencia 2023 | Q22: Correos electrónico
M23: Medir el indicador | N23: Graduados | O23: Base de datos | P23: Julio 2023 Diciembre 2023 | Q23: Matriz del indicador
M24: Implementar acciones según los resultados | N24: Graduados | O24: N/A | P24: 2023-12-01 | Q24: Ficha técnica del indicador
C25: Frente Estratégico III: Cultura Translocal Transmoderna | G25: Alcanzar una participación de los graduados en los eventos institucionales del 60% de los invitados durante la vigencia 2023. | H25: Participación de los Graduados en los eventos institucionales | I25: Número de graduados vinculados a la dinámica institucional *100 / Número de graduados esperados para la vigencia 2021 (5.000) | J25: Eficacia | K25: Semestral | L25: 0.6 | M25: contratar ingeniero de sistemas para el mejoramiento del sistema de información de graduados | N25: Graduados - Talento Humano | O25: Financiero | P25: 2023-08-01 | Q25: Contrato | R25: Diciembre 2023 | S25: ='MGD-2'!E49 -> 0.516 | T25: BUENO | U25: MGD-2
M26: Difusión de eventos | N26: Graduados - Comunicaciones | O26: Redes sociales Correos masivos Impresos | P26: Vigencia 2023 | Q26: Correos electrónico
M27: boletín trimestral de graduados | N27: Graduados - Comunicaciones | O27: Redes sociales Correos masivos | P27: Marzo 2023 Junio 2023 Octubre 2023 Diciembre 2023 | Q27: Correos electrónico
M28: Periódico de graduados | N28: Graduados - Comunicaciones | O28: Tecnológicos Micrositio del proceso | P28: Junio 2023 Noviembre 2023 | Q28: Pagina web
M29: Difundir los servicios prestados por la oficina | N29: Graduados - Comunicaciones | O29: Redes sociales Correos masivos Impresos Planta física en todas las sedes | P29: Vigencia 2023 | Q29: Piezas publicitarias Registros fotográficos
M30: Medir el indicador | N30: Graduados | O30: Base de datos | P30: 2023-07-01 | Q30: Matriz del indicador
M31: Implementar acciones según los resultados | N31: Graduados | O31: N/A | P31: 2023-12-01 | Q31: Ficha técnica del indicador
C32: Frente Estratégico III: Cultura Translocal Transmoderna | G32: Generar procesos de formación continuada, desarrollo profesional por lo menos al 20% de los graduados de la universidad que se inscriben a los procesos de formación para la vida. | H32: Eficacia en la certificación de cursos | I32: Número de certificados *100 / Número de inscritos | J32: Eficacia | K32: Semestral | L32: 0.2 | M32: Ejecutar el cronograma de cursos de formación. | N32: Graduados - OEVA - Talento Humano | O32: Humanos Tecnológicos | P32: Vigencia 2023 | Q32: Power BI | R32: Diciembre 2023 | S32: ='MGD-4'!E49 -> 0.2727272727 | T32: EXCELENTE | U32: MGD-4
M33: Promoción y difusión de cursos. | N33: Graduados - Comunicaciones | O33: Redes sociales Correos masivos Impresos | P33: Vigencia 2023 | Q33: Correos electrónico
M34: Seguimiento al proceso de formación. | N34: Graduados - OEVA | O34: Corres | P34: Vigencia 2023 | Q34: Correos electrónico
M35: Medir el indicador | N35: Graduados | O35: Base de datos | P35: 2023-07-01 | Q35: Matriz del indicador
M36: Implementar acciones según los resultados | N36: Graduados | O36: N/A | P36: 2023-12-01 | Q36: Ficha técnica del indicador
B93: Diagonal 18 No. 20-29 Fusagasugá – Cundinamarca Teléfono (601) 8281483 Línea Gratuita 018000180414 www.ucundinamarca.edu.co E-mail: info@ucundinamarca.edu.co NIT: 890.680.062-2
B94: Documento controlado por el Sistema de Gestión de la Calidad Asegúrese que corresponde a la última versión consultando el Portal Institucional

Sheet ATH-1 (hidden)
B2: REGRESAR
E5: MACROPROCESO ESTRATÉGICO | M5: CÓDIGO: ESGr027
E6: PROCESO GESTIÓN SISTEMAS INTEGRADOS | M6: VERSIÓN: 7
E7: MATRIZ DE MEDICIÓN Y SEGUIMIENTO A LOS PROCESOS DE GESTIÓN | M7: VIGENCIA: 2020-03-20
M8: PÁGINA: 1 de 1
C10: FICHA DE INDICADOR
C12: MACROPROCESO | E12: Apoyo | I12: NOMBRE DEL INDICADOR | K12: Cobertura de las capacitaciones
C13: PROCESO GESTIÓN | E13: Talento Humano
C14: RESPONSABLE DE MEDICIÓN | E14: Director(a) de Talento Humano
C16: 1. COMPORTAMIENTO DE INDICADOR
C17: CLASIFICACIÓN DE LA MEDICIÓN | E17: 1 | H17: TIPO DE INDICADOR | J17: Eficiencia | L17: META | N17: 0.8
C18: FORMULA | E18: NUMERADOR | G18: Número de personas capacitadas*100 | L18: UNIDAD DE MEDIDA | N18: Porcentual
E19: DENOMINADOR | G19: Número total de empleados
C20: TENDENCIA | E20: Positiva | H20: NIVEL DE SEGREGACIÓN * | J20: No Aplica | L20: ESCALA
L21: Deficiente | M21: Aceptable | N21: Bueno | O21: Excelente
L22: 0 - 50% | M22: 51% - 70% | N22: 71% - 80% | O22: 81% - 100%
C23: ORIGEN DE DATOS NUMERADOR | E23: Listado de Asistencia | H23: FRECUENCIA DE LA MEDICIÓN | J23: SEMESTRAL | L23: FRECUENCIA DE RESULTADO | N23: ANUAL
C24: ORIGEN DE DATOS DENOMINADOR | E24: Base de Empleados
C26: RESULTADOS
J27: ANÁLISIS DE DATOS
J28: "SEMESTRE I : Durante el primer semestre se adelanto, el proceso de contratación para ofrecer las capacitaciones a partir de Abril de la vigencia en curso. A corte del 30 de Junio del 2021, se han realizado 9 capacitaciones virtualmente (Cursos con el área de Educación Virtual y a Distancia), garantizando la participación de 132 personas. SEMESTRE II :
J34: ACCIÓN FORMULADA
J35: SEMESTRE I : Se programaran y se realizaran las capacitaciones restantes a partir del segundo semestre del año en curso, del total de las capacitaciones registradas en el Programa de Capacitación. SEMESTRE II :
J41: RESPONSABLE
J42: =E14 -> Director(a) de Talento Humano
C45: PERIODO DE EVALUACIÓN
C46: MES | D46: =IF(J23="MENSUAL","ENERO",IF(J23="TRIMESTRAL","MARZO",IF(J23="SEMESTRAL","JUNIO",IF(J23="ANUAL",YEAR(TODAY()),"")))) -> JUNIO | E46: =IF(J23="MENSUAL","FEBRERO",IF(J23="TRIMESTRAL","JUNIO",IF(J23="SEMESTRAL","DICIEMBRE",""))) -> DICIEMBRE | F46: =IF(J23="MENSUAL","MARZO",IF(J23="TRIMESTRAL","SEPTIEMBRE","")) ->  | G46: =IF(J23="MENSUAL","ABRIL",IF(J23="TRIMESTRAL","DICIEMBRE","")) ->  | H46: =IF(J23="MENSUAL","MAYO","") ->  | I46: =IF(J23="MENSUAL","JUNIO","") ->  | J46: =IF(J23="MENSUAL","JULIO","") ->  | K46: =IF(J23="MENSUAL","AGOSTO","") ->  | L46: =IF(J23="MENSUAL","SEPTIEMBRE","") ->  | M46: =IF(J23="MENSUAL","OCTUBRE","") ->  | N46: =IF(J23="MENSUAL","NOVIEMBRE","") ->  | O46: =IF(J23="MENSUAL","DICIEMBRE","") -> 
C47: =G18 -> Número de personas capacitadas*100 | D47: 132
C48: =G19 -> Número total de empleados | D48: =123+312 -> 435
C49: VALOR | D49: =IFERROR(IF($E$17=1,D47/D48,IF($E$17=2,D47,"")),"") -> 0.3034482759 | E49: =IFERROR(IF($E$17=1,E47/E48,IF($E$17=2,E47,"")),"") -> 
C50: META PONDERADA | D50: =IF(AND(N23="ANUAL",J23="MENSUAL"),N17/12,IF(AND(N23="ANUAL",J23="TRIMESTRAL"),N17/4,IF(AND(N23="ANUAL",J23="SEMESTRAL"),N17/2,IF(AND(N23="ANUAL",J23="ANUAL"),N17,IF(AND(N23="SEMESTRAL",J23="MENSUAL"),N17/6,IF(AND(N23="SEMESTRAL",J23="TRIMESTRAL"),N17/2,IF(AND(N23="SEMESTRAL",J23="SEMESTRAL"),N17,IF(AND(N23="SEMESTRAL",J23="ANUAL"),"REVISAR FRECUENCIAS",IF(AND(N23="TRIMESTRAL",J23="MENSUAL"),N17/3,IF(AND(N23="TRIMESTRAL",J23="TRIMESTRAL"),N17,IF(AND(N23="TRIMESTRAL",J23="SEMESTRAL"),"REVISAR FRECUENCIAS",IF(AND(N23="TRIMESTRAL",J23="ANUAL"),"REVISAR FRECUENCIAS",IF(AND(N23="MENSUAL",J23="MENSUAL"),N17,IF(AND(N23="MENSUAL",J23="TRIMESTRAL"),"REVISAR FRECUENCIAS",IF(AND(N23="MENSUAL",J23="SEMESTRAL"),"REVISAR FRECUENCIAS",IF(AND(N23="MENSUAL",J23="ANUAL"),"REVISAR FRECUENCIAS","")))))))))))))))) -> 0.4 | E50: =IF(AND(N23="ANUAL",J23="MENSUAL"),N17/12+D50,IF(AND(N23="ANUAL",J23="TRIMESTRAL"),N17/4+D50,IF(AND(N23="ANUAL",J23="SEMESTRAL"),N17/2+D50,IF(AND(N23="SEMESTRAL",J23="MENSUAL"),N17/6+D50,IF(AND(N23="SEMESTRAL",J23="TRIMESTRAL"),N17/2+D50,IF(AND(N23="SEMESTRAL",J23="SEMESTRAL"),N17,IF(AND(N23="TRIMESTRAL",J23="MENSUAL"),N17/3+D50,IF(AND(N23="TRIMESTRAL",J23="TRIMESTRAL"),N17,IF(AND(N23="MENSUAL",J23="MENSUAL"),N17,""))))))))) -> 0.8 | F50: =IF(AND(N23="ANUAL",J23="MENSUAL"),N17/12+E50,IF(AND(N23="ANUAL",J23="TRIMESTRAL"),N17/4+E50,IF(AND(N23="SEMESTRAL",J23="MENSUAL"),N17/6+E50,IF(AND(N23="SEMESTRAL",J23="TRIMESTRAL"),N17/2,IF(AND(N23="TRIMESTRAL",J23="MENSUAL"),N17/3+E50,IF(AND(N23="TRIMESTRAL",J23="TRIMESTRAL"),N17,IF(AND(N23="MENSUAL",J23="MENSUAL"),N17,""))))))) ->  | G50: =IF(AND(N23="ANUAL",J23="MENSUAL"),N17/12+F50,IF(AND(N23="ANUAL",J23="TRIMESTRAL"),N17/4+F50,IF(AND(N23="SEMESTRAL",J23="MENSUAL"),N17/6+F50,IF(AND(N23="SEMESTRAL",J23="TRIMESTRAL"),N17/2+F50,IF(AND(N23="TRIMESTRAL",J23="MENSUAL"),N17/3,IF(AND(N23="TRIMESTRAL",J23="TRIMESTRAL"),N17,IF(AND(N23="MENSUAL",J23="MENSUAL"),N17,""))))))) ->  | H50: =IF(AND($N$23="ANUAL",$J$23="MENSUAL"),$N$17/12+G50,IF(AND(N23="SEMESTRAL",J23="MENSUAL"),N17/6+G50,IF(AND(N23="TRIMESTRAL",J23="MENSUAL"),N17/3+G50,IF(AND(N23="MENSUAL",J23="MENSUAL"),N17,"")))) ->  | I50: =IF(AND($N$23="ANUAL",$J$23="MENSUAL"),$N$17/12+H50,IF(AND(N23="SEMESTRAL",J23="MENSUAL"),N17/6+H50,IF(AND(N23="TRIMESTRAL",J23="MENSUAL"),N17/3+H50,IF(AND(N23="MENSUAL",J23="MENSUAL"),N17,"")))) ->  | J50: =IF(AND($N$23="ANUAL",$J$23="MENSUAL"),$N$17/12+I50,IF(AND(N23="SEMESTRAL",J23="MENSUAL"),N17/6,IF(AND(N23="TRIMESTRAL",J23="MENSUAL"),N17/3,IF(AND(N23="MENSUAL",J23="MENSUAL"),N17,"")))) ->  | K50: =IF(AND($N$23="ANUAL",$J$23="MENSUAL"),$N$17/12+J50,IF(AND(N23="SEMESTRAL",J23="MENSUAL"),N17/6+J50,IF(AND(N23="TRIMESTRAL",J23="MENSUAL"),N17/3+J50,IF(AND(N23="MENSUAL",J23="MENSUAL"),N17,"")))) ->  | L50: =IF(AND($N$23="ANUAL",$J$23="MENSUAL"),$N$17/12+K50,IF(AND(N23="SEMESTRAL",J23="MENSUAL"),N17/6+K50,IF(AND(N23="TRIMESTRAL",J23="MENSUAL"),N17/3+K50,IF(AND(N23="MENSUAL",J23="MENSUAL"),N17,"")))) ->  | M50: =IF(AND($N$23="ANUAL",$J$23="MENSUAL"),$N$17/12+L50,IF(AND(N23="SEMESTRAL",J23="MENSUAL"),N17/6+L50,IF(AND(N23="TRIMESTRAL",J23="MENSUAL"),N17/3,IF(AND(N23="MENSUAL",J23="MENSUAL"),N17,"")))) ->  | N50: =IF(AND($N$23="ANUAL",$J$23="MENSUAL"),$N$17/12+M50,IF(AND(N23="SEMESTRAL",J23="MENSUAL"),N17/6+M50,IF(AND(N23="TRIMESTRAL",J23="MENSUAL"),N17/3+M50,IF(AND(N23="MENSUAL",J23="MENSUAL"),N17,"")))) ->  | O50: =IF(AND($N$23="ANUAL",$J$23="MENSUAL"),$N$17/12+N50,IF(AND(N23="SEMESTRAL",J23="MENSUAL"),N17/6+N50,IF(AND(N23="TRIMESTRAL",J23="MENSUAL"),N17/3+N50,IF(AND(N23="MENSUAL",J23="MENSUAL"),N17,"")))) -> 
C52: NIVEL DE SEGREGACIÓN *
C53: UNIDAD SEGREGADA (Ej. Facultad, Programa Académico, Área) | G53: RESULTADO | K53: ANALISIS DE DATOS SEGREGADO
G72: Estratégico | J72: Eficacia
G73: Misional | J73: Eficiencia
G74: Apoyo | J74: Acreditación
G75: Seguimiento, Medición, Análisis y Evaluación | J75: Positiva
G76: Direccionamiento Estratégico | J76: Negativa
G77: Planeación Institucional | J77: Por Unidad Regional
G78: Proyectos Especiales y Relaciones Interinstitucionales | J78: Por Facultad
G79: Sistemas Integrados | J79: Por Programa Académico
G80: Autoevaluación y Acreditación | J80: Por área
G81: Comunicaciones | J81: Por Laboratorio
G82: Formación y Aprendizaje | J82: Otros
G83: Ciencia, Tecnología e Innovación | J83: No Aplica
G84: Interacción Social Universitaria
G85: Bienestar Universitario
G86: Admisiones y Registro
G87: Graduados
G88: Dialogando con el Mundo
G89: Talento Humano
G90: Jurídica
G91: Financiera
G92: Sistemas y Tecnología
G93: Bienes y Servicios
G94: Documental
G95: Apoyo Académico
G96: Control Interno
G97: Control Disciplinario
G98: Servicio de Atención al Ciudadano

Sheet ATH-2 (hidden)
B2: REGRESAR
E5: MACROPROCESO ESTRATÉGICO | M5: CÓDIGO: ESGr027
E6: PROCESO GESTIÓN SISTEMAS INTEGRADOS | M6: VERSIÓN: 7
E7: MATRIZ DE MEDICIÓN Y SEGUIMIENTO A LOS PROCESOS DE GESTIÓN | M7: VIGENCIA: 2020-03-20
M8: PÁGINA: 1 de 1
C10: FICHA DE INDICADOR
C12: MACROPROCESO | E12: Apoyo | I12: NOMBRE DEL INDICADOR | K12: Cobertura capacitaciones puesto de trabajo
C13: PROCESO GESTIÓN | E13: Talento Humano
C14: RESPONSABLE DE MEDICIÓN | E14: Director(a) de Talento Humano
C16: 1. COMPORTAMIENTO DE INDICADOR
C17: CLASIFICACIÓN DE LA MEDICIÓN | E17: 1 | H17: TIPO DE INDICADOR | J17: Eficiencia | L17: META | N17: 0.9
C18: FORMULA | E18: NUMERADOR | G18: Inducciones realizadas puesto de trabajo*100 | L18: UNIDAD DE MEDIDA | N18: Porcentual
E19: DENOMINADOR | G19: Numero de funcionarios vinculados en el periodo
C20: TENDENCIA | E20: Positiva | H20: NIVEL DE SEGREGACIÓN * | J20: No Aplica | L20: ESCALA
L21: Deficiente | M21: Aceptable | N21: Bueno | O21: Excelente
L22: 0 - 60% | M22: 61% - 80% | N22: 81% -90% | O22: 91% - 100%
C23: ORIGEN DE DATOS NUMERADOR | E23: Registros de asistencia, reporte generado por aplicativo | H23: FRECUENCIA DE LA MEDICIÓN | J23: SEMESTRAL | L23: FRECUENCIA DE RESULTADO | N23: SEMESTRAL
C24: ORIGEN DE DATOS DENOMINADOR | E24: Base de funcionarios contratados en el periodo
C26: RESULTADOS
J27: ANÁLISIS DE DATOS
J28: SEMESTRE I: "Como el indicador es de medición semestral, nos permitimos informar que el porcentaje a corte del II Trimestre es del 54.86%, contando con un total de personal de nuevo ingreso de 114, y un envío del formato de inducción al puesto de trabajo de 62, lo cual muestra un avance en la elaboración de este proceso, dando claridad que al contar con las alertas realizadas vía correo electrónico por parte del Proceso de Talento Humano, se ha tenido una respuesta poco favorable por parte de los jefes y directores de las áreas. Es de aclarar que, aunque se cuenta con las alertas vía correo electrónico a cada proceso, aun no se tiene la cultura de la realización de esta inducción, por lo cual no se ha logrado dar cumplimiento a la meta propuesta, para lo cual se formulara la acción necesaria para ello."
J34: ACCIÓN FORMULADA
J35: SEMESTRE I: "Envío de alertas por correo electrónico de la ejecución del proceso de inducción al puesto de trabajo. Para el siguiente semestre, se realizara la creación del formato virtualmente por medio de la plataforma FORMS, con esta estrategia se consigue que la mayor cantidad de personas nuevas puedan realizar el proceso de inducción al puesto de trabajo, dado que no se requerirá el lleno de formulario físico junto con firmas de las partes, sino solo el lleno del formulario por el personal nuevo y el jefe inmediato, para que conozcan el proceso de inducción al puesto de trabajo y tratar de general cultura de su importancia".
J41: RESPONSABLE
J42: =E14 -> Director(a) de Talento Humano
C45: PERIODO DE EVALUACIÓN
C46: MES | D46: =IF(J23="MENSUAL","ENERO",IF(J23="TRIMESTRAL","MARZO",IF(J23="SEMESTRAL","JUNIO",IF(J23="ANUAL",YEAR(TODAY()),"")))) -> JUNIO | E46: =IF(J23="MENSUAL","FEBRERO",IF(J23="TRIMESTRAL","JUNIO",IF(J23="SEMESTRAL","DICIEMBRE",""))) -> DICIEMBRE | F46: =IF(J23="MENSUAL","MARZO",IF(J23="TRIMESTRAL","SEPTIEMBRE","")) ->  | G46: =IF(J23="MENSUAL","ABRIL",IF(J23="TRIMESTRAL","DICIEMBRE","")) ->  | H46: =IF(J23="MENSUAL","MAYO","") ->  | I46: =IF(J23="MENSUAL","JUNIO","") ->  | J46: =IF(J23="MENSUAL","JULIO","") ->  | K46: =IF(J23="MENSUAL","AGOSTO","") ->  | L46: =IF(J23="MENSUAL","SEPTIEMBRE","") ->  | M46: =IF(J23="MENSUAL","OCTUBRE","") ->  | N46: =IF(J23="MENSUAL","NOVIEMBRE","") ->  | O46: =IF(J23="MENSUAL","DICIEMBRE","") -> 
C47: =G18 -> Inducciones realizadas puesto de trabajo*100 | D47: 62
C48: =G19 -> Numero de funcionarios vinculados en el periodo | D48: 114
C49: VALOR | D49: =IFERROR(IF($E$17=1,D47/D48,IF($E$17=2,D47,"")),"") -> 0.5438596491 | E49: =IFERROR(IF($E$17=1,E47/E48,IF($E$17=2,E47,"")),"") -> 
C50: META PONDERADA | D50: =IF(AND(N23="ANUAL",J23="MENSUAL"),N17/12,IF(AND(N23="ANUAL",J23="TRIMESTRAL"),N17/4,IF(AND(N23="ANUAL",J23="SEMESTRAL"),N17/2,IF(AND(N23="ANUAL",J23="ANUAL"),N17,IF(AND(N23="SEMESTRAL",J23="MENSUAL"),N17/6,IF(AND(N23="SEMESTRAL",J23="TRIMESTRAL"),N17/2,IF(AND(N23="SEMESTRAL",J23="SEMESTRAL"),N17,IF(AND(N23="SEMESTRAL",J23="ANUAL"),"REVISAR FRECUENCIAS",IF(AND(N23="TRIMESTRAL",J23="MENSUAL"),N17/3,IF(AND(N23="TRIMESTRAL",J23="TRIMESTRAL"),N17,IF(AND(N23="TRIMESTRAL",J23="SEMESTRAL"),"REVISAR FRECUENCIAS",IF(AND(N23="TRIMESTRAL",J23="ANUAL"),"REVISAR FRECUENCIAS",IF(AND(N23="MENSUAL",J23="MENSUAL"),N17,IF(AND(N23="MENSUAL",J23="TRIMESTRAL"),"REVISAR FRECUENCIAS",IF(AND(N23="MENSUAL",J23="SEMESTRAL"),"REVISAR FRECUENCIAS",IF(AND(N23="MENSUAL",J23="ANUAL"),"REVISAR FRECUENCIAS","")))))))))))))))) -> 0.9 | E50: =IF(AND(N23="ANUAL",J23="MENSUAL"),N17/12+D50,IF(AND(N23="ANUAL",J23="TRIMESTRAL"),N17/4+D50,IF(AND(N23="ANUAL",J23="SEMESTRAL"),N17/2+D50,IF(AND(N23="SEMESTRAL",J23="MENSUAL"),N17/6+D50,IF(AND(N23="SEMESTRAL",J23="TRIMESTRAL"),N17/2+D50,IF(AND(N23="SEMESTRAL",J23="SEMESTRAL"),N17,IF(AND(N23="TRIMESTRAL",J23="MENSUAL"),N17/3+D50,IF(AND(N23="TRIMESTRAL",J23="TRIMESTRAL"),N17,IF(AND(N23="MENSUAL",J23="MENSUAL"),N17,""))))))))) -> 0.9 | F50: =IF(AND(N23="ANUAL",J23="MENSUAL"),N17/12+E50,IF(AND(N23="ANUAL",J23="TRIMESTRAL"),N17/4+E50,IF(AND(N23="SEMESTRAL",J23="MENSUAL"),N17/6+E50,IF(AND(N23="SEMESTRAL",J23="TRIMESTRAL"),N17/2,IF(AND(N23="TRIMESTRAL",J23="MENSUAL"),N17/3+E50,IF(AND(N23="TRIMESTRAL",J23="TRIMESTRAL"),N17,IF(AND(N23="MENSUAL",J23="MENSUAL"),N17,""))))))) ->  | G50: =IF(AND(N23="ANUAL",J23="MENSUAL"),N17/12+F50,IF(AND(N23="ANUAL",J23="TRIMESTRAL"),N17/4+F50,IF(AND(N23="SEMESTRAL",J23="MENSUAL"),N17/6+F50,IF(AND(N23="SEMESTRAL",J23="TRIMESTRAL"),N17/2+F50,IF(AND(N23="TRIMESTRAL",J23="MENSUAL"),N17/3,IF(AND(N23="TRIMESTRAL",J23="TRIMESTRAL"),N17,IF(AND(N23="MENSUAL",J23="MENSUAL"),N17,""))))))) ->  | H50: =IF(AND($N$23="ANUAL",$J$23="MENSUAL"),$N$17/12+G50,IF(AND(N23="SEMESTRAL",J23="MENSUAL"),N17/6+G50,IF(AND(N23="TRIMESTRAL",J23="MENSUAL"),N17/3+G50,IF(AND(N23="MENSUAL",J23="MENSUAL"),N17,"")))) ->  | I50: =IF(AND($N$23="ANUAL",$J$23="MENSUAL"),$N$17/12+H50,IF(AND(N23="SEMESTRAL",J23="MENSUAL"),N17/6+H50,IF(AND(N23="TRIMESTRAL",J23="MENSUAL"),N17/3+H50,IF(AND(N23="MENSUAL",J23="MENSUAL"),N17,"")))) ->  | J50: =IF(AND($N$23="ANUAL",$J$23="MENSUAL"),$N$17/12+I50,IF(AND(N23="SEMESTRAL",J23="MENSUAL"),N17/6,IF(AND(N23="TRIMESTRAL",J23="MENSUAL"),N17/3,IF(AND(N23="MENSUAL",J23="MENSUAL"),N17,"")))) ->  | K50: =IF(AND($N$23="ANUAL",$J$23="MENSUAL"),$N$17/12+J50,IF(AND(N23="SEMESTRAL",J23="MENSUAL"),N17/6+J50,IF(AND(N23="TRIMESTRAL",J23="MENSUAL"),N17/3+J50,IF(AND(N23="MENSUAL",J23="MENSUAL"),N17,"")))) ->  | L50: =IF(AND($N$23="ANUAL",$J$23="MENSUAL"),$N$17/12+K50,IF(AND(N23="SEMESTRAL",J23="MENSUAL"),N17/6+K50,IF(AND(N23="TRIMESTRAL",J23="MENSUAL"),N17/3+K50,IF(AND(N23="MENSUAL",J23="MENSUAL"),N17,"")))) ->  | M50: =IF(AND($N$23="ANUAL",$J$23="MENSUAL"),$N$17/12+L50,IF(AND(N23="SEMESTRAL",J23="MENSUAL"),N17/6+L50,IF(AND(N23="TRIMESTRAL",J23="MENSUAL"),N17/3,IF(AND(N23="MENSUAL",J23="MENSUAL"),N17,"")))) ->  | N50: =IF(AND($N$23="ANUAL",$J$23="MENSUAL"),$N$17/12+M50,IF(AND(N23="SEMESTRAL",J23="MENSUAL"),N17/6+M50,IF(AND(N23="TRIMESTRAL",J23="MENSUAL"),N17/3+M50,IF(AND(N23="MENSUAL",J23="MENSUAL"),N17,"")))) ->  | O50: =IF(AND($N$23="ANUAL",$J$23="MENSUAL"),$N$17/12+N50,IF(AND(N23="SEMESTRAL",J23="MENSUAL"),N17/6+N50,IF(AND(N23="TRIMESTRAL",J23="MENSUAL"),N17/3+N50,IF(AND(N23="MENSUAL",J23="MENSUAL"),N17,"")))) -> 
C52: NIVEL DE SEGREGACIÓN *
C53: UNIDAD SEGREGADA (Ej. Facultad, Programa Académico, Área) | G53: RESULTADO | K53: ANALISIS DE DATOS SEGREGADO
G72: Estratégico | J72: Eficacia
G73: Misional | J73: Eficiencia
G74: Apoyo | J74: Acreditación
G75: Seguimiento, Medición, Análisis y Evaluación | J75: Positiva
G76: Direccionamiento Estratégico | J76: Negativa
G77: Planeación Institucional | J77: Por Unidad Regional
G78: Proyectos Especiales y Relaciones Interinstitucionales | J78: Por Facultad
G79: Sistemas Integrados | J79: Por Programa Académico
G80: Autoevaluación y Acreditación | J80: Por área
G81: Comunicaciones | J81: Por Laboratorio
G82: Formación y Aprendizaje | J82: Otros
G83: Ciencia, Tecnología e Innovación | J83: No Aplica
G84: Interacción Social Universitaria
G85: Bienestar Universitario
G86: Admisiones y Registro
G87: Graduados
G88: Dialogando con el Mundo
G89: Talento Humano
G90: Jurídica
G91: Financiera
G92: Sistemas y Tecnología
G93: Bienes y Servicios
G94: Documental
G95: Apoyo Académico
G96: Control Interno
G97: Control Disciplinario
G98: Servicio de Atención al Ciudadano

Sheet AFI-1 (hidden)
B2: REGRESAR
E5: MACROPROCESO ESTRATÉGICO | M5: CÓDIGO: ESGr027
E6: PROCESO GESTIÓN SISTEMAS INTEGRADOS | M6: VERSIÓN: 7
E7: MATRIZ DE MEDICIÓN Y SEGUIMIENTO A LOS PROCESOS DE GESTIÓN | M7: VIGENCIA: 2020-03-20
M8: PÁGINA: 1 de 1
C10: FICHA DE INDICADOR
C12: MACROPROCESO | E12: Apoyo | I12: NOMBRE DEL INDICADOR | K12: Oportunidad en pagos
C13: PROCESO GESTIÓN | E13: Financiera
C14: RESPONSABLE DE MEDICIÓN | E14: Director(a) Financiera
C16: 1. COMPORTAMIENTO DE INDICADOR
C17: CLASIFICACIÓN DE LA MEDICIÓN | E17: 1 | H17: TIPO DE INDICADOR | L17: META | N17: 0.95
C18: FORMULA | E18: NUMERADOR | G18: Total cuentas pagadas fecha establecida*100 | L18: UNIDAD DE MEDIDA | N18: Porcentual
E19: DENOMINADOR | G19: Total cuentas pagadas
C20: TENDENCIA | E20: Positiva | H20: NIVEL DE SEGREGACIÓN * | J20: No Aplica | L20: ESCALA
L21: Deficiente | M21: Aceptable | N21: Bueno | O21: Excelente
L22: 0 -70% | M22: 71% - 84% | N22: 85% - 95% | O22: 96% - 100%
C23: ORIGEN DE DATOS NUMERADOR | E23: Base de datos pagos | H23: FRECUENCIA DE LA MEDICIÓN | J23: TRIMESTRAL | L23: FRECUENCIA DE RESULTADO | N23: TRIMESTRAL
C24: ORIGEN DE DATOS DENOMINADOR | E24: Base de datos pagos
C26: RESULTADOS
J27: ANÁLISIS DE DATOS
J28: TRIMESTRE I: En comparación al primer trimestre de la vigencia 2020, subimos el indicador de oportunidad de pago en un 20%. Tomando acciones preventivas en pro de un mejor nivel de rotación de cuentas en el área de tesorería. Como lo fue el excluir las cuentas por pagar que fueron recibidas en el cierre de la vigencia 2020 para la medición de este indicador, dado a que tales cuentas son canceladas en el mes de febrero de la siguiente vigencia. TRIMESTRE ll: En comparacion al primer trimestre de la vigencia 2021, subimos el indicador de oportunidad de pago en un 3 %. Logrando pagar 536 Ordenes de Prestación de Servicios (OPS), ademas de acuerdo al porcetaje obtenido del 88% nos indica que se encuentra en tendencia ascendente el compartamiento del indicador.
J34: ACCIÓN FORMULADA
J35: SEMESTRE I: El modelo de pagos bajo el aplicativo Integradoc, necesita mayor acompañamiento, dado que es necesario la capacitación a los supervisores y contratistas, a fin de eliminar los cuellos de botella dentro del proceso. TRIMESTRE ll: El modelo de pagos bajo el aplicativo Integradoc, le faltan reingeneria dado que para el proceso de pago aun es muy manual, ya que se debe descargar una a una las cuentas para llevar a cabo el desembolso a los contratistas.
J41: RESPONSABLE
J42: =E14 -> Director(a) Financiera
C45: PERIODO DE EVALUACIÓN
C46: MES | D46: =IF(J23="MENSUAL","ENERO",IF(J23="TRIMESTRAL","MARZO",IF(J23="SEMESTRAL","JUNIO",IF(J23="ANUAL",YEAR(TODAY()),"")))) -> MARZO | E46: =IF(J23="MENSUAL","FEBRERO",IF(J23="TRIMESTRAL","JUNIO",IF(J23="SEMESTRAL","DICIEMBRE",""))) -> JUNIO | F46: =IF(J23="MENSUAL","MARZO",IF(J23="TRIMESTRAL","SEPTIEMBRE","")) -> SEPTIEMBRE | G46: =IF(J23="MENSUAL","ABRIL",IF(J23="TRIMESTRAL","DICIEMBRE","")) -> DICIEMBRE | H46: =IF(J23="MENSUAL","MAYO","") ->  | I46: =IF(J23="MENSUAL","JUNIO","") ->  | J46: =IF(J23="MENSUAL","JULIO","") ->  | K46: =IF(J23="MENSUAL","AGOSTO","") ->  | L46: =IF(J23="MENSUAL","SEPTIEMBRE","") ->  | M46: =IF(J23="MENSUAL","OCTUBRE","") ->  | N46: =IF(J23="MENSUAL","NOVIEMBRE","") ->  | O46: =IF(J23="MENSUAL","DICIEMBRE","") -> 
C47: =G18 -> Total cuentas pagadas fecha establecida*100 | D47: 225 | E47: 473
C48: =G19 -> Total cuentas pagadas | D48: 266 | E48: 536
C49: VALOR | D49: =IFERROR(IF($E$17=1,D47/D48,IF($E$17=2,D47,"")),"") -> 0.8458646617 | E49: =IFERROR(IF($E$17=1,E47/E48,IF($E$17=2,E47,"")),"") -> 0.8824626866
C50: META PONDERADA | D50: =IF(AND(N23="ANUAL",J23="MENSUAL"),N17/12,IF(AND(N23="ANUAL",J23="TRIMESTRAL"),N17/4,IF(AND(N23="ANUAL",J23="SEMESTRAL"),N17/2,IF(AND(N23="ANUAL",J23="ANUAL"),N17,IF(AND(N23="SEMESTRAL",J23="MENSUAL"),N17/6,IF(AND(N23="SEMESTRAL",J23="TRIMESTRAL"),N17/2,IF(AND(N23="SEMESTRAL",J23="SEMESTRAL"),N17,IF(AND(N23="SEMESTRAL",J23="ANUAL"),"REVISAR FRECUENCIAS",IF(AND(N23="TRIMESTRAL",J23="MENSUAL"),N17/3,IF(AND(N23="TRIMESTRAL",J23="TRIMESTRAL"),N17,IF(AND(N23="TRIMESTRAL",J23="SEMESTRAL"),"REVISAR FRECUENCIAS",IF(AND(N23="TRIMESTRAL",J23="ANUAL"),"REVISAR FRECUENCIAS",IF(AND(N23="MENSUAL",J23="MENSUAL"),N17,IF(AND(N23="MENSUAL",J23="TRIMESTRAL"),"REVISAR FRECUENCIAS",IF(AND(N23="MENSUAL",J23="SEMESTRAL"),"REVISAR FRECUENCIAS",IF(AND(N23="MENSUAL",J23="ANUAL"),"REVISAR FRECUENCIAS","")))))))))))))))) -> 0.95 | E50: =IF(AND(N23="ANUAL",J23="MENSUAL"),N17/12+D50,IF(AND(N23="ANUAL",J23="TRIMESTRAL"),N17/4+D50,IF(AND(N23="ANUAL",J23="SEMESTRAL"),N17/2+D50,IF(AND(N23="SEMESTRAL",J23="MENSUAL"),N17/6+D50,IF(AND(N23="SEMESTRAL",J23="TRIMESTRAL"),N17/2+D50,IF(AND(N23="SEMESTRAL",J23="SEMESTRAL"),N17,IF(AND(N23="TRIMESTRAL",J23="MENSUAL"),N17/3+D50,IF(AND(N23="TRIMESTRAL",J23="TRIMESTRAL"),N17,IF(AND(N23="MENSUAL",J23="MENSUAL"),N17,""))))))))) -> 0.95 | F50: =IF(AND(N23="ANUAL",J23="MENSUAL"),N17/12+E50,IF(AND(N23="ANUAL",J23="TRIMESTRAL"),N17/4+E50,IF(AND(N23="SEMESTRAL",J23="MENSUAL"),N17/6+E50,IF(AND(N23="SEMESTRAL",J23="TRIMESTRAL"),N17/2,IF(AND(N23="TRIMESTRAL",J23="MENSUAL"),N17/3+E50,IF(AND(N23="TRIMESTRAL",J23="TRIMESTRAL"),N17,IF(AND(N23="MENSUAL",J23="MENSUAL"),N17,""))))))) -> 0.95 | G50: =IF(AND(N23="ANUAL",J23="MENSUAL"),N17/12+F50,IF(AND(N23="ANUAL",J23="TRIMESTRAL"),N17/4+F50,IF(AND(N23="SEMESTRAL",J23="MENSUAL"),N17/6+F50,IF(AND(N23="SEMESTRAL",J23="TRIMESTRAL"),N17/2+F50,IF(AND(N23="TRIMESTRAL",J23="MENSUAL"),N17/3,IF(AND(N23="TRIMESTRAL",J23="TRIMESTRAL"),N17,IF(AND(N23="MENSUAL",J23="MENSUAL"),N17,""))))))) -> 0.95 | H50: =IF(AND($N$23="ANUAL",$J$23="MENSUAL"),$N$17/12+G50,IF(AND(N23="SEMESTRAL",J23="MENSUAL"),N17/6+G50,IF(AND(N23="TRIMESTRAL",J23="MENSUAL"),N17/3+G50,IF(AND(N23="MENSUAL",J23="MENSUAL"),N17,"")))) ->  | I50: =IF(AND($N$23="ANUAL",$J$23="MENSUAL"),$N$17/12+H50,IF(AND(N23="SEMESTRAL",J23="MENSUAL"),N17/6+H50,IF(AND(N23="TRIMESTRAL",J23="MENSUAL"),N17/3+H50,IF(AND(N23="MENSUAL",J23="MENSUAL"),N17,"")))) ->  | J50: =IF(AND($N$23="ANUAL",$J$23="MENSUAL"),$N$17/12+I50,IF(AND(N23="SEMESTRAL",J23="MENSUAL"),N17/6,IF(AND(N23="TRIMESTRAL",J23="MENSUAL"),N17/3,IF(AND(N23="MENSUAL",J23="MENSUAL"),N17,"")))) ->  | K50: =IF(AND($N$23="ANUAL",$J$23="MENSUAL"),$N$17/12+J50,IF(AND(N23="SEMESTRAL",J23="MENSUAL"),N17/6+J50,IF(AND(N23="TRIMESTRAL",J23="MENSUAL"),N17/3+J50,IF(AND(N23="MENSUAL",J23="MENSUAL"),N17,"")))) ->  | L50: =IF(AND($N$23="ANUAL",$J$23="MENSUAL"),$N$17/12+K50,IF(AND(N23="SEMESTRAL",J23="MENSUAL"),N17/6+K50,IF(AND(N23="TRIMESTRAL",J23="MENSUAL"),N17/3+K50,IF(AND(N23="MENSUAL",J23="MENSUAL"),N17,"")))) ->  | M50: =IF(AND($N$23="ANUAL",$J$23="MENSUAL"),$N$17/12+L50,IF(AND(N23="SEMESTRAL",J23="MENSUAL"),N17/6+L50,IF(AND(N23="TRIMESTRAL",J23="MENSUAL"),N17/3,IF(AND(N23="MENSUAL",J23="MENSUAL"),N17,"")))) ->  | N50: =IF(AND($N$23="ANUAL",$J$23="MENSUAL"),$N$17/12+M50,IF(AND(N23="SEMESTRAL",J23="MENSUAL"),N17/6+M50,IF(AND(N23="TRIMESTRAL",J23="MENSUAL"),N17/3+M50,IF(AND(N23="MENSUAL",J23="MENSUAL"),N17,"")))) ->  | O50: =IF(AND($N$23="ANUAL",$J$23="MENSUAL"),$N$17/12+N50,IF(AND(N23="SEMESTRAL",J23="MENSUAL"),N17/6+N50,IF(AND(N23="TRIMESTRAL",J23="MENSUAL"),N17/3+N50,IF(AND(N23="MENSUAL",J23="MENSUAL"),N17,"")))) -> 
C52: NIVEL DE SEGREGACIÓN *
C53: UNIDAD SEGREGADA (Ej. Facultad, Programa Académico, Área) | G53: RESULTADO | K53: ANALISIS DE DATOS SEGREGADO
G72: Estratégico | J72: Eficacia
G73: Misional | J73: Eficiencia
G74: Apoyo | J74: Acreditación
G75: Seguimiento, Medición, Análisis y Evaluación | J75: Positiva
G76: Direccionamiento Estratégico | J76: Negativa
G77: Planeación Institucional | J77: Por Unidad Regional
G78: Proyectos Especiales y Relaciones Interinstitucionales | J78: Por Facultad
G79: Sistemas Integrados | J79: Por Programa Académico
G80: Autoevaluación y Acreditación | J80: Por área
G81: Comunicaciones | J81: Por Laboratorio
G82: Formación y Aprendizaje | J82: Otros
G83: Ciencia, Tecnología e Innovación | J83: No Aplica
G84: Interacción Social Universitaria
G85: Bienestar Universitario
G86: Admisiones y Registro
G87: Graduados
G88: Dialogando con el Mundo
G89: Talento Humano
G90: Jurídica
G91: Financiera
G92: Sistemas y Tecnología
G93: Bienes y Servicios
G94: Documental
G95: Apoyo Académico
G96: Control Interno
G97: Control Disciplinario
G98: Servicio de Atención al Ciudadano

Sheet AFI-3 (hidden)
B2: REGRESAR
E5: MACROPROCESO ESTRATÉGICO | M5: CÓDIGO: ESGr027
E6: PROCESO GESTIÓN SISTEMAS INTEGRADOS | M6: VERSIÓN: 7
E7: MATRIZ DE MEDICIÓN Y SEGUIMIENTO A LOS PROCESOS DE GESTIÓN | M7: VIGENCIA: 2020-03-20
M8: PÁGINA: 1 de 1
C10: FICHA DE INDICADOR
C12: MACROPROCESO | E12: Apoyo | I12: NOMBRE DEL INDICADOR | K12: Recuperación de IVA
C13: PROCESO GESTIÓN | E13: Financiera
C14: RESPONSABLE DE MEDICIÓN | E14: Director(a) Financiera
C16: 1. COMPORTAMIENTO DE INDICADOR
C17: CLASIFICACIÓN DE LA MEDICIÓN | E17: 1 | H17: TIPO DE INDICADOR | J17: Eficacia | L17: META ANUAL | N17: 0.97
C18: FÓRMULA | E18: NUMERADOR | G18: Total IVA recuperado*100 | L18: UNIDAD DE MEDIDA | N18: Porcentual
E19: DENOMINADOR | G19: Total IVA cobrado
C20: TENDENCIA | E20: Positiva | H20: NIVEL DE SEGREGACIÓN * | J20: No Aplica | L20: ESCALA
L21: Deficiente | M21: Aceptable | N21: Bueno | O21: Excelente
L22: 0 65% | M22: 66% - 81% | N22: 82% - 97% | O22: 98% - 100%
C23: ORIGEN DE DATOS NUMERADOR | E23: AFIr055 y Resolución DIAN | H23: FRECUENCIA DE LA MEDICIÓN | J23: BIMENSUAL | L23: FRECUENCIA DE RESULTADO | N23: BIMENSUAL
C24: ORIGEN DE DATOS DENOMINADOR | E24: AFIr055 y Resolución DIAN
C26: RESULTADOS
J27: ANÁLISIS DE DATOS
J28: BIMESTRE I: Durante el primer bimestre del año 2021, se solicito ante la Dirección de impuestos y Aduanas nacionales en el mes de enero; según el Decreto 1625/2016 (El cual establece la devolución del impuesto sobre las ventas a las instituciones estatales u oficiales de educación superior) la suma de $831.691.146, correspondiente al VI BIMESTRE del año 2020. En el mes de abril de 2021 la DIAN envió resolución numero 6282011 de fecha 09 de abril de 2021 notificando la devolución de $831.691.146 correspondientes a el VI bimestre de 2020 quedando 100%. Durante el mes de febrero del presente año la DIAN realizo devolución por valor de $704,592,100, correspondiente al V BIMESTRE del año 2020; quedando el indicador durante el Primer bimestre del año en un 100% de cumplimiento.
J30: BIMESTRE II . Durante el segundo bimestre del año 2021, se solicito ante la Dirección de impuestos y Aduanas nacionales en el mes de marzo; según el Decreto 1625/2016 (El cual establece la devolución del impuesto sobre las ventas a las instituciones estatales u oficiales de educación superior) la suma de $143.017.363, correspondiente al I BIMESTRE del año 2021. En el mes de junio de 2021 la DIAN envió resolución numero 6282023 de fecha 04 de junio de 2021 notificando la devolución de $143.017.363 correspondientes a el I bimestre de 2021 quedando 100%.
J39: ACCIÓN FORMULADA
J40: BIMESTRE I:
J46: RESPONSABLE
J47: =E14 -> Director(a) Financiera
C50: PERIODO DE EVALUACIÓN
C51: MES | D51: FEBRERO | E51: ABRIL | F51: JUNIO | G51: AGOSTO | H51: OCTUBRE | I51: DICIEMBRE | J51: =IF(J23="MENSUAL","JULIO","") ->  | K51: =IF(J23="MENSUAL","AGOSTO","") ->  | L51: =IF(J23="MENSUAL","SEPTIEMBRE","") ->  | M51: =IF(J23="MENSUAL","OCTUBRE","") ->  | N51: =IF(J23="MENSUAL","NOVIEMBRE","") ->  | O51: =IF(J23="MENSUAL","DICIEMBRE","") -> 
C52: =G18 -> Total IVA recuperado*100 | D52: 831691146 | E52: 143017363
C53: =G19 -> Total IVA cobrado | D53: 831691146 | E53: 143017363
C54: VALOR | D54: =IFERROR(IF($E$17=1,D52/D53,IF($E$17=2,D52,"")),"") -> 1 | E54: =IFERROR(IF($E$17=1,E52/E53,IF($E$17=2,E52,"")),"") -> 1 | F54: =IFERROR(IF($E$17=1,F52/F53,IF($E$17=2,F52,"")),"") ->  | G54: =IFERROR(IF($E$17=1,G52/G53,IF($E$17=2,G52,"")),"") ->  | H54: =IFERROR(IF($E$17=1,H52/H53,IF($E$17=2,H52,"")),"") ->  | I54: =IFERROR(IF($E$17=1,I52/I53,IF($E$17=2,I52,"")),"") -> 
C55: META PONDERADA | D55: 0.97 | E55: 0.97 | F55: 0.97 | G55: 0.97 | H55: 0.97 | I55: =IF(AND($N$23="ANUAL",$J$23="MENSUAL"),$N$17/12+H55,IF(AND(N23="SEMESTRAL",J23="MENSUAL"),N17/6+H55,IF(AND(N23="TRIMESTRAL",J23="MENSUAL"),N17/3+H55,IF(AND(N23="MENSUAL",J23="MENSUAL"),N17,"")))) ->  | J55: =IF(AND($N$23="ANUAL",$J$23="MENSUAL"),$N$17/12+I55,IF(AND(N23="SEMESTRAL",J23="MENSUAL"),N17/6,IF(AND(N23="TRIMESTRAL",J23="MENSUAL"),N17/3,IF(AND(N23="MENSUAL",J23="MENSUAL"),N17,"")))) ->  | K55: =IF(AND($N$23="ANUAL",$J$23="MENSUAL"),$N$17/12+J55,IF(AND(N23="SEMESTRAL",J23="MENSUAL"),N17/6+J55,IF(AND(N23="TRIMESTRAL",J23="MENSUAL"),N17/3+J55,IF(AND(N23="MENSUAL",J23="MENSUAL"),N17,"")))) ->  | L55: =IF(AND($N$23="ANUAL",$J$23="MENSUAL"),$N$17/12+K55,IF(AND(N23="SEMESTRAL",J23="MENSUAL"),N17/6+K55,IF(AND(N23="TRIMESTRAL",J23="MENSUAL"),N17/3+K55,IF(AND(N23="MENSUAL",J23="MENSUAL"),N17,"")))) ->  | M55: =IF(AND($N$23="ANUAL",$J$23="MENSUAL"),$N$17/12+L55,IF(AND(N23="SEMESTRAL",J23="MENSUAL"),N17/6+L55,IF(AND(N23="TRIMESTRAL",J23="MENSUAL"),N17/3,IF(AND(N23="MENSUAL",J23="MENSUAL"),N17,"")))) ->  | N55: =IF(AND($N$23="ANUAL",$J$23="MENSUAL"),$N$17/12+M55,IF(AND(N23="SEMESTRAL",J23="MENSUAL"),N17/6+M55,IF(AND(N23="TRIMESTRAL",J23="MENSUAL"),N17/3+M55,IF(AND(N23="MENSUAL",J23="MENSUAL"),N17,"")))) ->  | O55: =IF(AND($N$23="ANUAL",$J$23="MENSUAL"),$N$17/12+N55,IF(AND(N23="SEMESTRAL",J23="MENSUAL"),N17/6+N55,IF(AND(N23="TRIMESTRAL",J23="MENSUAL"),N17/3+N55,IF(AND(N23="MENSUAL",J23="MENSUAL"),N17,"")))) -> 
C57: NIVEL DE SEGREGACIÓN *
C58: UNIDAD SEGREGADA (Ej. Facultad, Programa Académico, Área) | G58: RESULTADO | K58: ANÁLISIS DE DATOS SEGREGADO
G77: Estratégico | J77: Eficacia
G78: Misional | J78: Eficiencia
G79: Apoyo | J79: Acreditación
G80: Seguimiento, Medición, Análisis y Evaluación | J80: Positiva
G81: Direccionamiento Estratégico | J81: Negativa
G82: Planeación Institucional | J82: Por Unidad Regional
G83: Proyectos Especiales y Relaciones Interinstitucionales | J83: Por Facultad
G84: Sistemas Integrados | J84: Por Programa Académico
G85: Autoevaluación y Acreditación | J85: Por área
G86: Comunicaciones | J86: Por Laboratorio
G87: Formación y Aprendizaje | J87: Otros
G88: Ciencia, Tecnología e Innovación | J88: No Aplica
G89: Interacción Social Universitaria
G90: Bienestar Universitario
G91: Admisiones y Registro
G92: Graduados
G93: Dialogando con el Mundo
G94: Talento Humano
G95: Jurídica
G96: Financiera
G97: Sistemas y Tecnología
G98: Bienes y Servicios
G99: Documental
G100: Apoyo Académico
G101: Control Interno
G102: Control Disciplinario
G103: Servicio de Atención al Ciudadano

Sheet AFI-2 (hidden)
B2: REGRESAR
E5: MACROPROCESO ESTRATÉGICO | M5: CÓDIGO: ESGr027
E6: PROCESO GESTIÓN SISTEMAS INTEGRADOS | M6: VERSIÓN: 7
E7: MATRIZ DE MEDICIÓN Y SEGUIMIENTO A LOS PROCESOS DE GESTIÓN | M7: VIGENCIA: 2020-03-20
M8: PÁGINA: 1 de 1
C10: FICHA DE INDICADOR
C12: MACROPROCESO | E12: Apoyo | I12: NOMBRE DEL INDICADOR | K12: Recuperación de cartera
C13: PROCESO GESTIÓN | E13: Financiera
C14: RESPONSABLE DE MEDICIÓN | E14: Director(a) Financiera
C16: 1. COMPORTAMIENTO DE INDICADOR
C17: CLASIFICACIÓN DE LA MEDICIÓN | E17: 1 | H17: TIPO DE INDICADOR | L17: META | N17: 0.9
C18: FORMULA | E18: NUMERADOR | G18: Total cartera recuperada*100 | L18: UNIDAD DE MEDIDA | N18: Porcentual
E19: DENOMINADOR | G19: Total cartera por matriculas
C20: TENDENCIA | E20: Positiva | H20: NIVEL DE SEGREGACIÓN * | J20: Otros | L20: ESCALA
L21: Deficiente | M21: Aceptable | N21: Bueno | O21: Excelente
L22: 0 -70% | M22: 71% - 84% | N22: 85% - 95% | O22: 96% - 100%
C23: ORIGEN DE DATOS NUMERADOR | E23: Informes de gestión de la oficina de apoyo financiero | H23: FRECUENCIA DE LA MEDICIÓN | J23: SEMESTRAL | L23: FRECUENCIA DE RESULTADO | N23: ANUAL
C24: ORIGEN DE DATOS DENOMINADOR | E24: Informes de gestión de la oficina de apoyo financiero
C26: RESULTADOS
J27: ANÁLISIS DE DATOS
J28: SEMESTRE I: Que al inicio del primer periodo del 2021 se contaba con una cartera consolidada de $ 33,523,182 y a su vez para el 2021-1 se financio el monto de $2,054,025 , al cierre de Junio se ha recaudado el 100% de los 2,054,025. NOTA: Cabe resaltar que al cierre de junio del 2021 de los 33,523,182 se recuperaron un total de 6,874,487 Cabe anotar que la cartera del primer periodo académico del 2010 al segundo periodo académico del 2017 se ha entregado a la oficina de Jurídica, para entablar la respectiva demanda y dar así al inicio del cobro jurídico, estos casos suman 26,648,695 millones de los cuales en los 2 últimos años no ha ingresado ni un peso a las cuentas de la Universidad de Cundinamarca.
J34: ACCIÓN FORMULADA
J35: SEMESTRE I: En la actualidad se estan realizando mesas de trabajo junto con la oficina de juridica para determinar la estrategia que se seguira para la recuperacion o el castigo de la cartera (costo-beneficio) | S35: total cartera IPAI | T35: =S39+S42 -> 35577207
S36: Cartera recuperada IPAI | T36: =S40+S42 -> 8928512
S37: Cartera pendiente cierre IPA | T37: =S39-S40 -> 26648695
S39: 33523182
S40: 6874487
J41: RESPONSABLE | S41: 24594670 | T41: 26648695
J42: =E14 -> Director(a) Financiera | S42: 2054025 | T42: 24594670
S44: 33523182
C45: PERIODO DE EVALUACIÓN
C46: MES | D46: =IF(J23="MENSUAL","ENERO",IF(J23="TRIMESTRAL","MARZO",IF(J23="SEMESTRAL","JUNIO",IF(J23="ANUAL",YEAR(TODAY()),"")))) -> JUNIO | E46: =IF(J23="MENSUAL","FEBRERO",IF(J23="TRIMESTRAL","JUNIO",IF(J23="SEMESTRAL","DICIEMBRE",""))) -> DICIEMBRE | F46: =IF(J23="MENSUAL","MARZO",IF(J23="TRIMESTRAL","SEPTIEMBRE","")) ->  | G46: =IF(J23="MENSUAL","ABRIL",IF(J23="TRIMESTRAL","DICIEMBRE","")) ->  | H46: =IF(J23="MENSUAL","MAYO","") ->  | I46: =IF(J23="MENSUAL","JUNIO","") ->  | J46: =IF(J23="MENSUAL","JULIO","") ->  | K46: =IF(J23="MENSUAL","AGOSTO","") ->  | L46: =IF(J23="MENSUAL","SEPTIEMBRE","") ->  | M46: =IF(J23="MENSUAL","OCTUBRE","") ->  | N46: =IF(J23="MENSUAL","NOVIEMBRE","") ->  | O46: =IF(J23="MENSUAL","DICIEMBRE","") ->  | S46: 0
C47: =G18 -> Total cartera recuperada*100 | D47: 8928512
C48: =G19 -> Total cartera por matriculas | D48: 35577207 | S48: =S39-S40 -> 26648695
C49: VALOR | D49: =IFERROR(IF($E$17=1,D47/D48,IF($E$17=2,D47,"")),"") -> 0.2509615777 | E49: =IFERROR(IF($E$17=1,E47/E48,IF($E$17=2,E47,"")),"") -> 
C50: META PONDERADA | D50: =IF(AND(N23="ANUAL",J23="MENSUAL"),N17/12,IF(AND(N23="ANUAL",J23="TRIMESTRAL"),N17/4,IF(AND(N23="ANUAL",J23="SEMESTRAL"),N17/2,IF(AND(N23="ANUAL",J23="ANUAL"),N17,IF(AND(N23="SEMESTRAL",J23="MENSUAL"),N17/6,IF(AND(N23="SEMESTRAL",J23="TRIMESTRAL"),N17/2,IF(AND(N23="SEMESTRAL",J23="SEMESTRAL"),N17,IF(AND(N23="SEMESTRAL",J23="ANUAL"),"REVISAR FRECUENCIAS",IF(AND(N23="TRIMESTRAL",J23="MENSUAL"),N17/3,IF(AND(N23="TRIMESTRAL",J23="TRIMESTRAL"),N17,IF(AND(N23="TRIMESTRAL",J23="SEMESTRAL"),"REVISAR FRECUENCIAS",IF(AND(N23="TRIMESTRAL",J23="ANUAL"),"REVISAR FRECUENCIAS",IF(AND(N23="MENSUAL",J23="MENSUAL"),N17,IF(AND(N23="MENSUAL",J23="TRIMESTRAL"),"REVISAR FRECUENCIAS",IF(AND(N23="MENSUAL",J23="SEMESTRAL"),"REVISAR FRECUENCIAS",IF(AND(N23="MENSUAL",J23="ANUAL"),"REVISAR FRECUENCIAS","")))))))))))))))) -> 0.45 | E50: =IF(AND(N23="ANUAL",J23="MENSUAL"),N17/12+D50,IF(AND(N23="ANUAL",J23="TRIMESTRAL"),N17/4+D50,IF(AND(N23="ANUAL",J23="SEMESTRAL"),N17/2+D50,IF(AND(N23="SEMESTRAL",J23="MENSUAL"),N17/6+D50,IF(AND(N23="SEMESTRAL",J23="TRIMESTRAL"),N17/2+D50,IF(AND(N23="SEMESTRAL",J23="SEMESTRAL"),N17,IF(AND(N23="TRIMESTRAL",J23="MENSUAL"),N17/3+D50,IF(AND(N23="TRIMESTRAL",J23="TRIMESTRAL"),N17,IF(AND(N23="MENSUAL",J23="MENSUAL"),N17,""))))))))) -> 0.9 | F50: =IF(AND(N23="ANUAL",J23="MENSUAL"),N17/12+E50,IF(AND(N23="ANUAL",J23="TRIMESTRAL"),N17/4+E50,IF(AND(N23="SEMESTRAL",J23="MENSUAL"),N17/6+E50,IF(AND(N23="SEMESTRAL",J23="TRIMESTRAL"),N17/2,IF(AND(N23="TRIMESTRAL",J23="MENSUAL"),N17/3+E50,IF(AND(N23="TRIMESTRAL",J23="TRIMESTRAL"),N17,IF(AND(N23="MENSUAL",J23="MENSUAL"),N17,""))))))) ->  | G50: =IF(AND(N23="ANUAL",J23="MENSUAL"),N17/12+F50,IF(AND(N23="ANUAL",J23="TRIMESTRAL"),N17/4+F50,IF(AND(N23="SEMESTRAL",J23="MENSUAL"),N17/6+F50,IF(AND(N23="SEMESTRAL",J23="TRIMESTRAL"),N17/2+F50,IF(AND(N23="TRIMESTRAL",J23="MENSUAL"),N17/3,IF(AND(N23="TRIMESTRAL",J23="TRIMESTRAL"),N17,IF(AND(N23="MENSUAL",J23="MENSUAL"),N17,""))))))) ->  | H50: =IF(AND($N$23="ANUAL",$J$23="MENSUAL"),$N$17/12+G50,IF(AND(N23="SEMESTRAL",J23="MENSUAL"),N17/6+G50,IF(AND(N23="TRIMESTRAL",J23="MENSUAL"),N17/3+G50,IF(AND(N23="MENSUAL",J23="MENSUAL"),N17,"")))) ->  | I50: =IF(AND($N$23="ANUAL",$J$23="MENSUAL"),$N$17/12+H50,IF(AND(N23="SEMESTRAL",J23="MENSUAL"),N17/6+H50,IF(AND(N23="TRIMESTRAL",J23="MENSUAL"),N17/3+H50,IF(AND(N23="MENSUAL",J23="MENSUAL"),N17,"")))) ->  | J50: =IF(AND($N$23="ANUAL",$J$23="MENSUAL"),$N$17/12+I50,IF(AND(N23="SEMESTRAL",J23="MENSUAL"),N17/6,IF(AND(N23="TRIMESTRAL",J23="MENSUAL"),N17/3,IF(AND(N23="MENSUAL",J23="MENSUAL"),N17,"")))) ->  | K50: =IF(AND($N$23="ANUAL",$J$23="MENSUAL"),$N$17/12+J50,IF(AND(N23="SEMESTRAL",J23="MENSUAL"),N17/6+J50,IF(AND(N23="TRIMESTRAL",J23="MENSUAL"),N17/3+J50,IF(AND(N23="MENSUAL",J23="MENSUAL"),N17,"")))) ->  | L50: =IF(AND($N$23="ANUAL",$J$23="MENSUAL"),$N$17/12+K50,IF(AND(N23="SEMESTRAL",J23="MENSUAL"),N17/6+K50,IF(AND(N23="TRIMESTRAL",J23="MENSUAL"),N17/3+K50,IF(AND(N23="MENSUAL",J23="MENSUAL"),N17,"")))) ->  | M50: =IF(AND($N$23="ANUAL",$J$23="MENSUAL"),$N$17/12+L50,IF(AND(N23="SEMESTRAL",J23="MENSUAL"),N17/6+L50,IF(AND(N23="TRIMESTRAL",J23="MENSUAL"),N17/3,IF(AND(N23="MENSUAL",J23="MENSUAL"),N17,"")))) ->  | N50: =IF(AND($N$23="ANUAL",$J$23="MENSUAL"),$N$17/12+M50,IF(AND(N23="SEMESTRAL",J23="MENSUAL"),N17/6+M50,IF(AND(N23="TRIMESTRAL",J23="MENSUAL"),N17/3+M50,IF(AND(N23="MENSUAL",J23="MENSUAL"),N17,"")))) ->  | O50: =IF(AND($N$23="ANUAL",$J$23="MENSUAL"),$N$17/12+N50,IF(AND(N23="SEMESTRAL",J23="MENSUAL"),N17/6+N50,IF(AND(N23="TRIMESTRAL",J23="MENSUAL"),N17/3+N50,IF(AND(N23="MENSUAL",J23="MENSUAL"),N17,"")))) -> 
C52: NIVEL DE SEGREGACIÓN *
C53: UNIDAD SEGREGADA (Ej. Facultad, Programa Académico, Área) | G53: RESULTADO | K53: ANALISIS DE DATOS SEGREGADO
C54: Total de cartera prestada durante el primer semestre de la vigencia 2021-1 | G54: 2054025 | K54: Durante el primer semestre se realizó una financiación a estudiantes por un valor de 2,054,025 la cual fue recuperada en un 100% durante el periodo objeto de medición gracias a la gestión de seguimiento realizada desde la oficina de apoyo financiero.
C55: Valor de la cartera pendiente por recupera de la vigencia 2021-1 | G55: 0 | K55: N/A
C56: Total de cartera prestada durante el primer semestre de la vigencias anteriores | G56: 6874487 | K56: En el periodo objeto de medición se realizó gestión para recuperar la cartera que se encontraba en mora de vigencias anteriores, logrando como resultado la recuperación de un monto equivalente a: 6.874.487
C57: Valor de la cartera pendiente por recuperar de vigencias anteriores y que se encuentra en el proceso Jurídico | G57: 26648695 | K57: La cartera relacionada en esta ítem es la cartera vencida que se tiene desde el año 2010 la cual fue entregada al proceso jurídico para realizar las gestiones pertinentes para su recuperación
G72: Estratégico | J72: Eficacia
G73: Misional | J73: Eficiencia
G74: Apoyo | J74: Acreditación
G75: Seguimiento, Medición, Análisis y Evaluación | J75: Positiva
G76: Direccionamiento Estratégico | J76: Negativa
G77: Planeación Institucional | J77: Por Unidad Regional
G78: Proyectos Especiales y Relaciones Interinstitucionales | J78: Por Facultad
G79: Sistemas Integrados | J79: Por Programa Académico
G80: Autoevaluación y Acreditación | J80: Por área
G81: Comunicaciones | J81: Por Laboratorio
G82: Formación y Aprendizaje | J82: Otros
G83: Ciencia, Tecnología e Innovación | J83: No Aplica
G84: Interacción Social Universitaria
G85: Bienestar Universitario
G86: Admisiones y Registro
G87: Graduados
G88: Dialogando con el Mundo
G89: Talento Humano
G90: Jurídica
G91: Financiera
G92: Sistemas y Tecnología
G93: Bienes y Servicios
G94: Documental
G95: Apoyo Académico
G96: Control Interno
G97: Control Disciplinario
G98: Servicio de Atención al Ciudadano

Sheet AFI-4 (hidden)
B2: REGRESAR
E5: MACROPROCESO ESTRATÉGICO | M5: CÓDIGO: ESGr027
E6: PROCESO GESTIÓN SISTEMAS INTEGRADOS | M6: VERSIÓN: 7
E7: MATRIZ DE MEDICIÓN Y SEGUIMIENTO A LOS PROCESOS DE GESTIÓN | M7: VIGENCIA: 2020-03-20
M8: PÁGINA: 1 de 1
C10: FICHA DE INDICADOR
C12: MACROPROCESO | E12: Apoyo | I12: NOMBRE DEL INDICADOR | K12: Trámites de cuentas para causación
C13: PROCESO GESTIÓN | E13: Financiera
C14: RESPONSABLE DE MEDICIÓN | E14: Director(a) Financiera
C16: 1. COMPORTAMIENTO DE INDICADOR
C17: CLASIFICACIÓN DE LA MEDICIÓN | E17: 1 | H17: TIPO DE INDICADOR | J17: Eficacia | L17: META ANUAL | N17: 0.2
C18: FÓRMULA | E18: NUMERADOR | G18: Número trámites de cuentas para causación devueltas *100 | L18: UNIDAD DE MEDIDA | N18: Porcentual
E19: DENOMINADOR | G19: Número tramites de cuentas para causación
C20: TENDENCIA | E20: Negativa | H20: NIVEL DE SEGREGACIÓN * | J20: No Aplica | L20: ESCALA
L21: Deficiente | M21: Aceptable | N21: Bueno | O21: Excelente
L22: 25% - 100% | M22: 21% - 24% | N22: 11% - 20% | O22: 0% - 10%
C23: ORIGEN DE DATOS NUMERADOR | E23: Base de datos radicación de cuentas de cobro | H23: FRECUENCIA DE LA MEDICIÓN | J23: MENSUAL | L23: FRECUENCIA DE RESULTADO | N23: MENSUAL
C24: ORIGEN DE DATOS DENOMINADOR | E24: Base de datos radicación de cuentas de cobro
C26: RESULTADOS
J27: ANÁLISIS DE DATOS
J28: TRIMESTRE I: En los meses de enero, febrero de 2021 se observa una disminución del porcentaje de devolución de las cuentas debido que estos meses no se radican un volumen alto de cuentas de proveedores y ops. Para el mes de marzo se da un aumento en el numero de radicación de cuentas y de devoluciones debido que para este mes se presenta casi finalizado el proceso de contratación de ops. Observación: para el mes de marzo las cuentas se radican por medio de la plataforma Integradoc, por esto no se adjunta evidencia debido que no existe reporte de devolución de cuentas al momento.
J32: TRIMESTRE II: A partir del mes de abril del la vigencia en curso se incluyeron para la medición del indicador todas las tipologías de cuentas que se gestionan por la herramienta Integradoc. Motivo por el cual se evidencia un incremento en el numero de devoluciones en parte porque los registros AFIr067 y AFIr068 se encuentran digitalizados solamente con alcance a las cuentas de los contratistas OPS. Motivo por el cual las demás tipologías aun realizan la gestión del formato de forma manual lo cual es un factor que influye en los errores al realizar la tabulación de la información.
J38: ACCIÓN FORMULADA
J39: TRIMESTRE II:Se realizarán mesas de trabajo con el proceso de sistemas y tecnología para analizar la posibilidad de ampliar el alcance de los registros AFIr067 y AFIr068 que ya se encuentran digitalizados a todas las tipologías de contrato.
J42: RESPONSABLE
J43: =E14 -> Director(a) Financiera
C46: PERIODO DE EVALUACIÓN
C47: MES | D47: =IF(J23="MENSUAL","ENERO",IF(J23="TRIMESTRAL","MARZO",IF(J23="SEMESTRAL","JUNIO",IF(J23="ANUAL",YEAR(TODAY()),"")))) -> ENERO | E47: =IF(J23="MENSUAL","FEBRERO",IF(J23="TRIMESTRAL","JUNIO",IF(J23="SEMESTRAL","DICIEMBRE",""))) -> FEBRERO | F47: =IF(J23="MENSUAL","MARZO",IF(J23="TRIMESTRAL","SEPTIEMBRE","")) -> MARZO | G47: =IF(J23="MENSUAL","ABRIL",IF(J23="TRIMESTRAL","DICIEMBRE","")) -> ABRIL | H47: =IF(J23="MENSUAL","MAYO","") -> MAYO | I47: =IF(J23="MENSUAL","JUNIO","") -> JUNIO | J47: =IF(J23="MENSUAL","JULIO","") -> JULIO | K47: =IF(J23="MENSUAL","AGOSTO","") -> AGOSTO | L47: =IF(J23="MENSUAL","SEPTIEMBRE","") -> SEPTIEMBRE | M47: =IF(J23="MENSUAL","OCTUBRE","") -> OCTUBRE | N47: =IF(J23="MENSUAL","NOVIEMBRE","") -> NOVIEMBRE | O47: =IF(J23="MENSUAL","DICIEMBRE","") -> DICIEMBRE
C48: =G18 -> Número trámites de cuentas para causación devueltas *100 | D48: 0 | E48: 36 | F48: 73 | G48: 69 | H48: 70 | I48: 59 | J48: 60
C49: =G19 -> Número tramites de cuentas para causación | D49: 31 | E49: 178 | F49: 335 | G49: 216 | H49: 258 | I49: 276 | J49: 155
C50: VALOR | D50: =+D48/D49 -> 0 | E50: =+E48/E49 -> 0.202247191 | F50: =+F48/F49 -> 0.2179104478 | G50: =+G48/G49 -> 0.3194444444 | H50: =+H48/H49 -> 0.2713178295 | I50: =+I48/I49 -> 0.2137681159 | J50: =+J48/J49 -> 0.3870967742 | K50: 0 | L50: 0 | M50: 0 | N50: 0 | O50: =IFERROR(IF($E$17=1,O48/O49,IF($E$17=2,O48,"")),"") ->  | Q50: Nota. El indicador se calculara con el promedio de las 3 tres mediciones que se realizan
C51: META PONDERADA | D51: =IF(AND(N23="ANUAL",J23="MENSUAL"),N17/12,IF(AND(N23="ANUAL",J23="TRIMESTRAL"),N17/4,IF(AND(N23="ANUAL",J23="SEMESTRAL"),N17/2,IF(AND(N23="ANUAL",J23="ANUAL"),N17,IF(AND(N23="SEMESTRAL",J23="MENSUAL"),N17/6,IF(AND(N23="SEMESTRAL",J23="TRIMESTRAL"),N17/2,IF(AND(N23="SEMESTRAL",J23="SEMESTRAL"),N17,IF(AND(N23="SEMESTRAL",J23="ANUAL"),"REVISAR FRECUENCIAS",IF(AND(N23="TRIMESTRAL",J23="MENSUAL"),N17/3,IF(AND(N23="TRIMESTRAL",J23="TRIMESTRAL"),N17,IF(AND(N23="TRIMESTRAL",J23="SEMESTRAL"),"REVISAR FRECUENCIAS",IF(AND(N23="TRIMESTRAL",J23="ANUAL"),"REVISAR FRECUENCIAS",IF(AND(N23="MENSUAL",J23="MENSUAL"),N17,IF(AND(N23="MENSUAL",J23="TRIMESTRAL"),"REVISAR FRECUENCIAS",IF(AND(N23="MENSUAL",J23="SEMESTRAL"),"REVISAR FRECUENCIAS",IF(AND(N23="MENSUAL",J23="ANUAL"),"REVISAR FRECUENCIAS","")))))))))))))))) -> 0.2 | E51: =IF(AND(N23="ANUAL",J23="MENSUAL"),N17/12+D51,IF(AND(N23="ANUAL",J23="TRIMESTRAL"),N17/4+D51,IF(AND(N23="ANUAL",J23="SEMESTRAL"),N17/2+D51,IF(AND(N23="SEMESTRAL",J23="MENSUAL"),N17/6+D51,IF(AND(N23="SEMESTRAL",J23="TRIMESTRAL"),N17/2+D51,IF(AND(N23="SEMESTRAL",J23="SEMESTRAL"),N17,IF(AND(N23="TRIMESTRAL",J23="MENSUAL"),N17/3+D51,IF(AND(N23="TRIMESTRAL",J23="TRIMESTRAL"),N17,IF(AND(N23="MENSUAL",J23="MENSUAL"),N17,""))))))))) -> 0.2 | F51: =IF(AND(N23="ANUAL",J23="MENSUAL"),N17/12+E51,IF(AND(N23="ANUAL",J23="TRIMESTRAL"),N17/4+E51,IF(AND(N23="SEMESTRAL",J23="MENSUAL"),N17/6+E51,IF(AND(N23="SEMESTRAL",J23="TRIMESTRAL"),N17/2,IF(AND(N23="TRIMESTRAL",J23="MENSUAL"),N17/3+E51,IF(AND(N23="TRIMESTRAL",J23="TRIMESTRAL"),N17,IF(AND(N23="MENSUAL",J23="MENSUAL"),N17,""))))))) -> 0.2 | G51: =IF(AND(N23="ANUAL",J23="MENSUAL"),N17/12+F51,IF(AND(N23="ANUAL",J23="TRIMESTRAL"),N17/4+F51,IF(AND(N23="SEMESTRAL",J23="MENSUAL"),N17/6+F51,IF(AND(N23="SEMESTRAL",J23="TRIMESTRAL"),N17/2+F51,IF(AND(N23="TRIMESTRAL",J23="MENSUAL"),N17/3,IF(AND(N23="TRIMESTRAL",J23="TRIMESTRAL"),N17,IF(AND(N23="MENSUAL",J23="MENSUAL"),N17,""))))))) -> 0.2 | H51: =IF(AND($N$23="ANUAL",$J$23="MENSUAL"),$N$17/12+G51,IF(AND(N23="SEMESTRAL",J23="MENSUAL"),N17/6+G51,IF(AND(N23="TRIMESTRAL",J23="MENSUAL"),N17/3+G51,IF(AND(N23="MENSUAL",J23="MENSUAL"),N17,"")))) -> 0.2 | I51: =IF(AND($N$23="ANUAL",$J$23="MENSUAL"),$N$17/12+H51,IF(AND(N23="SEMESTRAL",J23="MENSUAL"),N17/6+H51,IF(AND(N23="TRIMESTRAL",J23="MENSUAL"),N17/3+H51,IF(AND(N23="MENSUAL",J23="MENSUAL"),N17,"")))) -> 0.2 | J51: =IF(AND($N$23="ANUAL",$J$23="MENSUAL"),$N$17/12+I51,IF(AND(N23="SEMESTRAL",J23="MENSUAL"),N17/6,IF(AND(N23="TRIMESTRAL",J23="MENSUAL"),N17/3,IF(AND(N23="MENSUAL",J23="MENSUAL"),N17,"")))) -> 0.2 | K51: =IF(AND($N$23="ANUAL",$J$23="MENSUAL"),$N$17/12+J51,IF(AND(N23="SEMESTRAL",J23="MENSUAL"),N17/6+J51,IF(AND(N23="TRIMESTRAL",J23="MENSUAL"),N17/3+J51,IF(AND(N23="MENSUAL",J23="MENSUAL"),N17,"")))) -> 0.2 | L51: =IF(AND($N$23="ANUAL",$J$23="MENSUAL"),$N$17/12+K51,IF(AND(N23="SEMESTRAL",J23="MENSUAL"),N17/6+K51,IF(AND(N23="TRIMESTRAL",J23="MENSUAL"),N17/3+K51,IF(AND(N23="MENSUAL",J23="MENSUAL"),N17,"")))) -> 0.2 | M51: =IF(AND($N$23="ANUAL",$J$23="MENSUAL"),$N$17/12+L51,IF(AND(N23="SEMESTRAL",J23="MENSUAL"),N17/6+L51,IF(AND(N23="TRIMESTRAL",J23="MENSUAL"),N17/3,IF(AND(N23="MENSUAL",J23="MENSUAL"),N17,"")))) -> 0.2 | N51: =IF(AND($N$23="ANUAL",$J$23="MENSUAL"),$N$17/12+M51,IF(AND(N23="SEMESTRAL",J23="MENSUAL"),N17/6+M51,IF(AND(N23="TRIMESTRAL",J23="MENSUAL"),N17/3+M51,IF(AND(N23="MENSUAL",J23="MENSUAL"),N17,"")))) -> 0.2 | O51: =IF(AND($N$23="ANUAL",$J$23="MENSUAL"),$N$17/12+N51,IF(AND(N23="SEMESTRAL",J23="MENSUAL"),N17/6+N51,IF(AND(N23="TRIMESTRAL",J23="MENSUAL"),N17/3+N51,IF(AND(N23="MENSUAL",J23="MENSUAL"),N17,"")))) -> 0.2
C53: NIVEL DE SEGREGACIÓN *
C54: UNIDAD SEGREGADA (Ej. Facultad, Programa Académico, Área) | G54: RESULTADO | K54: ANÁLISIS DE DATOS SEGREGADO
G73: Estratégico | J73: Eficacia
G74: Misional | J74: Eficiencia
G75: Apoyo | J75: Acreditación
G76: Seguimiento, Medición, Análisis y Evaluación | J76: Positiva
G77: Direccionamiento Estratégico | J77: Negativa
G78: Planeación Institucional | J78: Por Unidad Regional
G79: Proyectos Especiales y Relaciones Interinstitucionales | J79: Por Facultad
G80: Sistemas Integrados | J80: Por Programa Académico
G81: Autoevaluación y Acreditación | J81: Por área
G82: Comunicaciones | J82: Por Laboratorio
G83: Formación y Aprendizaje | J83: Otros
G84: Ciencia, Tecnología e Innovación | J84: No Aplica
G85: Interacción Social Universitaria
G86: Bienestar Universitario
G87: Admisiones y Registro
G88: Graduados
G89: Dialogando con el Mundo
G90: Talento Humano
G91: Jurídica
G92: Financiera
G93: Sistemas y Tecnología
G94: Bienes y Servicios
G95: Documental
G96: Apoyo Académico
G97: Control Interno
G98: Control Disciplinario
G99: Servicio de Atención al Ciudadano

Sheet MCT-2 (hidden)
B2: REGRESAR
E5: MACROPROCESO ESTRATÉGICO | M5: CÓDIGO: ESGr027
E6: PROCESO GESTIÓN SISTEMAS INTEGRADOS | M6: VERSIÓN: 7
E7: MATRIZ DE MEDICIÓN Y SEGUIMIENTO A LOS PROCESOS DE GESTIÓN | M7: VIGENCIA: 2020-03-20
M8: PÁGINA: 1 de 1
C10: FICHA DE INDICADOR
C12: MACROPROCESO | E12: Misional | I12: NOMBRE DEL INDICADOR | K12: Investigadores de la Universidad reconocidos ante Colciencias
C13: PROCESO GESTIÓN | E13: Ciencia, Tecnología e Innovación
C14: RESPONSABLE DE MEDICIÓN | E14: Director(a) de Investigación Universitaria
C16: 1. COMPORTAMIENTO DE INDICADOR
C17: CLASIFICACIÓN DE LA MEDICIÓN | E17: 2 | H17: TIPO DE INDICADOR | J17: Eficiencia | L17: META | N17: 55
C18: FÓRMULA | E18: Número ponderado de investigadores de la Universidad sujeto a convocatoria de Colciencias | L18: UNIDAD DE MEDIDA | N18: Número de investigadores
C20: TENDENCIA | E20: Positiva | H20: NIVEL DE SEGREGACIÓN * | J20: No Aplica | L20: ESCALA
L21: Deficiente | M21: Aceptable | N21: Bueno | O21: Excelente
L22: 0 - 28 | M22: 29 - 43 | N22: 44 - 55 | O22: >55
C23: ORIGEN DE DATOS | E23: Pagina Colciencias, CvLAC y Nómina de la Universidad de Cundinamarca | H23: FRECUENCIA DE LA MEDICIÓN | J23: SEMESTRAL | L23: FRECUENCIA DE RESULTADO | N23: ANUAL
C26: RESULTADOS
J27: ANÁLISIS DE DATOS Los datos indican un crecimiento en los acompañamientos entre el primer trimestre y el segundo trimestre de mas del 100%, por la contratación del personal de la oficina En el tercer trimestre se muestra un decrecimiento con respecto al periodo anterior por las vacaciones a mitad de año, las personas se reintegraron entre julio y agosto.
J28: Para el IPA-2021 se cuenta con 54 docentes categorizados ante el Minciecias de acuerdo a la ultima convocatoria 833 de 2018, relacionados así: Investigador Senior (IS): 3 Investigador Asociado (I) : 9 Investigador Junior (IJ): 42
J34: ACCIÓN FORMULADA Reformular la meta para el próximo año dependiendo de los recursos asignados.
J35: N/A
J41: RESPONSABLE
J42: =E14 -> Director(a) de Investigación Universitaria
C45: PERIODO DE EVALUACIÓN
C46: MES | D46: =IF(J23="MENSUAL","ENERO",IF(J23="TRIMESTRAL","MARZO",IF(J23="SEMESTRAL","JUNIO",IF(J23="ANUAL",YEAR(TODAY()),"")))) -> JUNIO | E46: =IF(J23="MENSUAL","FEBRERO",IF(J23="TRIMESTRAL","JUNIO",IF(J23="SEMESTRAL","DICIEMBRE",""))) -> DICIEMBRE | F46: =IF(J23="MENSUAL","MARZO",IF(J23="TRIMESTRAL","SEPTIEMBRE","")) ->  | G46: =IF(J23="MENSUAL","ABRIL",IF(J23="TRIMESTRAL","DICIEMBRE","")) ->  | H46: =IF(J23="MENSUAL","MAYO","") ->  | I46: =IF(J23="MENSUAL","JUNIO","") ->  | J46: =IF(J23="MENSUAL","JULIO","") ->  | K46: =IF(J23="MENSUAL","AGOSTO","") ->  | L46: =IF(J23="MENSUAL","SEPTIEMBRE","") ->  | M46: =IF(J23="MENSUAL","OCTUBRE","") ->  | N46: =IF(J23="MENSUAL","NOVIEMBRE","") ->  | O46: =IF(J23="MENSUAL","DICIEMBRE","") -> 
C47: =E18 -> Número ponderado de investigadores de la Universidad sujeto a convocatoria de Colciencias | D47: 54
C48: =G19 -> 0
C49: VALOR | D49: =IFERROR(IF($E$17=1,D47/D48,IF($E$17=2,D47,"")),"") -> 54 | E49: 0 | F49: 0 | G49: 0 | H49: 0 | I49: 0 | J49: 0 | K49: 0 | L49: 0 | M49: 0 | N49: 0 | O49: 0
C50: META PONDERADA | D50: =IF(AND(N23="ANUAL",J23="MENSUAL"),N17/12,IF(AND(N23="ANUAL",J23="TRIMESTRAL"),N17/4,IF(AND(N23="ANUAL",J23="SEMESTRAL"),N17/2,IF(AND(N23="ANUAL",J23="ANUAL"),N17,IF(AND(N23="SEMESTRAL",J23="MENSUAL"),N17/6,IF(AND(N23="SEMESTRAL",J23="TRIMESTRAL"),N17/2,IF(AND(N23="SEMESTRAL",J23="SEMESTRAL"),N17,IF(AND(N23="SEMESTRAL",J23="ANUAL"),"REVISAR FRECUENCIAS",IF(AND(N23="TRIMESTRAL",J23="MENSUAL"),N17/3,IF(AND(N23="TRIMESTRAL",J23="TRIMESTRAL"),N17,IF(AND(N23="TRIMESTRAL",J23="SEMESTRAL"),"REVISAR FRECUENCIAS",IF(AND(N23="TRIMESTRAL",J23="ANUAL"),"REVISAR FRECUENCIAS",IF(AND(N23="MENSUAL",J23="MENSUAL"),N17,IF(AND(N23="MENSUAL",J23="TRIMESTRAL"),"REVISAR FRECUENCIAS",IF(AND(N23="MENSUAL",J23="SEMESTRAL"),"REVISAR FRECUENCIAS",IF(AND(N23="MENSUAL",J23="ANUAL"),"REVISAR FRECUENCIAS","")))))))))))))))) -> 27.5 | E50: =IF(AND(N23="ANUAL",J23="MENSUAL"),N17/12+D50,IF(AND(N23="ANUAL",J23="TRIMESTRAL"),N17/4+D50,IF(AND(N23="ANUAL",J23="SEMESTRAL"),N17/2+D50,IF(AND(N23="SEMESTRAL",J23="MENSUAL"),N17/6+D50,IF(AND(N23="SEMESTRAL",J23="TRIMESTRAL"),N17/2+D50,IF(AND(N23="SEMESTRAL",J23="SEMESTRAL"),N17,IF(AND(N23="TRIMESTRAL",J23="MENSUAL"),N17/3+D50,IF(AND(N23="TRIMESTRAL",J23="TRIMESTRAL"),N17,IF(AND(N23="MENSUAL",J23="MENSUAL"),N17,""))))))))) -> 55 | F50: =IF(AND(N23="ANUAL",J23="MENSUAL"),N17/12+E50,IF(AND(N23="ANUAL",J23="TRIMESTRAL"),N17/4+E50,IF(AND(N23="SEMESTRAL",J23="MENSUAL"),N17/6+E50,IF(AND(N23="SEMESTRAL",J23="TRIMESTRAL"),N17/2,IF(AND(N23="TRIMESTRAL",J23="MENSUAL"),N17/3+E50,IF(AND(N23="TRIMESTRAL",J23="TRIMESTRAL"),N17,IF(AND(N23="MENSUAL",J23="MENSUAL"),N17,""))))))) ->  | G50: =IF(AND(N23="ANUAL",J23="MENSUAL"),N17/12+F50,IF(AND(N23="ANUAL",J23="TRIMESTRAL"),N17/4+F50,IF(AND(N23="SEMESTRAL",J23="MENSUAL"),N17/6+F50,IF(AND(N23="SEMESTRAL",J23="TRIMESTRAL"),N17/2+F50,IF(AND(N23="TRIMESTRAL",J23="MENSUAL"),N17/3,IF(AND(N23="TRIMESTRAL",J23="TRIMESTRAL"),N17,IF(AND(N23="MENSUAL",J23="MENSUAL"),N17,""))))))) ->  | H50: =IF(AND($N$23="ANUAL",$J$23="MENSUAL"),$N$17/12+G50,IF(AND(N23="SEMESTRAL",J23="MENSUAL"),N17/6+G50,IF(AND(N23="TRIMESTRAL",J23="MENSUAL"),N17/3+G50,IF(AND(N23="MENSUAL",J23="MENSUAL"),N17,"")))) ->  | I50: =IF(AND($N$23="ANUAL",$J$23="MENSUAL"),$N$17/12+H50,IF(AND(N23="SEMESTRAL",J23="MENSUAL"),N17/6+H50,IF(AND(N23="TRIMESTRAL",J23="MENSUAL"),N17/3+H50,IF(AND(N23="MENSUAL",J23="MENSUAL"),N17,"")))) ->  | J50: =IF(AND($N$23="ANUAL",$J$23="MENSUAL"),$N$17/12+I50,IF(AND(N23="SEMESTRAL",J23="MENSUAL"),N17/6,IF(AND(N23="TRIMESTRAL",J23="MENSUAL"),N17/3,IF(AND(N23="MENSUAL",J23="MENSUAL"),N17,"")))) ->  | K50: =IF(AND($N$23="ANUAL",$J$23="MENSUAL"),$N$17/12+J50,IF(AND(N23="SEMESTRAL",J23="MENSUAL"),N17/6+J50,IF(AND(N23="TRIMESTRAL",J23="MENSUAL"),N17/3+J50,IF(AND(N23="MENSUAL",J23="MENSUAL"),N17,"")))) ->  | L50: =IF(AND($N$23="ANUAL",$J$23="MENSUAL"),$N$17/12+K50,IF(AND(N23="SEMESTRAL",J23="MENSUAL"),N17/6+K50,IF(AND(N23="TRIMESTRAL",J23="MENSUAL"),N17/3+K50,IF(AND(N23="MENSUAL",J23="MENSUAL"),N17,"")))) ->  | M50: =IF(AND($N$23="ANUAL",$J$23="MENSUAL"),$N$17/12+L50,IF(AND(N23="SEMESTRAL",J23="MENSUAL"),N17/6+L50,IF(AND(N23="TRIMESTRAL",J23="MENSUAL"),N17/3,IF(AND(N23="MENSUAL",J23="MENSUAL"),N17,"")))) ->  | N50: =IF(AND($N$23="ANUAL",$J$23="MENSUAL"),$N$17/12+M50,IF(AND(N23="SEMESTRAL",J23="MENSUAL"),N17/6+M50,IF(AND(N23="TRIMESTRAL",J23="MENSUAL"),N17/3+M50,IF(AND(N23="MENSUAL",J23="MENSUAL"),N17,"")))) ->  | O50: =IF(AND($N$23="ANUAL",$J$23="MENSUAL"),$N$17/12+N50,IF(AND(N23="SEMESTRAL",J23="MENSUAL"),N17/6+N50,IF(AND(N23="TRIMESTRAL",J23="MENSUAL"),N17/3+N50,IF(AND(N23="MENSUAL",J23="MENSUAL"),N17,"")))) -> 
C52: NIVEL DE SEGREGACIÓN *
C53: UNIDAD SEGREGADA (Ej. Facultad, Programa Académico, Área) | G53: RESULTADO | K53: ANÁLISIS DE DATOS SEGREGADO
G73: Estratégico | J73: Eficacia
G74: Misional | J74: Eficiencia
G75: Apoyo | J75: Acreditación
G76: Seguimiento, Medición, Análisis y Evaluación | J76: Positiva
G77: Direccionamiento Estratégico | J77: Negativa
G78: Planeación Institucional | J78: Por Unidad Regional
G79: Proyectos Especiales y Relaciones Interinstitucionales | J79: Por Facultad
G80: Sistemas Integrados | J80: Por Programa Académico
G81: Autoevaluación y Acreditación | J81: Por área
G82: Comunicaciones | J82: Por Laboratorio
G83: Formación y Aprendizaje | J83: Otros
G84: Ciencia, Tecnología e Innovación | J84: No Aplica
G85: Interacción Social Universitaria
G86: Bienestar Universitario
G87: Admisiones y Registro
G88: Graduados
G89: Dialogando con el Mundo
G90: Talento Humano
G91: Jurídica
G92: Financiera
G93: Sistemas y Tecnología
G94: Bienes y Servicios
G95: Documental
G96: Apoyo Académico
G97: Control Interno
G98: Control Disciplinario
G99: Servicio de Atención al Ciudadano

Sheet MCT-3 (hidden)
B2: REGRESAR
E5: MACROPROCESO ESTRATÉGICO | M5: CÓDIGO: ESGr027
E6: PROCESO GESTIÓN SISTEMAS INTEGRADOS | M6: VERSIÓN: 7
E7: MATRIZ DE MEDICIÓN Y SEGUIMIENTO A LOS PROCESOS DE GESTIÓN | M7: VIGENCIA: 2020-03-20
M8: PÁGINA: 1 de 1
C10: FICHA DE INDICADOR
C12: MACROPROCESO | E12: Misional | I12: NOMBRE DEL INDICADOR | K12: Grupos de investigación avalados institucionalmente y registrados ante Colciencias
C13: PROCESO GESTIÓN | E13: Ciencia, Tecnología e Innovación
C14: RESPONSABLE DE MEDICIÓN | E14: Director(a) de Investigación Universitaria
C16: 1. COMPORTAMIENTO DE INDICADOR
C17: CLASIFICACIÓN DE LA MEDICIÓN | E17: 2 | H17: TIPO DE INDICADOR | J17: Eficiencia | L17: META | N17: 30
C18: FÓRMULA | E18: Número ponderado de Grupos de la Universidad sujeto a convocatoria de Colciencias | L18: UNIDAD DE MEDIDA | N18: Número de grupos
C20: TENDENCIA | E20: Positiva | H20: NIVEL DE SEGREGACIÓN * | J20: No Aplica | L20: ESCALA
L21: Deficiente | M21: Aceptable | N21: Bueno | O21: Excelente
L22: 0 - 15 | M22: 16 - 22 | N22: 23 - 30 | O22: >30
C23: ORIGEN DE DATOS | E23: Página Colciencias, GrupLAC | H23: FRECUENCIA DE LA MEDICIÓN | J23: SEMESTRAL | L23: FRECUENCIA DE RESULTADO | N23: ANUAL
C26: RESULTADOS
J27: ANÁLISIS DE DATOS Los datos indican un crecimiento en los acompañamientos entre el primer trimestre y el segundo trimestre de mas del 100%, por la contratación del personal de la oficina En el tercer trimestre se muestra un decrecimiento con respecto al periodo anterior por las vacaciones a mitad de año, las personas se reintegraron entre julio y agosto.
J28: la Universidad de Cundinamarca, Actualmente cuenta con 33 grupos categorizados por Minciencias de acuerdo a resultados convocatoria 833 de 2018, los cuales se clasifican así: Categoría A1: 1 Categoría A: 1 Categoría B: 2 Categoría C: 29 Reconocido: 1
J34: ACCIÓN FORMULADA Reformular la meta para el próximo año dependiendo de los recursos asignados.
J35: N/A
J41: RESPONSABLE
J42: =E14 -> Director(a) de Investigación Universitaria
C45: PERIODO DE EVALUACIÓN
C46: MES | D46: =IF(J23="MENSUAL","ENERO",IF(J23="TRIMESTRAL","MARZO",IF(J23="SEMESTRAL","JUNIO",IF(J23="ANUAL",YEAR(TODAY()),"")))) -> JUNIO | E46: =IF(J23="MENSUAL","FEBRERO",IF(J23="TRIMESTRAL","JUNIO",IF(J23="SEMESTRAL","DICIEMBRE",""))) -> DICIEMBRE | F46: =IF(J23="MENSUAL","MARZO",IF(J23="TRIMESTRAL","SEPTIEMBRE","")) ->  | G46: =IF(J23="MENSUAL","ABRIL",IF(J23="TRIMESTRAL","DICIEMBRE","")) ->  | H46: =IF(J23="MENSUAL","MAYO","") ->  | I46: =IF(J23="MENSUAL","JUNIO","") ->  | J46: =IF(J23="MENSUAL","JULIO","") ->  | K46: =IF(J23="MENSUAL","AGOSTO","") ->  | L46: =IF(J23="MENSUAL","SEPTIEMBRE","") ->  | M46: =IF(J23="MENSUAL","OCTUBRE","") ->  | N46: =IF(J23="MENSUAL","NOVIEMBRE","") ->  | O46: =IF(J23="MENSUAL","DICIEMBRE","") -> 
C47: =E18 -> Número ponderado de Grupos de la Universidad sujeto a convocatoria de Colciencias | D47: 33
C48: =G19 -> 0
C49: VALOR | D49: =IFERROR(IF($E$17=1,D47/D48,IF($E$17=2,D47,"")),"") -> 33 | E49: 0 | F49: 0 | G49: 0 | H49: 0 | I49: 0 | J49: 0 | K49: 0 | L49: 0 | M49: 0 | N49: 0 | O49: 0
C50: META PONDERADA | D50: =IF(AND(N23="ANUAL",J23="MENSUAL"),N17/12,IF(AND(N23="ANUAL",J23="TRIMESTRAL"),N17/4,IF(AND(N23="ANUAL",J23="SEMESTRAL"),N17/2,IF(AND(N23="ANUAL",J23="ANUAL"),N17,IF(AND(N23="SEMESTRAL",J23="MENSUAL"),N17/6,IF(AND(N23="SEMESTRAL",J23="TRIMESTRAL"),N17/2,IF(AND(N23="SEMESTRAL",J23="SEMESTRAL"),N17,IF(AND(N23="SEMESTRAL",J23="ANUAL"),"REVISAR FRECUENCIAS",IF(AND(N23="TRIMESTRAL",J23="MENSUAL"),N17/3,IF(AND(N23="TRIMESTRAL",J23="TRIMESTRAL"),N17,IF(AND(N23="TRIMESTRAL",J23="SEMESTRAL"),"REVISAR FRECUENCIAS",IF(AND(N23="TRIMESTRAL",J23="ANUAL"),"REVISAR FRECUENCIAS",IF(AND(N23="MENSUAL",J23="MENSUAL"),N17,IF(AND(N23="MENSUAL",J23="TRIMESTRAL"),"REVISAR FRECUENCIAS",IF(AND(N23="MENSUAL",J23="SEMESTRAL"),"REVISAR FRECUENCIAS",IF(AND(N23="MENSUAL",J23="ANUAL"),"REVISAR FRECUENCIAS","")))))))))))))))) -> 15 | E50: =IF(AND(N23="ANUAL",J23="MENSUAL"),N17/12+D50,IF(AND(N23="ANUAL",J23="TRIMESTRAL"),N17/4+D50,IF(AND(N23="ANUAL",J23="SEMESTRAL"),N17/2+D50,IF(AND(N23="SEMESTRAL",J23="MENSUAL"),N17/6+D50,IF(AND(N23="SEMESTRAL",J23="TRIMESTRAL"),N17/2+D50,IF(AND(N23="SEMESTRAL",J23="SEMESTRAL"),N17,IF(AND(N23="TRIMESTRAL",J23="MENSUAL"),N17/3+D50,IF(AND(N23="TRIMESTRAL",J23="TRIMESTRAL"),N17,IF(AND(N23="MENSUAL",J23="MENSUAL"),N17,""))))))))) -> 30 | F50: =IF(AND(N23="ANUAL",J23="MENSUAL"),N17/12+E50,IF(AND(N23="ANUAL",J23="TRIMESTRAL"),N17/4+E50,IF(AND(N23="SEMESTRAL",J23="MENSUAL"),N17/6+E50,IF(AND(N23="SEMESTRAL",J23="TRIMESTRAL"),N17/2,IF(AND(N23="TRIMESTRAL",J23="MENSUAL"),N17/3+E50,IF(AND(N23="TRIMESTRAL",J23="TRIMESTRAL"),N17,IF(AND(N23="MENSUAL",J23="MENSUAL"),N17,""))))))) ->  | G50: =IF(AND(N23="ANUAL",J23="MENSUAL"),N17/12+F50,IF(AND(N23="ANUAL",J23="TRIMESTRAL"),N17/4+F50,IF(AND(N23="SEMESTRAL",J23="MENSUAL"),N17/6+F50,IF(AND(N23="SEMESTRAL",J23="TRIMESTRAL"),N17/2+F50,IF(AND(N23="TRIMESTRAL",J23="MENSUAL"),N17/3,IF(AND(N23="TRIMESTRAL",J23="TRIMESTRAL"),N17,IF(AND(N23="MENSUAL",J23="MENSUAL"),N17,""))))))) ->  | H50: =IF(AND($N$23="ANUAL",$J$23="MENSUAL"),$N$17/12+G50,IF(AND(N23="SEMESTRAL",J23="MENSUAL"),N17/6+G50,IF(AND(N23="TRIMESTRAL",J23="MENSUAL"),N17/3+G50,IF(AND(N23="MENSUAL",J23="MENSUAL"),N17,"")))) ->  | I50: =IF(AND($N$23="ANUAL",$J$23="MENSUAL"),$N$17/12+H50,IF(AND(N23="SEMESTRAL",J23="MENSUAL"),N17/6+H50,IF(AND(N23="TRIMESTRAL",J23="MENSUAL"),N17/3+H50,IF(AND(N23="MENSUAL",J23="MENSUAL"),N17,"")))) ->  | J50: =IF(AND($N$23="ANUAL",$J$23="MENSUAL"),$N$17/12+I50,IF(AND(N23="SEMESTRAL",J23="MENSUAL"),N17/6,IF(AND(N23="TRIMESTRAL",J23="MENSUAL"),N17/3,IF(AND(N23="MENSUAL",J23="MENSUAL"),N17,"")))) ->  | K50: =IF(AND($N$23="ANUAL",$J$23="MENSUAL"),$N$17/12+J50,IF(AND(N23="SEMESTRAL",J23="MENSUAL"),N17/6+J50,IF(AND(N23="TRIMESTRAL",J23="MENSUAL"),N17/3+J50,IF(AND(N23="MENSUAL",J23="MENSUAL"),N17,"")))) ->  | L50: =IF(AND($N$23="ANUAL",$J$23="MENSUAL"),$N$17/12+K50,IF(AND(N23="SEMESTRAL",J23="MENSUAL"),N17/6+K50,IF(AND(N23="TRIMESTRAL",J23="MENSUAL"),N17/3+K50,IF(AND(N23="MENSUAL",J23="MENSUAL"),N17,"")))) ->  | M50: =IF(AND($N$23="ANUAL",$J$23="MENSUAL"),$N$17/12+L50,IF(AND(N23="SEMESTRAL",J23="MENSUAL"),N17/6+L50,IF(AND(N23="TRIMESTRAL",J23="MENSUAL"),N17/3,IF(AND(N23="MENSUAL",J23="MENSUAL"),N17,"")))) ->  | N50: =IF(AND($N$23="ANUAL",$J$23="MENSUAL"),$N$17/12+M50,IF(AND(N23="SEMESTRAL",J23="MENSUAL"),N17/6+M50,IF(AND(N23="TRIMESTRAL",J23="MENSUAL"),N17/3+M50,IF(AND(N23="MENSUAL",J23="MENSUAL"),N17,"")))) ->  | O50: =IF(AND($N$23="ANUAL",$J$23="MENSUAL"),$N$17/12+N50,IF(AND(N23="SEMESTRAL",J23="MENSUAL"),N17/6+N50,IF(AND(N23="TRIMESTRAL",J23="MENSUAL"),N17/3+N50,IF(AND(N23="MENSUAL",J23="MENSUAL"),N17,"")))) -> 
C52: NIVEL DE SEGREGACIÓN *
C53: UNIDAD SEGREGADA (Ej. Facultad, Programa Académico, Área) | G53: RESULTADO | K53: ANÁLISIS DE DATOS SEGREGADO
G73: Estratégico | J73: Eficacia
G74: Misional | J74: Eficiencia
G75: Apoyo | J75: Acreditación
G76: Seguimiento, Medición, Análisis y Evaluación | J76: Positiva
G77: Direccionamiento Estratégico | J77: Negativa
G78: Planeación Institucional | J78: Por Unidad Regional
G79: Proyectos Especiales y Relaciones Interinstitucionales | J79: Por Facultad
G80: Sistemas Integrados | J80: Por Programa Académico
G81: Autoevaluación y Acreditación | J81: Por área
G82: Comunicaciones | J82: Por Laboratorio
G83: Formación y Aprendizaje | J83: Otros
G84: Ciencia, Tecnología e Innovación | J84: No Aplica
G85: Interacción Social Universitaria
G86: Bienestar Universitario
G87: Admisiones y Registro
G88: Graduados
G89: Dialogando con el Mundo
G90: Talento Humano
G91: Jurídica
G92: Financiera
G93: Sistemas y Tecnología
G94: Bienes y Servicios
G95: Documental
G96: Apoyo Académico
G97: Control Interno
G98: Control Disciplinario
G99: Servicio de Atención al Ciudadano

Sheet MCT-4 (hidden)
B2: REGRESAR
E5: MACROPROCESO ESTRATÉGICO | M5: CÓDIGO: ESGr027
E6: PROCESO GESTIÓN SISTEMAS INTEGRADOS | M6: VERSIÓN: 7
E7: MATRIZ DE MEDICIÓN Y SEGUIMIENTO A LOS PROCESOS DE GESTIÓN | M7: VIGENCIA: 2020-03-20
M8: PÁGINA: 1 de 1
C10: FICHA DE INDICADOR
C12: MACROPROCESO | E12: Misional | I12: NOMBRE DEL INDICADOR | K12: Publicación de capítulos de libros
C13: PROCESO GESTIÓN | E13: Ciencia, Tecnología e Innovación
C14: RESPONSABLE DE MEDICIÓN | E14: Director(a) de Investigación Universitaria
C16: 1. COMPORTAMIENTO DE INDICADOR
C17: CLASIFICACIÓN DE LA MEDICIÓN | E17: 2 | H17: TIPO DE INDICADOR | J17: Eficiencia | L17: META | N17: 35
C18: FÓRMULA | E18: Número de capítulos de libros publicados en el periodo | L18: UNIDAD DE MEDIDA | N18: Número capítulos de libro
C20: TENDENCIA | E20: Positiva | H20: NIVEL DE SEGREGACIÓN * | J20: No Aplica | L20: ESCALA
L21: Deficiente | M21: Aceptable | N21: Bueno | O21: Excelente
L22: 0 - 20 | M22: 21 - 29 | N22: 30 - 35 | O22: >35
C23: ORIGEN DE DATOS | E23: GrupLAC Verificador InstituLAC | H23: FRECUENCIA DE LA MEDICIÓN | J23: SEMESTRAL | L23: FRECUENCIA DE RESULTADO | N23: ANUAL
C26: RESULTADOS
J27: ANÁLISIS DE DATOS Los datos indican un crecimiento en los acompañamientos entre el primer trimestre y el segundo trimestre de mas del 100%, por la contratación del personal de la oficina En el tercer trimestre se muestra un decrecimiento con respecto al periodo anterior por las vacaciones a mitad de año, las personas se reintegraron entre julio y agosto.
J28: Para el IPA-2021 se encuentran publicados 06 capítulos de libros reportados a atraves del GrupLAC, los cuales pertenecen a la Facultad de Ingeniería. se tiene previsto que para el IIPA-2021 se realice la publicación de los demás capítulos de libros proyectados por los Grupos de Investigación. Los docentes están generando productos de Ciencia tecnología e innovación que se encuentran en proceso de aprobación, perfeccionamiento y finalización para darse a conocer en el IIPA de 2021.
J34: ACCIÓN FORMULADA Reformular la meta para el próximo año dependiendo de los recursos asignados.
J35: * Solicitar a los Lideres de Grupos de Investigación el reporte de la productividad en cada uno de los GrupLAC * Realizar seguimiento al reporte de productividad por los grupos de investigación.
J41: RESPONSABLE
J42: =E14 -> Director(a) de Investigación Universitaria
C45: PERIODO DE EVALUACIÓN
C46: MES | D46: =IF(J23="MENSUAL","ENERO",IF(J23="TRIMESTRAL","MARZO",IF(J23="SEMESTRAL","JUNIO",IF(J23="ANUAL",YEAR(TODAY()),"")))) -> JUNIO | E46: =IF(J23="MENSUAL","FEBRERO",IF(J23="TRIMESTRAL","JUNIO",IF(J23="SEMESTRAL","DICIEMBRE",""))) -> DICIEMBRE | F46: =IF(J23="MENSUAL","MARZO",IF(J23="TRIMESTRAL","SEPTIEMBRE","")) ->  | G46: =IF(J23="MENSUAL","ABRIL",IF(J23="TRIMESTRAL","DICIEMBRE","")) ->  | H46: =IF(J23="MENSUAL","MAYO","") ->  | I46: =IF(J23="MENSUAL","JUNIO","") ->  | J46: =IF(J23="MENSUAL","JULIO","") ->  | K46: =IF(J23="MENSUAL","AGOSTO","") ->  | L46: =IF(J23="MENSUAL","SEPTIEMBRE","") ->  | M46: =IF(J23="MENSUAL","OCTUBRE","") ->  | N46: =IF(J23="MENSUAL","NOVIEMBRE","") ->  | O46: =IF(J23="MENSUAL","DICIEMBRE","") -> 
C47: =E18 -> Número de capítulos de libros publicados en el periodo | D47: 6
C48: =G19 -> 0
C49: VALOR | D49: =IFERROR(IF($E$17=1,D47/D48,IF($E$17=2,D47,"")),"") -> 6 | E49: 0 | F49: 0 | G49: 0 | H49: 0 | I49: 0 | J49: 0 | K49: 0 | L49: 0 | M49: 0 | N49: 0 | O49: 0
C50: META PONDERADA | D50: =IF(AND(N23="ANUAL",J23="MENSUAL"),N17/12,IF(AND(N23="ANUAL",J23="TRIMESTRAL"),N17/4,IF(AND(N23="ANUAL",J23="SEMESTRAL"),N17/2,IF(AND(N23="ANUAL",J23="ANUAL"),N17,IF(AND(N23="SEMESTRAL",J23="MENSUAL"),N17/6,IF(AND(N23="SEMESTRAL",J23="TRIMESTRAL"),N17/2,IF(AND(N23="SEMESTRAL",J23="SEMESTRAL"),N17,IF(AND(N23="SEMESTRAL",J23="ANUAL"),"REVISAR FRECUENCIAS",IF(AND(N23="TRIMESTRAL",J23="MENSUAL"),N17/3,IF(AND(N23="TRIMESTRAL",J23="TRIMESTRAL"),N17,IF(AND(N23="TRIMESTRAL",J23="SEMESTRAL"),"REVISAR FRECUENCIAS",IF(AND(N23="TRIMESTRAL",J23="ANUAL"),"REVISAR FRECUENCIAS",IF(AND(N23="MENSUAL",J23="MENSUAL"),N17,IF(AND(N23="MENSUAL",J23="TRIMESTRAL"),"REVISAR FRECUENCIAS",IF(AND(N23="MENSUAL",J23="SEMESTRAL"),"REVISAR FRECUENCIAS",IF(AND(N23="MENSUAL",J23="ANUAL"),"REVISAR FRECUENCIAS","")))))))))))))))) -> 17.5 | E50: =IF(AND(N23="ANUAL",J23="MENSUAL"),N17/12+D50,IF(AND(N23="ANUAL",J23="TRIMESTRAL"),N17/4+D50,IF(AND(N23="ANUAL",J23="SEMESTRAL"),N17/2+D50,IF(AND(N23="SEMESTRAL",J23="MENSUAL"),N17/6+D50,IF(AND(N23="SEMESTRAL",J23="TRIMESTRAL"),N17/2+D50,IF(AND(N23="SEMESTRAL",J23="SEMESTRAL"),N17,IF(AND(N23="TRIMESTRAL",J23="MENSUAL"),N17/3+D50,IF(AND(N23="TRIMESTRAL",J23="TRIMESTRAL"),N17,IF(AND(N23="MENSUAL",J23="MENSUAL"),N17,""))))))))) -> 35 | F50: =IF(AND(N23="ANUAL",J23="MENSUAL"),N17/12+E50,IF(AND(N23="ANUAL",J23="TRIMESTRAL"),N17/4+E50,IF(AND(N23="SEMESTRAL",J23="MENSUAL"),N17/6+E50,IF(AND(N23="SEMESTRAL",J23="TRIMESTRAL"),N17/2,IF(AND(N23="TRIMESTRAL",J23="MENSUAL"),N17/3+E50,IF(AND(N23="TRIMESTRAL",J23="TRIMESTRAL"),N17,IF(AND(N23="MENSUAL",J23="MENSUAL"),N17,""))))))) ->  | G50: =IF(AND(N23="ANUAL",J23="MENSUAL"),N17/12+F50,IF(AND(N23="ANUAL",J23="TRIMESTRAL"),N17/4+F50,IF(AND(N23="SEMESTRAL",J23="MENSUAL"),N17/6+F50,IF(AND(N23="SEMESTRAL",J23="TRIMESTRAL"),N17/2+F50,IF(AND(N23="TRIMESTRAL",J23="MENSUAL"),N17/3,IF(AND(N23="TRIMESTRAL",J23="TRIMESTRAL"),N17,IF(AND(N23="MENSUAL",J23="MENSUAL"),N17,""))))))) ->  | H50: =IF(AND($N$23="ANUAL",$J$23="MENSUAL"),$N$17/12+G50,IF(AND(N23="SEMESTRAL",J23="MENSUAL"),N17/6+G50,IF(AND(N23="TRIMESTRAL",J23="MENSUAL"),N17/3+G50,IF(AND(N23="MENSUAL",J23="MENSUAL"),N17,"")))) ->  | I50: =IF(AND($N$23="ANUAL",$J$23="MENSUAL"),$N$17/12+H50,IF(AND(N23="SEMESTRAL",J23="MENSUAL"),N17/6+H50,IF(AND(N23="TRIMESTRAL",J23="MENSUAL"),N17/3+H50,IF(AND(N23="MENSUAL",J23="MENSUAL"),N17,"")))) ->  | J50: =IF(AND($N$23="ANUAL",$J$23="MENSUAL"),$N$17/12+I50,IF(AND(N23="SEMESTRAL",J23="MENSUAL"),N17/6,IF(AND(N23="TRIMESTRAL",J23="MENSUAL"),N17/3,IF(AND(N23="MENSUAL",J23="MENSUAL"),N17,"")))) ->  | K50: =IF(AND($N$23="ANUAL",$J$23="MENSUAL"),$N$17/12+J50,IF(AND(N23="SEMESTRAL",J23="MENSUAL"),N17/6+J50,IF(AND(N23="TRIMESTRAL",J23="MENSUAL"),N17/3+J50,IF(AND(N23="MENSUAL",J23="MENSUAL"),N17,"")))) ->  | L50: =IF(AND($N$23="ANUAL",$J$23="MENSUAL"),$N$17/12+K50,IF(AND(N23="SEMESTRAL",J23="MENSUAL"),N17/6+K50,IF(AND(N23="TRIMESTRAL",J23="MENSUAL"),N17/3+K50,IF(AND(N23="MENSUAL",J23="MENSUAL"),N17,"")))) ->  | M50: =IF(AND($N$23="ANUAL",$J$23="MENSUAL"),$N$17/12+L50,IF(AND(N23="SEMESTRAL",J23="MENSUAL"),N17/6+L50,IF(AND(N23="TRIMESTRAL",J23="MENSUAL"),N17/3,IF(AND(N23="MENSUAL",J23="MENSUAL"),N17,"")))) ->  | N50: =IF(AND($N$23="ANUAL",$J$23="MENSUAL"),$N$17/12+M50,IF(AND(N23="SEMESTRAL",J23="MENSUAL"),N17/6+M50,IF(AND(N23="TRIMESTRAL",J23="MENSUAL"),N17/3+M50,IF(AND(N23="MENSUAL",J23="MENSUAL"),N17,"")))) ->  | O50: =IF(AND($N$23="ANUAL",$J$23="MENSUAL"),$N$17/12+N50,IF(AND(N23="SEMESTRAL",J23="MENSUAL"),N17/6+N50,IF(AND(N23="TRIMESTRAL",J23="MENSUAL"),N17/3+N50,IF(AND(N23="MENSUAL",J23="MENSUAL"),N17,"")))) -> 
C52: NIVEL DE SEGREGACIÓN *
C53: UNIDAD SEGREGADA (Ej. Facultad, Programa Académico, Área) | G53: RESULTADO | K53: ANÁLISIS DE DATOS SEGREGADO
G73: Estratégico | J73: Eficacia
G74: Misional | J74: Eficiencia
G75: Apoyo | J75: Acreditación
G76: Seguimiento, Medición, Análisis y Evaluación | J76: Positiva
G77: Direccionamiento Estratégico | J77: Negativa
G78: Planeación Institucional | J78: Por Unidad Regional
G79: Proyectos Especiales y Relaciones Interinstitucionales | J79: Por Facultad
G80: Sistemas Integrados | J80: Por Programa Académico
G81: Autoevaluación y Acreditación | J81: Por área
G82: Comunicaciones | J82: Por Laboratorio
G83: Formación y Aprendizaje | J83: Otros
G84: Ciencia, Tecnología e Innovación | J84: No Aplica
G85: Interacción Social Universitaria
G86: Bienestar Universitario
G87: Admisiones y Registro
G88: Graduados
G89: Dialogando con el Mundo
G90: Talento Humano
G91: Jurídica
G92: Financiera
G93: Sistemas y Tecnología
G94: Bienes y Servicios
G95: Documental
G96: Apoyo Académico
G97: Control Interno
G98: Control Disciplinario
G99: Servicio de Atención al Ciudadano

Sheet MCT-5 (hidden)
B2: REGRESAR
E5: MACROPROCESO ESTRATÉGICO | M5: CÓDIGO: ESGr027
E6: PROCESO GESTIÓN SISTEMAS INTEGRADOS | M6: VERSIÓN: 7
E7: MATRIZ DE MEDICIÓN Y SEGUIMIENTO A LOS PROCESOS DE GESTIÓN | M7: VIGENCIA: 2020-03-20
M8: PÁGINA: 1 de 1
C10: FICHA DE INDICADOR
C12: MACROPROCESO | E12: Misional | I12: NOMBRE DEL INDICADOR | K12: Resultados de investigación del programa
C13: PROCESO GESTIÓN | E13: Ciencia, Tecnología e Innovación
C14: RESPONSABLE DE MEDICIÓN | E14: Director(a) de Investigación Universitaria
C16: 1. COMPORTAMIENTO DE INDICADOR
C17: CLASIFICACIÓN DE LA MEDICIÓN | E17: 1 | H17: TIPO DE INDICADOR | J17: Eficacia | L17: META ANUAL | N17: 1
C18: FÓRMULA | E18: NUMERADOR | G18: Resultados de investigación del programa*100 | L18: UNIDAD DE MEDIDA | N18: Porcentual
E19: DENOMINADOR | G19: Total de resultados de investigación propuestos
C20: TENDENCIA | E20: Positiva | H20: NIVEL DE SEGREGACIÓN * | J20: Por programa académico | L20: ESCALA
L21: Deficiente | M21: Aceptable | N21: Bueno | O21: Excelente
L22: 0% - 70% | M22: 71% - 89% | N22: 90% - 100% | O22: N/A
C23: ORIGEN DE DATOS NUMERADOR | E23: Vinculación de estudiantes a la investigación | H23: FRECUENCIA DE LA MEDICIÓN | J23: SEMESTRAL | L23: FRECUENCIA DE RESULTADO | N23: ANUAL
C24: ORIGEN DE DATOS DENOMINADOR | E24: Base de datos de estudiantes
C26: RESULTADOS
J27: ANÁLISIS DE DATOS
J28: para el IPA-2021 se han publicado resultados de investigación 105 productos de 256 productos proyectados, se espera que para el IIPA-2020 se realice la publicación de los demás productos proyectados, lo que equivale a un 41% Los docentes están generando productos de Ciencia tecnología e innovación que se encuentran en proceso de aprobación, perfeccionamiento y finalización para darse a conocer en el IIPA de 2020, como ejemplo eventos y ponencias aplazados en el IPA que se desarrollaran de manera virtual en el IIPA de 2021.
J34: ACCIÓN FORMULADA
J35: * Solicitar a los Lideres de Grupos de Investigación el reporte de la productividad en cada uno de los GrupLAC * Realizar seguimiento al reporte de productividad por los grupos de investigación.
J41: RESPONSABLE
J42: =E14 -> Director(a) de Investigación Universitaria
C45: PERIODO DE EVALUACIÓN
C46: MES | D46: =IF(J23="MENSUAL","ENERO",IF(J23="TRIMESTRAL","MARZO",IF(J23="SEMESTRAL","JUNIO",IF(J23="ANUAL",YEAR(TODAY()),"")))) -> JUNIO | E46: =IF(J23="MENSUAL","FEBRERO",IF(J23="TRIMESTRAL","JUNIO",IF(J23="SEMESTRAL","DICIEMBRE",""))) -> DICIEMBRE | F46: =IF(J23="MENSUAL","MARZO",IF(J23="TRIMESTRAL","SEPTIEMBRE","")) ->  | G46: =IF(J23="MENSUAL","ABRIL",IF(J23="TRIMESTRAL","DICIEMBRE","")) ->  | H46: =IF(J23="MENSUAL","MAYO","") ->  | I46: =IF(J23="MENSUAL","JUNIO","") ->  | J46: =IF(J23="MENSUAL","JULIO","") ->  | K46: =IF(J23="MENSUAL","AGOSTO","") ->  | L46: =IF(J23="MENSUAL","SEPTIEMBRE","") ->  | M46: =IF(J23="MENSUAL","OCTUBRE","") ->  | N46: =IF(J23="MENSUAL","NOVIEMBRE","") ->  | O46: =IF(J23="MENSUAL","DICIEMBRE","") -> 
C47: =G18 -> Resultados de investigación del programa*100 | D47: 105
C48: =G19 -> Total de resultados de investigación propuestos | D48: 257 | E48: 257
C49: VALOR | D49: =IFERROR(IF($E$17=1,D47/D48,IF($E$17=2,D47,"")),"") -> 0.4085603113 | E49: 0
C50: META PONDERADA | D50: =IF(AND(N23="ANUAL",J23="MENSUAL"),N17/12,IF(AND(N23="ANUAL",J23="TRIMESTRAL"),N17/4,IF(AND(N23="ANUAL",J23="SEMESTRAL"),N17/2,IF(AND(N23="ANUAL",J23="ANUAL"),N17,IF(AND(N23="SEMESTRAL",J23="MENSUAL"),N17/6,IF(AND(N23="SEMESTRAL",J23="TRIMESTRAL"),N17/2,IF(AND(N23="SEMESTRAL",J23="SEMESTRAL"),N17,IF(AND(N23="SEMESTRAL",J23="ANUAL"),"REVISAR FRECUENCIAS",IF(AND(N23="TRIMESTRAL",J23="MENSUAL"),N17/3,IF(AND(N23="TRIMESTRAL",J23="TRIMESTRAL"),N17,IF(AND(N23="TRIMESTRAL",J23="SEMESTRAL"),"REVISAR FRECUENCIAS",IF(AND(N23="TRIMESTRAL",J23="ANUAL"),"REVISAR FRECUENCIAS",IF(AND(N23="MENSUAL",J23="MENSUAL"),N17,IF(AND(N23="MENSUAL",J23="TRIMESTRAL"),"REVISAR FRECUENCIAS",IF(AND(N23="MENSUAL",J23="SEMESTRAL"),"REVISAR FRECUENCIAS",IF(AND(N23="MENSUAL",J23="ANUAL"),"REVISAR FRECUENCIAS","")))))))))))))))) -> 0.5 | E50: =IF(AND(N23="ANUAL",J23="MENSUAL"),N17/12+D50,IF(AND(N23="ANUAL",J23="TRIMESTRAL"),N17/4+D50,IF(AND(N23="ANUAL",J23="SEMESTRAL"),N17/2+D50,IF(AND(N23="SEMESTRAL",J23="MENSUAL"),N17/6+D50,IF(AND(N23="SEMESTRAL",J23="TRIMESTRAL"),N17/2+D50,IF(AND(N23="SEMESTRAL",J23="SEMESTRAL"),N17,IF(AND(N23="TRIMESTRAL",J23="MENSUAL"),N17/3+D50,IF(AND(N23="TRIMESTRAL",J23="TRIMESTRAL"),N17,IF(AND(N23="MENSUAL",J23="MENSUAL"),N17,""))))))))) -> 1 | F50: =IF(AND(N23="ANUAL",J23="MENSUAL"),N17/12+E50,IF(AND(N23="ANUAL",J23="TRIMESTRAL"),N17/4+E50,IF(AND(N23="SEMESTRAL",J23="MENSUAL"),N17/6+E50,IF(AND(N23="SEMESTRAL",J23="TRIMESTRAL"),N17/2,IF(AND(N23="TRIMESTRAL",J23="MENSUAL"),N17/3+E50,IF(AND(N23="TRIMESTRAL",J23="TRIMESTRAL"),N17,IF(AND(N23="MENSUAL",J23="MENSUAL"),N17,""))))))) ->  | G50: =IF(AND(N23="ANUAL",J23="MENSUAL"),N17/12+F50,IF(AND(N23="ANUAL",J23="TRIMESTRAL"),N17/4+F50,IF(AND(N23="SEMESTRAL",J23="MENSUAL"),N17/6+F50,IF(AND(N23="SEMESTRAL",J23="TRIMESTRAL"),N17/2+F50,IF(AND(N23="TRIMESTRAL",J23="MENSUAL"),N17/3,IF(AND(N23="TRIMESTRAL",J23="TRIMESTRAL"),N17,IF(AND(N23="MENSUAL",J23="MENSUAL"),N17,""))))))) ->  | H50: =IF(AND($N$23="ANUAL",$J$23="MENSUAL"),$N$17/12+G50,IF(AND(N23="SEMESTRAL",J23="MENSUAL"),N17/6+G50,IF(AND(N23="TRIMESTRAL",J23="MENSUAL"),N17/3+G50,IF(AND(N23="MENSUAL",J23="MENSUAL"),N17,"")))) ->  | I50: =IF(AND($N$23="ANUAL",$J$23="MENSUAL"),$N$17/12+H50,IF(AND(N23="SEMESTRAL",J23="MENSUAL"),N17/6+H50,IF(AND(N23="TRIMESTRAL",J23="MENSUAL"),N17/3+H50,IF(AND(N23="MENSUAL",J23="MENSUAL"),N17,"")))) ->  | J50: =IF(AND($N$23="ANUAL",$J$23="MENSUAL"),$N$17/12+I50,IF(AND(N23="SEMESTRAL",J23="MENSUAL"),N17/6,IF(AND(N23="TRIMESTRAL",J23="MENSUAL"),N17/3,IF(AND(N23="MENSUAL",J23="MENSUAL"),N17,"")))) ->  | K50: =IF(AND($N$23="ANUAL",$J$23="MENSUAL"),$N$17/12+J50,IF(AND(N23="SEMESTRAL",J23="MENSUAL"),N17/6+J50,IF(AND(N23="TRIMESTRAL",J23="MENSUAL"),N17/3+J50,IF(AND(N23="MENSUAL",J23="MENSUAL"),N17,"")))) ->  | L50: =IF(AND($N$23="ANUAL",$J$23="MENSUAL"),$N$17/12+K50,IF(AND(N23="SEMESTRAL",J23="MENSUAL"),N17/6+K50,IF(AND(N23="TRIMESTRAL",J23="MENSUAL"),N17/3+K50,IF(AND(N23="MENSUAL",J23="MENSUAL"),N17,"")))) ->  | M50: =IF(AND($N$23="ANUAL",$J$23="MENSUAL"),$N$17/12+L50,IF(AND(N23="SEMESTRAL",J23="MENSUAL"),N17/6+L50,IF(AND(N23="TRIMESTRAL",J23="MENSUAL"),N17/3,IF(AND(N23="MENSUAL",J23="MENSUAL"),N17,"")))) ->  | N50: =IF(AND($N$23="ANUAL",$J$23="MENSUAL"),$N$17/12+M50,IF(AND(N23="SEMESTRAL",J23="MENSUAL"),N17/6+M50,IF(AND(N23="TRIMESTRAL",J23="MENSUAL"),N17/3+M50,IF(AND(N23="MENSUAL",J23="MENSUAL"),N17,"")))) ->  | O50: =IF(AND($N$23="ANUAL",$J$23="MENSUAL"),$N$17/12+N50,IF(AND(N23="SEMESTRAL",J23="MENSUAL"),N17/6+N50,IF(AND(N23="TRIMESTRAL",J23="MENSUAL"),N17/3+N50,IF(AND(N23="MENSUAL",J23="MENSUAL"),N17,"")))) -> 
C52: NIVEL DE SEGREGACIÓN *
C53: UNIDAD SEGREGADA (Ej. Facultad, Programa Académico, Área) | G53: RESULTADO | K53: ANÁLISIS DE DATOS SEGREGADO
C54: Ciencias Administrativas, Económicas y Contables | G54: 9 | K54: Se registraron 9 productos de investigación los cuales corresponden a: 6 Productos de Nuevo Conocimiento, 1 Productos de Desarrollo Tecnológico e Innovación, 1 Productos de Apropiación Social del Conocimiento, 1 Productos de Formación del Recurso Humano.
C55: Ciencias Agropecuarias | G55: 32 | K55: Se registraron 32 productos de investigación los cuales corresponden a: 3 Productos de Nuevo Conocimiento, 7 Productos de Apropiación Social del Conocimiento, 22 Productos de Formación del Recurso Humano.
C56: Ciencias de la Salud | G56: 0 | K56: Para este IPA-2021 no se registraron productos, se espera que su productividad se vea reflejada durante el IIPA-2021
C57: Ciencias del Deporte y la Educación Física | G57: 0 | K57: Para este IPA-2021 no se registraron productos, se espera que su productividad se vea reflejada durante el IIPA-2021
C58: Ciencias Sociales, Humanidades y Ciencias Políticas | G58: 3 | K58: Se registraron 3 productos de investigación los cuales corresponden a: 1 Productos de Nuevo Conocimiento, 1 Productos de Apropiación Social del Conocimiento, 1 Productos de Formación del Recurso Humano.
C59: Educación | G59: 10 | K59: Se registraron 10 productos de investigación los cuáles corresponden a: 4 Productos de Nuevo Conocimiento, 3 Productos de Apropiación Social del Conocimiento, 3 Productos de Formación del Recurso Humano
C60: Ingeniería | G60: 51 | K60: Se registraron 51 productos de investigación los cuáles corresponden a: 16 Productos de Nuevo Conocimiento, 28 Productos de Apropiación Social del Conocimiento, 7 Productos de Formación del Recurso Humano
G72: Estratégico | J72: Eficacia
G73: Misional | J73: Eficiencia
G74: Apoyo | J74: Acreditación
G75: Seguimiento, Medición, Análisis y Evaluación | J75: Positiva
G76: Direccionamiento Estratégico | J76: Negativa
G77: Planeación Institucional | J77: Por Unidad Regional
G78: Proyectos Especiales y Relaciones Interinstitucionales | J78: Por Facultad
G79: Sistemas Integrados | J79: Por Programa Académico
G80: Autoevaluación y Acreditación | J80: Por área
G81: Comunicaciones | J81: Por Laboratorio
G82: Formación y Aprendizaje | J82: Otros
G83: Ciencia, Tecnología e Innovación | J83: No Aplica
G84: Interacción Social Universitaria
G85: Bienestar Universitario
G86: Admisiones y Registro
G87: Graduados
G88: Dialogando con el Mundo
G89: Talento Humano
G90: Jurídica
G91: Financiera
G92: Sistemas y Tecnología
G93: Bienes y Servicios
G94: Documental
G95: Apoyo Académico
G96: Control Interno
G97: Control Disciplinario
G98: Servicio de Atención al Ciudadano

Sheet MCT-6 (hidden)
B2: REGRESAR
E5: MACROPROCESO ESTRATÉGICO | M5: CÓDIGO: ESGr027
E6: PROCESO GESTIÓN SISTEMAS INTEGRADOS | M6: VERSIÓN: 7
E7: MATRIZ DE MEDICIÓN Y SEGUIMIENTO A LOS PROCESOS DE GESTIÓN | M7: VIGENCIA: 2020-03-20
M8: PÁGINA: 1 de 1
C10: FICHA DE INDICADOR
C12: MACROPROCESO | E12: Misional | I12: NOMBRE DEL INDICADOR | K12: Participación de estudiantes en Estrategias para la Formación en Investigación e Innovación
C13: PROCESO GESTIÓN | E13: Ciencia, Tecnología e Innovación
C14: RESPONSABLE DE MEDICIÓN | E14: Director(a) de Investigación Universitaria
C16: 1. COMPORTAMIENTO DE INDICADOR
C17: CLASIFICACIÓN DE LA MEDICIÓN | E17: 1 | H17: TIPO DE INDICADOR | J17: Eficacia | L17: META ANUAL | N17: 1
C18: FÓRMULA | E18: NUMERADOR | G18: Estudiantes que participen en estrategias para la formación en investigación e innovación del programa*100 | L18: UNIDAD DE MEDIDA | N18: Porcentual
E19: DENOMINADOR | G19: Total de estudiantes del programa
C20: TENDENCIA | E20: Positiva | H20: NIVEL DE SEGREGACIÓN * | J20: Por programa académico | L20: ESCALA
L21: Deficiente | M21: Aceptable | N21: Bueno | O21: Excelente
L22: 0% - 70% | M22: 71% - 89% | N22: 90% - 100% | O22: N/A
C23: ORIGEN DE DATOS NUMERADOR | E23: Vinculación de estudiantes a la investigación | H23: FRECUENCIA DE LA MEDICIÓN | J23: SEMESTRAL | L23: FRECUENCIA DE RESULTADO | N23: ANUAL
C24: ORIGEN DE DATOS DENOMINADOR | E24: Base de datos de estudiantes
C26: RESULTADOS
J27: ANÁLISIS DE DATOS
J28: para el primer periodo académico se tuvo la participación en la convocatoria REDCOLSI con la participación con 52 proyectos presentados por estudiantes vinculados a semilleros de investigación, se cuenta con la participación de 30 estudiantes vinculados como auxiliares de investigación a proyectos de investigación de convocatorias externas. y 1 participación en Taller con aval de la RedCOLSI para participar en el encuentro nacional e internacional de semilleros de investigación ENISI Se tiene previsto que para el IIPA-2021 se desarrollen los demás eventos programados desde la Dirección de Investigación y eventos externos a la Universidad.
J34: ACCIÓN FORMULADA
J35: *Desarrollar actividades para la participación de estudiantes vinculados a semilleros de investigación de manera virtual. * participar en los diferentes eventos y convocatorias que se generen a nivel interno y externo a la Institución. * proponer estrategias que permitan la participación de estudiantes semilleristas activos en la Universidad de Cundinamarca
J41: RESPONSABLE
J42: =E14 -> Director(a) de Investigación Universitaria
C45: PERIODO DE EVALUACIÓN
C46: MES | D46: =IF(J23="MENSUAL","ENERO",IF(J23="TRIMESTRAL","MARZO",IF(J23="SEMESTRAL","JUNIO",IF(J23="ANUAL",YEAR(TODAY()),"")))) -> JUNIO | E46: =IF(J23="MENSUAL","FEBRERO",IF(J23="TRIMESTRAL","JUNIO",IF(J23="SEMESTRAL","DICIEMBRE",""))) -> DICIEMBRE | F46: =IF(J23="MENSUAL","MARZO",IF(J23="TRIMESTRAL","SEPTIEMBRE","")) ->  | G46: =IF(J23="MENSUAL","ABRIL",IF(J23="TRIMESTRAL","DICIEMBRE","")) ->  | H46: =IF(J23="MENSUAL","MAYO","") ->  | I46: =IF(J23="MENSUAL","JUNIO","") ->  | J46: =IF(J23="MENSUAL","JULIO","") ->  | K46: =IF(J23="MENSUAL","AGOSTO","") ->  | L46: =IF(J23="MENSUAL","SEPTIEMBRE","") ->  | M46: =IF(J23="MENSUAL","OCTUBRE","") ->  | N46: =IF(J23="MENSUAL","NOVIEMBRE","") ->  | O46: =IF(J23="MENSUAL","DICIEMBRE","") -> 
C47: =G18 -> Estudiantes que participen en estrategias para la formación en investigación e innovación del programa*100 | D47: 83
C48: =G19 -> Total de estudiantes del programa | D48: 211
C49: VALOR | D49: =IFERROR(IF($E$17=1,D47/D48,IF($E$17=2,D47,"")),"") -> 0.3933649289
C50: META PONDERADA | D50: =IF(AND(N23="ANUAL",J23="MENSUAL"),N17/12,IF(AND(N23="ANUAL",J23="TRIMESTRAL"),N17/4,IF(AND(N23="ANUAL",J23="SEMESTRAL"),N17/2,IF(AND(N23="ANUAL",J23="ANUAL"),N17,IF(AND(N23="SEMESTRAL",J23="MENSUAL"),N17/6,IF(AND(N23="SEMESTRAL",J23="TRIMESTRAL"),N17/2,IF(AND(N23="SEMESTRAL",J23="SEMESTRAL"),N17,IF(AND(N23="SEMESTRAL",J23="ANUAL"),"REVISAR FRECUENCIAS",IF(AND(N23="TRIMESTRAL",J23="MENSUAL"),N17/3,IF(AND(N23="TRIMESTRAL",J23="TRIMESTRAL"),N17,IF(AND(N23="TRIMESTRAL",J23="SEMESTRAL"),"REVISAR FRECUENCIAS",IF(AND(N23="TRIMESTRAL",J23="ANUAL"),"REVISAR FRECUENCIAS",IF(AND(N23="MENSUAL",J23="MENSUAL"),N17,IF(AND(N23="MENSUAL",J23="TRIMESTRAL"),"REVISAR FRECUENCIAS",IF(AND(N23="MENSUAL",J23="SEMESTRAL"),"REVISAR FRECUENCIAS",IF(AND(N23="MENSUAL",J23="ANUAL"),"REVISAR FRECUENCIAS","")))))))))))))))) -> 0.5 | E50: =IF(AND(N23="ANUAL",J23="MENSUAL"),N17/12+D50,IF(AND(N23="ANUAL",J23="TRIMESTRAL"),N17/4+D50,IF(AND(N23="ANUAL",J23="SEMESTRAL"),N17/2+D50,IF(AND(N23="SEMESTRAL",J23="MENSUAL"),N17/6+D50,IF(AND(N23="SEMESTRAL",J23="TRIMESTRAL"),N17/2+D50,IF(AND(N23="SEMESTRAL",J23="SEMESTRAL"),N17,IF(AND(N23="TRIMESTRAL",J23="MENSUAL"),N17/3+D50,IF(AND(N23="TRIMESTRAL",J23="TRIMESTRAL"),N17,IF(AND(N23="MENSUAL",J23="MENSUAL"),N17,""))))))))) -> 1 | F50: =IF(AND(N23="ANUAL",J23="MENSUAL"),N17/12+E50,IF(AND(N23="ANUAL",J23="TRIMESTRAL"),N17/4+E50,IF(AND(N23="SEMESTRAL",J23="MENSUAL"),N17/6+E50,IF(AND(N23="SEMESTRAL",J23="TRIMESTRAL"),N17/2,IF(AND(N23="TRIMESTRAL",J23="MENSUAL"),N17/3+E50,IF(AND(N23="TRIMESTRAL",J23="TRIMESTRAL"),N17,IF(AND(N23="MENSUAL",J23="MENSUAL"),N17,""))))))) ->  | G50: =IF(AND(N23="ANUAL",J23="MENSUAL"),N17/12+F50,IF(AND(N23="ANUAL",J23="TRIMESTRAL"),N17/4+F50,IF(AND(N23="SEMESTRAL",J23="MENSUAL"),N17/6+F50,IF(AND(N23="SEMESTRAL",J23="TRIMESTRAL"),N17/2+F50,IF(AND(N23="TRIMESTRAL",J23="MENSUAL"),N17/3,IF(AND(N23="TRIMESTRAL",J23="TRIMESTRAL"),N17,IF(AND(N23="MENSUAL",J23="MENSUAL"),N17,""))))))) ->  | H50: =IF(AND($N$23="ANUAL",$J$23="MENSUAL"),$N$17/12+G50,IF(AND(N23="SEMESTRAL",J23="MENSUAL"),N17/6+G50,IF(AND(N23="TRIMESTRAL",J23="MENSUAL"),N17/3+G50,IF(AND(N23="MENSUAL",J23="MENSUAL"),N17,"")))) ->  | I50: =IF(AND($N$23="ANUAL",$J$23="MENSUAL"),$N$17/12+H50,IF(AND(N23="SEMESTRAL",J23="MENSUAL"),N17/6+H50,IF(AND(N23="TRIMESTRAL",J23="MENSUAL"),N17/3+H50,IF(AND(N23="MENSUAL",J23="MENSUAL"),N17,"")))) ->  | J50: =IF(AND($N$23="ANUAL",$J$23="MENSUAL"),$N$17/12+I50,IF(AND(N23="SEMESTRAL",J23="MENSUAL"),N17/6,IF(AND(N23="TRIMESTRAL",J23="MENSUAL"),N17/3,IF(AND(N23="MENSUAL",J23="MENSUAL"),N17,"")))) ->  | K50: =IF(AND($N$23="ANUAL",$J$23="MENSUAL"),$N$17/12+J50,IF(AND(N23="SEMESTRAL",J23="MENSUAL"),N17/6+J50,IF(AND(N23="TRIMESTRAL",J23="MENSUAL"),N17/3+J50,IF(AND(N23="MENSUAL",J23="MENSUAL"),N17,"")))) ->  | L50: =IF(AND($N$23="ANUAL",$J$23="MENSUAL"),$N$17/12+K50,IF(AND(N23="SEMESTRAL",J23="MENSUAL"),N17/6+K50,IF(AND(N23="TRIMESTRAL",J23="MENSUAL"),N17/3+K50,IF(AND(N23="MENSUAL",J23="MENSUAL"),N17,"")))) ->  | M50: =IF(AND($N$23="ANUAL",$J$23="MENSUAL"),$N$17/12+L50,IF(AND(N23="SEMESTRAL",J23="MENSUAL"),N17/6+L50,IF(AND(N23="TRIMESTRAL",J23="MENSUAL"),N17/3,IF(AND(N23="MENSUAL",J23="MENSUAL"),N17,"")))) ->  | N50: =IF(AND($N$23="ANUAL",$J$23="MENSUAL"),$N$17/12+M50,IF(AND(N23="SEMESTRAL",J23="MENSUAL"),N17/6+M50,IF(AND(N23="TRIMESTRAL",J23="MENSUAL"),N17/3+M50,IF(AND(N23="MENSUAL",J23="MENSUAL"),N17,"")))) ->  | O50: =IF(AND($N$23="ANUAL",$J$23="MENSUAL"),$N$17/12+N50,IF(AND(N23="SEMESTRAL",J23="MENSUAL"),N17/6+N50,IF(AND(N23="TRIMESTRAL",J23="MENSUAL"),N17/3+N50,IF(AND(N23="MENSUAL",J23="MENSUAL"),N17,"")))) -> 
C52: NIVEL DE SEGREGACIÓN *
C53: UNIDAD SEGREGADA (Ej. Facultad, Programa Académico, Área) | G53: RESULTADO | K53: ANALISIS DE DATOS SEGREGADO
C54: CIENCIAS ADMINISTRATIVAS ECONÓMICAS Y CONTABLES | G54: =6 -> 6 | K54: 6 proyectos presentados a REDCOLSI
C55: CIENCIAS AGROPECUARIAS | D55: CIENCIAS AGROPECUARIAS | E55: CIENCIAS AGROPECUARIAS | F55: CIENCIAS AGROPECUARIAS | G55: =30+11 -> 41 | H55: =84+9 -> 93 | I55: =84+9 -> 93 | J55: =84+9 -> 93 | K55: 30 Estudiantes participantes como auxiliares de investigación en proyectos de convocatorias externas y 11 proyectos presentados en REDCOLSI. | L55: 84 Estudiantes participantes como axiliares de investigacion en proyectos de convocatorias Internas, Interinstitucionales y externas., Se presentaron 9 proyectos para participar del XVIII ENCUENTRO REGIONAL DE SEMILLEROS DE INVESTIGACIÓN REDCOLSI NODO BOGOTÁ - CUNDINAMARCA, formulados por 9 Estudiantes. | M55: 84 Estudiantes participantes como axiliares de investigacion en proyectos de convocatorias Internas, Interinstitucionales y externas., Se presentaron 9 proyectos para participar del XVIII ENCUENTRO REGIONAL DE SEMILLEROS DE INVESTIGACIÓN REDCOLSI NODO BOGOTÁ - CUNDINAMARCA, formulados por 9 Estudiantes. | N55: 84 Estudiantes participantes como axiliares de investigacion en proyectos de convocatorias Internas, Interinstitucionales y externas., Se presentaron 9 proyectos para participar del XVIII ENCUENTRO REGIONAL DE SEMILLEROS DE INVESTIGACIÓN REDCOLSI NODO BOGOTÁ - CUNDINAMARCA, formulados por 9 Estudiantes. | O55: 84 Estudiantes participantes como axiliares de investigacion en proyectos de convocatorias Internas, Interinstitucionales y externas., Se presentaron 9 proyectos para participar del XVIII ENCUENTRO REGIONAL DE SEMILLEROS DE INVESTIGACIÓN REDCOLSI NODO BOGOTÁ - CUNDINAMARCA, formulados por 9 Estudiantes.
C56: CIENCIAS DE LA SALUD | D56: CIENCIAS DE LA SALUD | E56: CIENCIAS DE LA SALUD | F56: CIENCIAS DE LA SALUD | G56: 2 | H56: =34+7 -> 41 | I56: =34+7 -> 41 | J56: =34+7 -> 41 | K56: 2 proyectos presentados a REDCOLSI
C57: CIENCIAS DEL DEPORTE Y EDUCACIÓN FÍSICA | D57: CIENCIAS DEL DEPORTE Y EDUCACIÓN FÍSICA | E57: CIENCIAS DEL DEPORTE Y EDUCACIÓN FÍSICA | F57: CIENCIAS DEL DEPORTE Y EDUCACIÓN FÍSICA | G57: 8 | H57: =8+2 -> 10 | I57: =8+2 -> 10 | J57: =8+2 -> 10 | K57: 8 proyectos presentados a REDCOLSI
C58: CIENCIAS SOCIALES, HUMANIDADES Y CIENCIAS POLITICAS | D58: CIENCIAS SOCIALES, HUMANIDADES Y CIENCIAS POLITICAS | E58: CIENCIAS SOCIALES, HUMANIDADES Y CIENCIAS POLITICAS | F58: CIENCIAS SOCIALES, HUMANIDADES Y CIENCIAS POLITICAS | G58: 4 | H58: =11+5 -> 16 | I58: =11+5 -> 16 | J58: =11+5 -> 16 | K58: 4 proyectos presentados a REDCOLSI
C59: EDUCACIÓN | D59: EDUCACIÓN | E59: EDUCACIÓN | F59: EDUCACIÓN | G59: 5 | H59: =6+33+10 -> 49 | I59: =6+33+10 -> 49 | J59: =6+33+10 -> 49 | K59: 5 proyectos presentados a REDCOLSI
C60: INGENIERÍA | D60: INGENIERÍA | E60: INGENIERÍA | F60: INGENIERÍA | G60: 17 | H60: =71+19 -> 90 | I60: =71+19 -> 90 | J60: =71+19 -> 90 | K60: 16 proyectos presentados a REDCOLSI y un Taller con aval de la RedCOLSI para participar en el encuentro nacional e internacional de semilleros de investigación ENISI
G61: Estratégico | J61: Eficacia
G62: Misional | J62: Eficiencia
G63: Apoyo | J63: Acreditación
G64: Seguimiento, Medición, Análisis y Evaluación | J64: Positiva
G65: Direccionamiento Estratégico | J65: Negativa
G66: Planeación Institucional | J66: Por Unidad Regional
G67: Proyectos Especiales y Relaciones Interinstitucionales | J67: Por Facultad
G68: Sistemas Integrados | J68: Por Programa Académico
G69: Autoevaluación y Acreditación | J69: Por área
G70: Comunicaciones | J70: Por Laboratorio
G71: Formación y Aprendizaje | J71: Otros
G72: Ciencia, Tecnología e Innovación | J72: No Aplica
G73: Interacción Social Universitaria
G74: Bienestar Universitario
G75: Admisiones y Registro
G76: Graduados
G77: Dialogando con el Mundo
G78: Talento Humano
G79: Jurídica
G80: Financiera
G81: Sistemas y Tecnología
G82: Bienes y Servicios
G83: Documental
G84: Apoyo Académico
G85: Control Interno
G86: Control Disciplinario
G87: Servicio de Atención al Ciudadano

Sheet MDM-1 (hidden)
B2: REGRESAR
E5: MACROPROCESO ESTRATÉGICO | M5: CÓDIGO: ESGr027
E6: PROCESO GESTIÓN SISTEMAS INTEGRADOS | M6: VERSIÓN: 7
E7: MATRIZ DE MEDICIÓN Y SEGUIMIENTO A LOS PROCESOS DE GESTIÓN | M7: VIGENCIA: 2020-03-20
M8: PÁGINA: 1 de 1
C10: FICHA DE INDICADOR
C12: MACROPROCESO | E12: Misional | I12: NOMBRE DEL INDICADOR | K12: Estudiantes beneficiados con la implementación de la acción estratégica de movilidad académica y alianzas correspondiente a la política Dialogando con el Mundo.
C13: PROCESO GESTIÓN | E13: Dialogando con el Mundo
C14: RESPONSABLE DE MEDICIÓN | E14: Vicerrectoría Académica
C16: 1. COMPORTAMIENTO DE INDICADOR
C17: CLASIFICACIÓN DE LA MEDICIÓN | E17: 1 | H17: TIPO DE INDICADOR | J17: Eficacia | L17: META ANUAL | N17: 0.3
C18: FÓRMULA | E18: NUMERADOR | G18: Estudiantes de 6 a 10 semestre beneficiados de políticas de gestión institucional y bienestar*100 | L18: UNIDAD DE MEDIDA | N18: Porcentual
E19: DENOMINADOR | G19: Total de estudiantes participantes de 6 a 10 semestre
C20: TENDENCIA | E20: Positiva | H20: NIVEL DE SEGREGACIÓN * | J20: No Aplica | L20: ESCALA
L21: Deficiente | M21: Aceptable | N21: Bueno | O21: Excelente
L22: 0% - 15% | M22: 16%- 22% | N22: 23% - 30% | O22: >30%
C23: ORIGEN DE DATOS NUMERADOR | E23: Consolidado de estudiantes beneficiados | H23: FRECUENCIA DE LA MEDICIÓN | J23: SEMESTRAL | L23: FRECUENCIA DE RESULTADO | N23: ANUAL
C24: ORIGEN DE DATOS DENOMINADOR | E24: Total de estudiantes participantes en las estrategias de 6 a 10 semestre
C26: RESULTADOS
J27: ANÁLISIS DE DATOS
J28: Este indicadores no se medirá en el primer semestre de la vigencia 2021 por los lineamientos nacionales derivados por la pandemia del Covid-19 que limitan la movilidad presencial.
J34: ACCIÓN FORMULADA
J41: RESPONSABLE
J42: =E14 -> Vicerrectoría Académica
C45: PERIODO DE EVALUACIÓN
C46: MES | D46: =IF(J23="MENSUAL","ENERO",IF(J23="TRIMESTRAL","MARZO",IF(J23="SEMESTRAL","JUNIO",IF(J23="ANUAL",YEAR(TODAY()),"")))) -> JUNIO | E46: =IF(J23="MENSUAL","FEBRERO",IF(J23="TRIMESTRAL","JUNIO",IF(J23="SEMESTRAL","DICIEMBRE",""))) -> DICIEMBRE | F46: =IF(J23="MENSUAL","MARZO",IF(J23="TRIMESTRAL","SEPTIEMBRE","")) ->  | G46: =IF(J23="MENSUAL","ABRIL",IF(J23="TRIMESTRAL","DICIEMBRE","")) ->  | H46: =IF(J23="MENSUAL","MAYO","") ->  | I46: =IF(J23="MENSUAL","JUNIO","") ->  | J46: =IF(J23="MENSUAL","JULIO","") ->  | K46: =IF(J23="MENSUAL","AGOSTO","") ->  | L46: =IF(J23="MENSUAL","SEPTIEMBRE","") ->  | M46: =IF(J23="MENSUAL","OCTUBRE","") ->  | N46: =IF(J23="MENSUAL","NOVIEMBRE","") ->  | O46: =IF(J23="MENSUAL","DICIEMBRE","") -> 
C47: =G18 -> Estudiantes de 6 a 10 semestre beneficiados de políticas de gestión institucional y bienestar*100
C48: =G19 -> Total de estudiantes participantes de 6 a 10 semestre
C49: VALOR | D49: =IFERROR(IF($E$17=1,D47/D48,IF($E$17=2,D47,"")),"") -> 
C50: META PONDERADA | D50: =IF(AND(N23="ANUAL",J23="MENSUAL"),N17/12,IF(AND(N23="ANUAL",J23="TRIMESTRAL"),N17/4,IF(AND(N23="ANUAL",J23="SEMESTRAL"),N17/2,IF(AND(N23="ANUAL",J23="ANUAL"),N17,IF(AND(N23="SEMESTRAL",J23="MENSUAL"),N17/6,IF(AND(N23="SEMESTRAL",J23="TRIMESTRAL"),N17/2,IF(AND(N23="SEMESTRAL",J23="SEMESTRAL"),N17,IF(AND(N23="SEMESTRAL",J23="ANUAL"),"REVISAR FRECUENCIAS",IF(AND(N23="TRIMESTRAL",J23="MENSUAL"),N17/3,IF(AND(N23="TRIMESTRAL",J23="TRIMESTRAL"),N17,IF(AND(N23="TRIMESTRAL",J23="SEMESTRAL"),"REVISAR FRECUENCIAS",IF(AND(N23="TRIMESTRAL",J23="ANUAL"),"REVISAR FRECUENCIAS",IF(AND(N23="MENSUAL",J23="MENSUAL"),N17,IF(AND(N23="MENSUAL",J23="TRIMESTRAL"),"REVISAR FRECUENCIAS",IF(AND(N23="MENSUAL",J23="SEMESTRAL"),"REVISAR FRECUENCIAS",IF(AND(N23="MENSUAL",J23="ANUAL"),"REVISAR FRECUENCIAS","")))))))))))))))) -> 0.15 | E50: =IF(AND(N23="ANUAL",J23="MENSUAL"),N17/12+D50,IF(AND(N23="ANUAL",J23="TRIMESTRAL"),N17/4+D50,IF(AND(N23="ANUAL",J23="SEMESTRAL"),N17/2+D50,IF(AND(N23="SEMESTRAL",J23="MENSUAL"),N17/6+D50,IF(AND(N23="SEMESTRAL",J23="TRIMESTRAL"),N17/2+D50,IF(AND(N23="SEMESTRAL",J23="SEMESTRAL"),N17,IF(AND(N23="TRIMESTRAL",J23="MENSUAL"),N17/3+D50,IF(AND(N23="TRIMESTRAL",J23="TRIMESTRAL"),N17,IF(AND(N23="MENSUAL",J23="MENSUAL"),N17,""))))))))) -> 0.3 | F50: =IF(AND(N23="ANUAL",J23="MENSUAL"),N17/12+E50,IF(AND(N23="ANUAL",J23="TRIMESTRAL"),N17/4+E50,IF(AND(N23="SEMESTRAL",J23="MENSUAL"),N17/6+E50,IF(AND(N23="SEMESTRAL",J23="TRIMESTRAL"),N17/2,IF(AND(N23="TRIMESTRAL",J23="MENSUAL"),N17/3+E50,IF(AND(N23="TRIMESTRAL",J23="TRIMESTRAL"),N17,IF(AND(N23="MENSUAL",J23="MENSUAL"),N17,""))))))) ->  | G50: =IF(AND(N23="ANUAL",J23="MENSUAL"),N17/12+F50,IF(AND(N23="ANUAL",J23="TRIMESTRAL"),N17/4+F50,IF(AND(N23="SEMESTRAL",J23="MENSUAL"),N17/6+F50,IF(AND(N23="SEMESTRAL",J23="TRIMESTRAL"),N17/2+F50,IF(AND(N23="TRIMESTRAL",J23="MENSUAL"),N17/3,IF(AND(N23="TRIMESTRAL",J23="TRIMESTRAL"),N17,IF(AND(N23="MENSUAL",J23="MENSUAL"),N17,""))))))) ->  | H50: =IF(AND($N$23="ANUAL",$J$23="MENSUAL"),$N$17/12+G50,IF(AND(N23="SEMESTRAL",J23="MENSUAL"),N17/6+G50,IF(AND(N23="TRIMESTRAL",J23="MENSUAL"),N17/3+G50,IF(AND(N23="MENSUAL",J23="MENSUAL"),N17,"")))) ->  | I50: =IF(AND($N$23="ANUAL",$J$23="MENSUAL"),$N$17/12+H50,IF(AND(N23="SEMESTRAL",J23="MENSUAL"),N17/6+H50,IF(AND(N23="TRIMESTRAL",J23="MENSUAL"),N17/3+H50,IF(AND(N23="MENSUAL",J23="MENSUAL"),N17,"")))) ->  | J50: =IF(AND($N$23="ANUAL",$J$23="MENSUAL"),$N$17/12+I50,IF(AND(N23="SEMESTRAL",J23="MENSUAL"),N17/6,IF(AND(N23="TRIMESTRAL",J23="MENSUAL"),N17/3,IF(AND(N23="MENSUAL",J23="MENSUAL"),N17,"")))) ->  | K50: =IF(AND($N$23="ANUAL",$J$23="MENSUAL"),$N$17/12+J50,IF(AND(N23="SEMESTRAL",J23="MENSUAL"),N17/6+J50,IF(AND(N23="TRIMESTRAL",J23="MENSUAL"),N17/3+J50,IF(AND(N23="MENSUAL",J23="MENSUAL"),N17,"")))) ->  | L50: =IF(AND($N$23="ANUAL",$J$23="MENSUAL"),$N$17/12+K50,IF(AND(N23="SEMESTRAL",J23="MENSUAL"),N17/6+K50,IF(AND(N23="TRIMESTRAL",J23="MENSUAL"),N17/3+K50,IF(AND(N23="MENSUAL",J23="MENSUAL"),N17,"")))) ->  | M50: =IF(AND($N$23="ANUAL",$J$23="MENSUAL"),$N$17/12+L50,IF(AND(N23="SEMESTRAL",J23="MENSUAL"),N17/6+L50,IF(AND(N23="TRIMESTRAL",J23="MENSUAL"),N17/3,IF(AND(N23="MENSUAL",J23="MENSUAL"),N17,"")))) ->  | N50: =IF(AND($N$23="ANUAL",$J$23="MENSUAL"),$N$17/12+M50,IF(AND(N23="SEMESTRAL",J23="MENSUAL"),N17/6+M50,IF(AND(N23="TRIMESTRAL",J23="MENSUAL"),N17/3+M50,IF(AND(N23="MENSUAL",J23="MENSUAL"),N17,"")))) ->  | O50: =IF(AND($N$23="ANUAL",$J$23="MENSUAL"),$N$17/12+N50,IF(AND(N23="SEMESTRAL",J23="MENSUAL"),N17/6+N50,IF(AND(N23="TRIMESTRAL",J23="MENSUAL"),N17/3+N50,IF(AND(N23="MENSUAL",J23="MENSUAL"),N17,"")))) -> 
C52: NIVEL DE SEGREGACIÓN *
C53: UNIDAD SEGREGADA (Ej. Facultad, Programa Académico, Área) | G53: RESULTADO | K53: ANÁLISIS DE DATOS SEGREGADO
G72: Estratégico | J72: Eficacia
G73: Misional | J73: Eficiencia
G74: Apoyo | J74: Acreditación
G75: Seguimiento, Medición, Análisis y Evaluación | J75: Positiva
G76: Direccionamiento Estratégico | J76: Negativa
G77: Planeación Institucional | J77: Por Unidad Regional
G78: Proyectos Especiales y Relaciones Interinstitucionales | J78: Por Facultad
G79: Sistemas Integrados | J79: Por Programa Académico
G80: Autoevaluación y Acreditación | J80: Por área
G81: Comunicaciones | J81: Por Laboratorio
G82: Formación y Aprendizaje | J82: Otros
G83: Ciencia, Tecnología e Innovación | J83: No Aplica
G84: Interacción Social Universitaria
G85: Bienestar Universitario
G86: Admisiones y Registro
G87: Graduados
G88: Dialogando con el Mundo
G89: Talento Humano
G90: Jurídica
G91: Financiera
G92: Sistemas y Tecnología
G93: Bienes y Servicios
G94: Documental
G95: Apoyo Académico
G96: Control Interno
G97: Control Disciplinario
G98: Servicio de Atención al Ciudadano

Sheet MDM-2 (hidden)
B2: REGRESAR
E5: MACROPROCESO ESTRATÉGICO | M5: CÓDIGO: ESGr027
E6: PROCESO GESTIÓN SISTEMAS INTEGRADOS | M6: VERSIÓN: 7
E7: MATRIZ DE MEDICIÓN Y SEGUIMIENTO A LOS PROCESOS DE GESTIÓN | M7: VIGENCIA: 2020-03-20
M8: PÁGINA: 1 de 1
C10: FICHA DE INDICADOR
C12: MACROPROCESO | E12: Misional | I12: NOMBRE DEL INDICADOR | K12: Estudiantes beneficiados con la implementación de la acción estratégica de diálogo común curricular, diálogo con funciones misionales de la UCundinamarca, apoyo al CADI de segunda lengua, correspondientes a la política Dialogando con el Mundo.
C13: PROCESO GESTIÓN | E13: Dialogando con el Mundo
C14: RESPONSABLE DE MEDICIÓN | E14: Vicerrectoría Académica
C16: 1. COMPORTAMIENTO DE INDICADOR
C17: CLASIFICACIÓN DE LA MEDICIÓN | E17: 3 | H17: TIPO DE INDICADOR | J17: Eficacia | L17: META | N17: 1000
C18: FÓRMULA | E18: Estrategias de internacionalización de los programas académicos donde participan estudiantes de 1 a 10 semestre / Participación de estudiantes de 1 a 10 semestre . | L18: UNIDAD DE MEDIDA | N18: Participantes en las estrategias
C20: TENDENCIA | E20: Positiva | H20: NIVEL DE SEGREGACIÓN * | J20: No Aplica | L20: ESCALA
L21: Deficiente | M21: Aceptable | N21: Bueno | O21: Excelente
L22: 0 - 499 | M22: 500 - 750 | N22: 751 - 1000 | O22: >1000
C23: ORIGEN DE DATOS | E23: Consolidado de estudiantes de primero a décimo semestre | H23: FRECUENCIA DE LA MEDICIÓN | J23: SEMESTRAL | L23: FRECUENCIA DE RESULTADO | N23: ANUAL
C26: RESULTADOS
J27: ANÁLISIS DE DATOS Los datos indican un crecimiento en los acompañamientos entre el primer trimestre y el segundo trimestre de mas del 100%, por la contratación del personal de la oficina En el tercer trimestre se muestra un decrecimiento con respecto al periodo anterior por las vacaciones a mitad de año, las personas se reintegraron entre julio y agosto.
J28: PERIODO ACADÉMICO 2021.1 de acuerdo con el fenómeno de la pandemia COVID-19, Para el periodo 2021,1 no se realizo convocatoria debido a la coyuntura presentada de educación virtual, estrategia de internacionalización en casa, sin embargo, se logro la participación de 500 estudiantes desde el pluriverso transmoderno, en los siguientes eventos; Cursos, Foros, Aula Espejo, Movilidad digital, Cátedra compartidas, Congresos, Talleres, Cursos bilingüismo, Simposios, Conversatorios, sensibilizaciones y socializaciones de la Política Dialogando con el Mundo, se evidencia en el Informe de Gestión presentado a la Vicerrectoría Académica de fecha mayo 18 de 2021. Por lo tanto, se cumple con la meta propuesta en referencia al valor determinado de 1000 participantes en los eventos de internacionalización digital para el 2021, según el informe parcial 2021,1. En conclusión se cumple la meta propuesta según escala Sistema Gestión de la Calidad EXCELENTE de 500 participantes - estudiantes UDEC, durante la vigencia 2021,1 . Se logro la participación de estudiantes en actividades académicas conjuntas con universidades internacionales de 1 a 10 semestres según campos de aprendizaje y programa académico. En síntesis de 500 participantes sobre 500 que es la meta para el primer semestre 2021,1 , es decir, el segundo periodo académico 2021,1 se alcanzaría totalmente con la participación 1000 estudiante en la implementación de la Política Dialogando con el Mundo.
J34: ACCIÓN FORMULADA
J35: No.Estudiantes de 1 a 10 semestre participantes en la implementación de la acción estratégica de diálogo común curricular, diálogo con las funciones misionales de la UCundinamarca, apoyo al CADI de segunda lengua, correspondientes a la política Dialogando con el Mundo en relación con la participación en los eventos desarrollados 2021,1.
J41: RESPONSABLE
J42: =E14 -> Vicerrectoría Académica
C45: PERIODO DE EVALUACIÓN
C46: MES | D46: =IF(J23="MENSUAL","ENERO",IF(J23="TRIMESTRAL","MARZO",IF(J23="SEMESTRAL","JUNIO",IF(J23="ANUAL",YEAR(TODAY()),"")))) -> JUNIO | E46: =IF(J23="MENSUAL","FEBRERO",IF(J23="TRIMESTRAL","JUNIO",IF(J23="SEMESTRAL","DICIEMBRE",""))) -> DICIEMBRE | F46: =IF(J23="MENSUAL","MARZO",IF(J23="TRIMESTRAL","SEPTIEMBRE","")) ->  | G46: =IF(J23="MENSUAL","ABRIL",IF(J23="TRIMESTRAL","DICIEMBRE","")) ->  | H46: =IF(J23="MENSUAL","MAYO","") ->  | I46: =IF(J23="MENSUAL","JUNIO","") ->  | J46: =IF(J23="MENSUAL","JULIO","") ->  | K46: =IF(J23="MENSUAL","AGOSTO","") ->  | L46: =IF(J23="MENSUAL","SEPTIEMBRE","") ->  | M46: =IF(J23="MENSUAL","OCTUBRE","") ->  | N46: =IF(J23="MENSUAL","NOVIEMBRE","") ->  | O46: =IF(J23="MENSUAL","DICIEMBRE","") -> 
C47: =E18 -> Estrategias de internacionalización de los programas académicos donde participan estudiantes de 1 a 10 semestre / Participación de estudiantes de 1 a 10 semestre . | D47: 500
C48: =G19 -> 0
C49: VALOR | D49: =IFERROR(IF($E$17=1,D47/D48,IF($E$17=3,D47,"")),"") -> 500 | E49: =IFERROR(IF($E$17=1,E47/E48,IF($E$17=3,E47,"")),"") -> 0 | F49: =IFERROR(IF($E$17=1,F47/F48,IF($E$17=2,F47,"")),"") -> 
C50: META PONDERADA | D50: =IF(AND(N23="ANUAL",J23="MENSUAL"),N17/12,IF(AND(N23="ANUAL",J23="TRIMESTRAL"),N17/4,IF(AND(N23="ANUAL",J23="SEMESTRAL"),N17/2,IF(AND(N23="ANUAL",J23="ANUAL"),N17,IF(AND(N23="SEMESTRAL",J23="MENSUAL"),N17/6,IF(AND(N23="SEMESTRAL",J23="TRIMESTRAL"),N17/2,IF(AND(N23="SEMESTRAL",J23="SEMESTRAL"),N17,IF(AND(N23="SEMESTRAL",J23="ANUAL"),"REVISAR FRECUENCIAS",IF(AND(N23="TRIMESTRAL",J23="MENSUAL"),N17/3,IF(AND(N23="TRIMESTRAL",J23="TRIMESTRAL"),N17,IF(AND(N23="TRIMESTRAL",J23="SEMESTRAL"),"REVISAR FRECUENCIAS",IF(AND(N23="TRIMESTRAL",J23="ANUAL"),"REVISAR FRECUENCIAS",IF(AND(N23="MENSUAL",J23="MENSUAL"),N17,IF(AND(N23="MENSUAL",J23="TRIMESTRAL"),"REVISAR FRECUENCIAS",IF(AND(N23="MENSUAL",J23="SEMESTRAL"),"REVISAR FRECUENCIAS",IF(AND(N23="MENSUAL",J23="ANUAL"),"REVISAR FRECUENCIAS","")))))))))))))))) -> 500 | E50: =IF(AND(N23="ANUAL",J23="MENSUAL"),N17/12+D50,IF(AND(N23="ANUAL",J23="TRIMESTRAL"),N17/4+D50,IF(AND(N23="ANUAL",J23="SEMESTRAL"),N17/2+D50,IF(AND(N23="SEMESTRAL",J23="MENSUAL"),N17/6+D50,IF(AND(N23="SEMESTRAL",J23="TRIMESTRAL"),N17/2+D50,IF(AND(N23="SEMESTRAL",J23="SEMESTRAL"),N17,IF(AND(N23="TRIMESTRAL",J23="MENSUAL"),N17/3+D50,IF(AND(N23="TRIMESTRAL",J23="TRIMESTRAL"),N17,IF(AND(N23="MENSUAL",J23="MENSUAL"),N17,""))))))))) -> 1000 | G50: =IF(AND(N23="ANUAL",J23="MENSUAL"),N17/12+F50,IF(AND(N23="ANUAL",J23="TRIMESTRAL"),N17/4+F50,IF(AND(N23="SEMESTRAL",J23="MENSUAL"),N17/6+F50,IF(AND(N23="SEMESTRAL",J23="TRIMESTRAL"),N17/2+F50,IF(AND(N23="TRIMESTRAL",J23="MENSUAL"),N17/3,IF(AND(N23="TRIMESTRAL",J23="TRIMESTRAL"),N17,IF(AND(N23="MENSUAL",J23="MENSUAL"),N17,""))))))) ->  | H50: =IF(AND($N$23="ANUAL",$J$23="MENSUAL"),$N$17/12+G50,IF(AND(N23="SEMESTRAL",J23="MENSUAL"),N17/6+G50,IF(AND(N23="TRIMESTRAL",J23="MENSUAL"),N17/3+G50,IF(AND(N23="MENSUAL",J23="MENSUAL"),N17,"")))) ->  | I50: =IF(AND($N$23="ANUAL",$J$23="MENSUAL"),$N$17/12+H50,IF(AND(N23="SEMESTRAL",J23="MENSUAL"),N17/6+H50,IF(AND(N23="TRIMESTRAL",J23="MENSUAL"),N17/3+H50,IF(AND(N23="MENSUAL",J23="MENSUAL"),N17,"")))) ->  | J50: =IF(AND($N$23="ANUAL",$J$23="MENSUAL"),$N$17/12+I50,IF(AND(N23="SEMESTRAL",J23="MENSUAL"),N17/6,IF(AND(N23="TRIMESTRAL",J23="MENSUAL"),N17/3,IF(AND(N23="MENSUAL",J23="MENSUAL"),N17,"")))) ->  | K50: =IF(AND($N$23="ANUAL",$J$23="MENSUAL"),$N$17/12+J50,IF(AND(N23="SEMESTRAL",J23="MENSUAL"),N17/6+J50,IF(AND(N23="TRIMESTRAL",J23="MENSUAL"),N17/3+J50,IF(AND(N23="MENSUAL",J23="MENSUAL"),N17,"")))) ->  | L50: =IF(AND($N$23="ANUAL",$J$23="MENSUAL"),$N$17/12+K50,IF(AND(N23="SEMESTRAL",J23="MENSUAL"),N17/6+K50,IF(AND(N23="TRIMESTRAL",J23="MENSUAL"),N17/3+K50,IF(AND(N23="MENSUAL",J23="MENSUAL"),N17,"")))) ->  | M50: =IF(AND($N$23="ANUAL",$J$23="MENSUAL"),$N$17/12+L50,IF(AND(N23="SEMESTRAL",J23="MENSUAL"),N17/6+L50,IF(AND(N23="TRIMESTRAL",J23="MENSUAL"),N17/3,IF(AND(N23="MENSUAL",J23="MENSUAL"),N17,"")))) ->  | N50: =IF(AND($N$23="ANUAL",$J$23="MENSUAL"),$N$17/12+M50,IF(AND(N23="SEMESTRAL",J23="MENSUAL"),N17/6+M50,IF(AND(N23="TRIMESTRAL",J23="MENSUAL"),N17/3+M50,IF(AND(N23="MENSUAL",J23="MENSUAL"),N17,"")))) ->  | O50: =IF(AND($N$23="ANUAL",$J$23="MENSUAL"),$N$17/12+N50,IF(AND(N23="SEMESTRAL",J23="MENSUAL"),N17/6+N50,IF(AND(N23="TRIMESTRAL",J23="MENSUAL"),N17/3+N50,IF(AND(N23="MENSUAL",J23="MENSUAL"),N17,"")))) -> 
C52: NIVEL DE SEGREGACIÓN *
C53: UNIDAD SEGREGADA (Ej. Facultad, Programa Académico, Área) | G53: RESULTADO | K53: ANÁLISIS DE DATOS SEGREGADO
G73: Estratégico | J73: Eficacia
G74: Misional | J74: Eficiencia
G75: Apoyo | J75: Acreditación
G76: Seguimiento, Medición, Análisis y Evaluación | J76: Positiva
G77: Direccionamiento Estratégico | J77: Negativa
G78: Planeación Institucional | J78: Por Unidad Regional
G79: Proyectos Especiales y Relaciones Interinstitucionales | J79: Por Facultad
G80: Sistemas Integrados | J80: Por Programa Académico
G81: Autoevaluación y Acreditación | J81: Por área
G82: Comunicaciones | J82: Por Laboratorio
G83: Formación y Aprendizaje | J83: Otros
G84: Ciencia, Tecnología e Innovación | J84: No Aplica
G85: Interacción Social Universitaria
G86: Bienestar Universitario
G87: Admisiones y Registro
G88: Graduados
G89: Dialogando con el Mundo
G90: Talento Humano
G91: Jurídica
G92: Financiera
G93: Sistemas y Tecnología
G94: Bienes y Servicios
G95: Documental
G96: Apoyo Académico
G97: Control Interno
G98: Control Disciplinario
G99: Servicio de Atención al Ciudadano

Sheet MDM-3 (hidden)
B2: REGRESAR
E5: MACROPROCESO ESTRATÉGICO | M5: CÓDIGO: ESGr027
E6: PROCESO GESTIÓN SISTEMAS INTEGRADOS | M6: VERSIÓN: 7
E7: MATRIZ DE MEDICIÓN Y SEGUIMIENTO A LOS PROCESOS DE GESTIÓN | M7: VIGENCIA: 2020-03-20
M8: PÁGINA: 1 de 1
C10: FICHA DE INDICADOR
C12: MACROPROCESO | E12: Misional | I12: NOMBRE DEL INDICADOR | K12: Dinamizar Convenios
C13: PROCESO GESTIÓN | E13: Dialogando con el Mundo
C14: RESPONSABLE DE MEDICIÓN | E14: Vicerrectoría Académica
C16: 1. COMPORTAMIENTO DE INDICADOR
C17: CLASIFICACIÓN DE LA MEDICIÓN | E17: 1 | H17: TIPO DE INDICADOR | J17: Eficacia | L17: META ANUAL | N17: 0.2
C18: FÓRMULA | E18: NUMERADOR | G18: Número de convenios dinamizados*100 | L18: UNIDAD DE MEDIDA | N18: Porcentual
E19: DENOMINADOR | G19: Número de convenios establecidos en la UDEC
C20: TENDENCIA | E20: Positiva | H20: NIVEL DE SEGREGACIÓN * | J20: No Aplica | L20: ESCALA
L21: Deficiente | M21: Aceptable | N21: Bueno | O21: Excelente
L22: 0% - 9% | M22: 10%-16% | N22: 17%-20% | O22: >20%
C23: ORIGEN DE DATOS NUMERADOR | E23: Consolidado de convenios | H23: FRECUENCIA DE LA MEDICIÓN | J23: SEMESTRAL | L23: FRECUENCIA DE RESULTADO | N23: ANUAL
C24: ORIGEN DE DATOS DENOMINADOR | E24: Consolidado de convenios
C26: RESULTADOS
J27: ANÁLISIS DE DATOS
J28: PERIODO ACADÉMICO 2021.1 De acuerdo con el número de convenios legalizados total 23 se lograron dinamizar 10 convenios académicos con universidades internacionales, con la finalidad de realizar estrategias académicas virtuales [internacionalización en casa}, para ello, se implementaron conversatorios, foros, simposio, aula espejo, cátedras comportatidas, webinar, entre otros eventos. Adjunto evidencia, relación de convenios dinamizados, informe de gestión de las actividades realizadas del proceso Dialogando con el Mundo a la Vicerrectoría Académica de fecha mayo 18 de 2021, presentado por el líder Fabián Leal Orjuela. Es decir, que se cumplió la meta propuesta del 20% que corresponde al concepto BUENO de convenios dinamizados, según escala definida por el Sistema Gestión de Calidad, alcanzando el 43% en referencia con la meta de la vigencia 2021,1 de mas o menos el 50%.equivalente al primer semestre 2021,1, entre el 17%-20% en este caso.
J34: ACCIÓN FORMULADA
J35: Número de convenios dinamizados/ Número de convenios establecidos en la UDEC .
J41: RESPONSABLE
J42: =E14 -> Vicerrectoría Académica
C45: PERIODO DE EVALUACIÓN
C46: MES | D46: =IF(J23="MENSUAL","ENERO",IF(J23="TRIMESTRAL","MARZO",IF(J23="SEMESTRAL","JUNIO",IF(J23="ANUAL",YEAR(TODAY()),"")))) -> JUNIO | E46: =IF(J23="MENSUAL","FEBRERO",IF(J23="TRIMESTRAL","JUNIO",IF(J23="SEMESTRAL","DICIEMBRE",""))) -> DICIEMBRE | F46: =IF(J23="MENSUAL","MARZO",IF(J23="TRIMESTRAL","SEPTIEMBRE","")) ->  | G46: =IF(J23="MENSUAL","ABRIL",IF(J23="TRIMESTRAL","DICIEMBRE","")) ->  | H46: =IF(J23="MENSUAL","MAYO","") ->  | I46: =IF(J23="MENSUAL","JUNIO","") ->  | J46: =IF(J23="MENSUAL","JULIO","") ->  | K46: =IF(J23="MENSUAL","AGOSTO","") ->  | L46: =IF(J23="MENSUAL","SEPTIEMBRE","") ->  | M46: =IF(J23="MENSUAL","OCTUBRE","") ->  | N46: =IF(J23="MENSUAL","NOVIEMBRE","") ->  | O46: =IF(J23="MENSUAL","DICIEMBRE","") -> 
C47: =G18 -> Número de convenios dinamizados*100 | D47: 10
C48: =G19 -> Número de convenios establecidos en la UDEC | D48: 23
C49: VALOR | D49: =IFERROR(IF($E$17=1,D47/D48,IF($E$17=2,D47,"")),"") -> 0.4347826087 | F49: =IFERROR(IF($E$17=1,F47/F4,IF($E$17=2,F47,"")),"") -> 
C50: META PONDERADA | D50: =IF(AND(N23="ANUAL",J23="MENSUAL"),N17/12,IF(AND(N23="ANUAL",J23="TRIMESTRAL"),N17/4,IF(AND(N23="ANUAL",J23="SEMESTRAL"),N17/2,IF(AND(N23="ANUAL",J23="ANUAL"),N17,IF(AND(N23="SEMESTRAL",J23="MENSUAL"),N17/6,IF(AND(N23="SEMESTRAL",J23="TRIMESTRAL"),N17/2,IF(AND(N23="SEMESTRAL",J23="SEMESTRAL"),N17,IF(AND(N23="SEMESTRAL",J23="ANUAL"),"REVISAR FRECUENCIAS",IF(AND(N23="TRIMESTRAL",J23="MENSUAL"),N17/3,IF(AND(N23="TRIMESTRAL",J23="TRIMESTRAL"),N17,IF(AND(N23="TRIMESTRAL",J23="SEMESTRAL"),"REVISAR FRECUENCIAS",IF(AND(N23="TRIMESTRAL",J23="ANUAL"),"REVISAR FRECUENCIAS",IF(AND(N23="MENSUAL",J23="MENSUAL"),N17,IF(AND(N23="MENSUAL",J23="TRIMESTRAL"),"REVISAR FRECUENCIAS",IF(AND(N23="MENSUAL",J23="SEMESTRAL"),"REVISAR FRECUENCIAS",IF(AND(N23="MENSUAL",J23="ANUAL"),"REVISAR FRECUENCIAS","")))))))))))))))) -> 0.1 | E50: =IF(AND(N23="ANUAL",J23="MENSUAL"),N17/12+D50,IF(AND(N23="ANUAL",J23="TRIMESTRAL"),N17/4+D50,IF(AND(N23="ANUAL",J23="SEMESTRAL"),N17/2+D50,IF(AND(N23="SEMESTRAL",J23="MENSUAL"),N17/6+D50,IF(AND(N23="SEMESTRAL",J23="TRIMESTRAL"),N17/2+D50,IF(AND(N23="SEMESTRAL",J23="SEMESTRAL"),N17,IF(AND(N23="TRIMESTRAL",J23="MENSUAL"),N17/3+D50,IF(AND(N23="TRIMESTRAL",J23="TRIMESTRAL"),N17,IF(AND(N23="MENSUAL",J23="MENSUAL"),N17,""))))))))) -> 0.2 | F50: =IF(AND(N23="ANUAL",J23="MENSUAL"),N17/12+E50,IF(AND(N23="ANUAL",J23="TRIMESTRAL"),N17/4+E50,IF(AND(N23="SEMESTRAL",J23="MENSUAL"),N17/6+E50,IF(AND(N23="SEMESTRAL",J23="TRIMESTRAL"),N17/2,IF(AND(N23="TRIMESTRAL",J23="MENSUAL"),N17/3+E50,IF(AND(N23="TRIMESTRAL",J23="TRIMESTRAL"),N17,IF(AND(N23="MENSUAL",J23="MENSUAL"),N17,""))))))) ->  | G50: =IF(AND(N23="ANUAL",J23="MENSUAL"),N17/12+F50,IF(AND(N23="ANUAL",J23="TRIMESTRAL"),N17/4+F50,IF(AND(N23="SEMESTRAL",J23="MENSUAL"),N17/6+F50,IF(AND(N23="SEMESTRAL",J23="TRIMESTRAL"),N17/2+F50,IF(AND(N23="TRIMESTRAL",J23="MENSUAL"),N17/3,IF(AND(N23="TRIMESTRAL",J23="TRIMESTRAL"),N17,IF(AND(N23="MENSUAL",J23="MENSUAL"),N17,""))))))) ->  | H50: =IF(AND($N$23="ANUAL",$J$23="MENSUAL"),$N$17/12+G50,IF(AND(N23="SEMESTRAL",J23="MENSUAL"),N17/6+G50,IF(AND(N23="TRIMESTRAL",J23="MENSUAL"),N17/3+G50,IF(AND(N23="MENSUAL",J23="MENSUAL"),N17,"")))) ->  | I50: =IF(AND($N$23="ANUAL",$J$23="MENSUAL"),$N$17/12+H50,IF(AND(N23="SEMESTRAL",J23="MENSUAL"),N17/6+H50,IF(AND(N23="TRIMESTRAL",J23="MENSUAL"),N17/3+H50,IF(AND(N23="MENSUAL",J23="MENSUAL"),N17,"")))) ->  | J50: =IF(AND($N$23="ANUAL",$J$23="MENSUAL"),$N$17/12+I50,IF(AND(N23="SEMESTRAL",J23="MENSUAL"),N17/6,IF(AND(N23="TRIMESTRAL",J23="MENSUAL"),N17/3,IF(AND(N23="MENSUAL",J23="MENSUAL"),N17,"")))) ->  | K50: =IF(AND($N$23="ANUAL",$J$23="MENSUAL"),$N$17/12+J50,IF(AND(N23="SEMESTRAL",J23="MENSUAL"),N17/6+J50,IF(AND(N23="TRIMESTRAL",J23="MENSUAL"),N17/3+J50,IF(AND(N23="MENSUAL",J23="MENSUAL"),N17,"")))) ->  | L50: =IF(AND($N$23="ANUAL",$J$23="MENSUAL"),$N$17/12+K50,IF(AND(N23="SEMESTRAL",J23="MENSUAL"),N17/6+K50,IF(AND(N23="TRIMESTRAL",J23="MENSUAL"),N17/3+K50,IF(AND(N23="MENSUAL",J23="MENSUAL"),N17,"")))) ->  | M50: =IF(AND($N$23="ANUAL",$J$23="MENSUAL"),$N$17/12+L50,IF(AND(N23="SEMESTRAL",J23="MENSUAL"),N17/6+L50,IF(AND(N23="TRIMESTRAL",J23="MENSUAL"),N17/3,IF(AND(N23="MENSUAL",J23="MENSUAL"),N17,"")))) ->  | N50: =IF(AND($N$23="ANUAL",$J$23="MENSUAL"),$N$17/12+M50,IF(AND(N23="SEMESTRAL",J23="MENSUAL"),N17/6+M50,IF(AND(N23="TRIMESTRAL",J23="MENSUAL"),N17/3+M50,IF(AND(N23="MENSUAL",J23="MENSUAL"),N17,"")))) ->  | O50: =IF(AND($N$23="ANUAL",$J$23="MENSUAL"),$N$17/12+N50,IF(AND(N23="SEMESTRAL",J23="MENSUAL"),N17/6+N50,IF(AND(N23="TRIMESTRAL",J23="MENSUAL"),N17/3+N50,IF(AND(N23="MENSUAL",J23="MENSUAL"),N17,"")))) -> 
C52: NIVEL DE SEGREGACIÓN *
C53: UNIDAD SEGREGADA (Ej. Facultad, Programa Académico, Área) | G53: RESULTADO | K53: ANÁLISIS DE DATOS SEGREGADO
G72: Estratégico | J72: Eficacia
G73: Misional | J73: Eficiencia
G74: Apoyo | J74: Acreditación
G75: Seguimiento, Medición, Análisis y Evaluación | J75: Positiva
G76: Direccionamiento Estratégico | J76: Negativa
G77: Planeación Institucional | J77: Por Unidad Regional
G78: Proyectos Especiales y Relaciones Interinstitucionales | J78: Por Facultad
G79: Sistemas Integrados | J79: Por Programa Académico
G80: Autoevaluación y Acreditación | J80: Por área
G81: Comunicaciones | J81: Por Laboratorio
G82: Formación y Aprendizaje | J82: Otros
G83: Ciencia, Tecnología e Innovación | J83: No Aplica
G84: Interacción Social Universitaria
G85: Bienestar Universitario
G86: Admisiones y Registro
G87: Graduados
G88: Dialogando con el Mundo
G89: Talento Humano
G90: Jurídica
G91: Financiera
G92: Sistemas y Tecnología
G93: Bienes y Servicios
G94: Documental
G95: Apoyo Académico
G96: Control Interno
G97: Control Disciplinario
G98: Servicio de Atención al Ciudadano

Sheet SCI-3 (hidden)
B2: REGRESAR
E5: MACROPROCESO ESTRATÉGICO | M5: CÓDIGO: ESGr027
E6: PROCESO GESTIÓN SISTEMAS INTEGRADOS | M6: VERSIÓN: 7
E7: MATRIZ DE MEDICIÓN Y SEGUIMIENTO A LOS PROCESOS DE GESTIÓN | M7: VIGENCIA: 2020-03-20
M8: PÁGINA: 1 de 1
C10: FICHA DE INDICADOR
C12: MACROPROCESO | E12: Seguimiento, Medición, Análisis y Evaluación | I12: NOMBRE DEL INDICADOR | K12: Conformidad de los hallazgos presentados en controversias
C13: PROCESO GESTIÓN | E13: Control Interno
C14: RESPONSABLE DE MEDICIÓN | E14: Director(a) de Control Interno
C16: 1. COMPORTAMIENTO DE INDICADOR
C17: CLASIFICACIÓN DE LA MEDICIÓN | E17: 1 | H17: TIPO DE INDICADOR | J17: Eficacia | L17: META ANUAL | N17: 0.8
C18: FÓRMULA | E18: NUMERADOR | G18: hallazgos identificados conforme al criterio de auditoria*100 | L18: UNIDAD DE MEDIDA | N18: Porcentual
E19: DENOMINADOR | G19: Total de hallazgos presentados en controversias
C20: TENDENCIA | E20: Positiva | H20: NIVEL DE SEGREGACIÓN * | J20: No Aplica | L20: ESCALA
L21: Deficiente | M21: Aceptable | N21: Bueno | O21: Excelente
L22: 0%59 | M22: 60%-74% | N22: 75%-80% | O22: >81%
C23: ORIGEN DE DATOS NUMERADOR | E23: Informe final de Auditoria | H23: FRECUENCIA DE LA MEDICIÓN | J23: SEMESTRAL | L23: FRECUENCIA DE RESULTADO | N23: SEMESTRAL
C24: ORIGEN DE DATOS DENOMINADOR | E24: Informe final de Auditoria
C26: RESULTADOS
J27: ANÁLISIS DE DATOS
J28: SEMESTRE I : Para el IPA_2021 se llevan a cabo auditorias internas de Control Interno a los siguientes procesos: Dialogando con el Mundo. Admisiones y Registro. Dirección de Planeación Institucional. Las cuales derivaron en un total de 14 hallazgos , a los cuales se presentaron 14 controversias de las cuales se subsana 1 por parte del proceso de Dialogando con el Mundo, por subsanación de evidencia. "Motivo por el cual no se tiene en cuenta este dato en el indicador debido a que el hallazgo subsanado fue por entrega e evidencia en periodo de controversia y no por inconsistencias en el criterio del auditor". Se hace claridad que para la medición de este indicador no se tiene en cuenta la auditoria realizada Formación y Aprendizaje debido a que aun se encuentra en fase de controversias de auditoria.
J41: ACCIÓN FORMULADA
J42: N/A
J44: RESPONSABLE
J45: =E14 -> Director(a) de Control Interno
C48: PERIODO DE EVALUACIÓN
C49: MES | D49: =IF(J23="MENSUAL","ENERO",IF(J23="TRIMESTRAL","MARZO",IF(J23="SEMESTRAL","JUNIO",IF(J23="ANUAL",YEAR(TODAY()),"")))) -> JUNIO | E49: =IF(J23="MENSUAL","FEBRERO",IF(J23="TRIMESTRAL","JUNIO",IF(J23="SEMESTRAL","DICIEMBRE",""))) -> DICIEMBRE | F49: =IF(J23="MENSUAL","MARZO",IF(J23="TRIMESTRAL","SEPTIEMBRE","")) ->  | G49: =IF(J23="MENSUAL","ABRIL",IF(J23="TRIMESTRAL","DICIEMBRE","")) ->  | H49: =IF(J23="MENSUAL","MAYO","") ->  | I49: =IF(J23="MENSUAL","JUNIO","") ->  | J49: =IF(J23="MENSUAL","JULIO","") ->  | K49: =IF(J23="MENSUAL","AGOSTO","") ->  | L49: =IF(J23="MENSUAL","SEPTIEMBRE","") ->  | M49: =IF(J23="MENSUAL","OCTUBRE","") ->  | N49: =IF(J23="MENSUAL","NOVIEMBRE","") ->  | O49: =IF(J23="MENSUAL","DICIEMBRE","") -> 
C50: =G18 -> hallazgos identificados conforme al criterio de auditoria*100 | D50: 14
C51: =G19 -> Total de hallazgos presentados en controversias | D51: 14
C52: VALOR | D52: =IFERROR(IF($E$17=1,D50/D51,IF($E$17=2,D50,"")),"") -> 1 | E52: =IFERROR(IF($E$17=1,E50/E51,IF($E$17=2,E50,"")),"") -> 
C53: META PONDERADA | D53: =IF(AND(N23="ANUAL",J23="MENSUAL"),N17/12,IF(AND(N23="ANUAL",J23="TRIMESTRAL"),N17/4,IF(AND(N23="ANUAL",J23="SEMESTRAL"),N17/2,IF(AND(N23="ANUAL",J23="ANUAL"),N17,IF(AND(N23="SEMESTRAL",J23="MENSUAL"),N17/6,IF(AND(N23="SEMESTRAL",J23="TRIMESTRAL"),N17/2,IF(AND(N23="SEMESTRAL",J23="SEMESTRAL"),N17,IF(AND(N23="SEMESTRAL",J23="ANUAL"),"REVISAR FRECUENCIAS",IF(AND(N23="TRIMESTRAL",J23="MENSUAL"),N17/3,IF(AND(N23="TRIMESTRAL",J23="TRIMESTRAL"),N17,IF(AND(N23="TRIMESTRAL",J23="SEMESTRAL"),"REVISAR FRECUENCIAS",IF(AND(N23="TRIMESTRAL",J23="ANUAL"),"REVISAR FRECUENCIAS",IF(AND(N23="MENSUAL",J23="MENSUAL"),N17,IF(AND(N23="MENSUAL",J23="TRIMESTRAL"),"REVISAR FRECUENCIAS",IF(AND(N23="MENSUAL",J23="SEMESTRAL"),"REVISAR FRECUENCIAS",IF(AND(N23="MENSUAL",J23="ANUAL"),"REVISAR FRECUENCIAS","")))))))))))))))) -> 0.8 | E53: =IF(AND(N23="ANUAL",J23="MENSUAL"),N17/12+D53,IF(AND(N23="ANUAL",J23="TRIMESTRAL"),N17/4+D53,IF(AND(N23="ANUAL",J23="SEMESTRAL"),N17/2+D53,IF(AND(N23="SEMESTRAL",J23="MENSUAL"),N17/6+D53,IF(AND(N23="SEMESTRAL",J23="TRIMESTRAL"),N17/2+D53,IF(AND(N23="SEMESTRAL",J23="SEMESTRAL"),N17,IF(AND(N23="TRIMESTRAL",J23="MENSUAL"),N17/3+D53,IF(AND(N23="TRIMESTRAL",J23="TRIMESTRAL"),N17,IF(AND(N23="MENSUAL",J23="MENSUAL"),N17,""))))))))) -> 0.8 | F53: =IF(AND(N23="ANUAL",J23="MENSUAL"),N17/12+E53,IF(AND(N23="ANUAL",J23="TRIMESTRAL"),N17/4+E53,IF(AND(N23="SEMESTRAL",J23="MENSUAL"),N17/6+E53,IF(AND(N23="SEMESTRAL",J23="TRIMESTRAL"),N17/2,IF(AND(N23="TRIMESTRAL",J23="MENSUAL"),N17/3+E53,IF(AND(N23="TRIMESTRAL",J23="TRIMESTRAL"),N17,IF(AND(N23="MENSUAL",J23="MENSUAL"),N17,""))))))) ->  | G53: =IF(AND(N23="ANUAL",J23="MENSUAL"),N17/12+F53,IF(AND(N23="ANUAL",J23="TRIMESTRAL"),N17/4+F53,IF(AND(N23="SEMESTRAL",J23="MENSUAL"),N17/6+F53,IF(AND(N23="SEMESTRAL",J23="TRIMESTRAL"),N17/2+F53,IF(AND(N23="TRIMESTRAL",J23="MENSUAL"),N17/3,IF(AND(N23="TRIMESTRAL",J23="TRIMESTRAL"),N17,IF(AND(N23="MENSUAL",J23="MENSUAL"),N17,""))))))) ->  | H53: =IF(AND($N$23="ANUAL",$J$23="MENSUAL"),$N$17/12+G53,IF(AND(N23="SEMESTRAL",J23="MENSUAL"),N17/6+G53,IF(AND(N23="TRIMESTRAL",J23="MENSUAL"),N17/3+G53,IF(AND(N23="MENSUAL",J23="MENSUAL"),N17,"")))) ->  | I53: =IF(AND($N$23="ANUAL",$J$23="MENSUAL"),$N$17/12+H53,IF(AND(N23="SEMESTRAL",J23="MENSUAL"),N17/6+H53,IF(AND(N23="TRIMESTRAL",J23="MENSUAL"),N17/3+H53,IF(AND(N23="MENSUAL",J23="MENSUAL"),N17,"")))) ->  | J53: =IF(AND($N$23="ANUAL",$J$23="MENSUAL"),$N$17/12+I53,IF(AND(N23="SEMESTRAL",J23="MENSUAL"),N17/6,IF(AND(N23="TRIMESTRAL",J23="MENSUAL"),N17/3,IF(AND(N23="MENSUAL",J23="MENSUAL"),N17,"")))) ->  | K53: =IF(AND($N$23="ANUAL",$J$23="MENSUAL"),$N$17/12+J53,IF(AND(N23="SEMESTRAL",J23="MENSUAL"),N17/6+J53,IF(AND(N23="TRIMESTRAL",J23="MENSUAL"),N17/3+J53,IF(AND(N23="MENSUAL",J23="MENSUAL"),N17,"")))) ->  | L53: =IF(AND($N$23="ANUAL",$J$23="MENSUAL"),$N$17/12+K53,IF(AND(N23="SEMESTRAL",J23="MENSUAL"),N17/6+K53,IF(AND(N23="TRIMESTRAL",J23="MENSUAL"),N17/3+K53,IF(AND(N23="MENSUAL",J23="MENSUAL"),N17,"")))) ->  | M53: =IF(AND($N$23="ANUAL",$J$23="MENSUAL"),$N$17/12+L53,IF(AND(N23="SEMESTRAL",J23="MENSUAL"),N17/6+L53,IF(AND(N23="TRIMESTRAL",J23="MENSUAL"),N17/3,IF(AND(N23="MENSUAL",J23="MENSUAL"),N17,"")))) ->  | N53: =IF(AND($N$23="ANUAL",$J$23="MENSUAL"),$N$17/12+M53,IF(AND(N23="SEMESTRAL",J23="MENSUAL"),N17/6+M53,IF(AND(N23="TRIMESTRAL",J23="MENSUAL"),N17/3+M53,IF(AND(N23="MENSUAL",J23="MENSUAL"),N17,"")))) ->  | O53: =IF(AND($N$23="ANUAL",$J$23="MENSUAL"),$N$17/12+N53,IF(AND(N23="SEMESTRAL",J23="MENSUAL"),N17/6+N53,IF(AND(N23="TRIMESTRAL",J23="MENSUAL"),N17/3+N53,IF(AND(N23="MENSUAL",J23="MENSUAL"),N17,"")))) -> 
C55: NIVEL DE SEGREGACIÓN *
C56: UNIDAD SEGREGADA (Ej. Facultad, Programa Académico, Área) | G56: RESULTADO | K56: ANÁLISIS DE DATOS SEGREGADO
G75: Estratégico | J75: Eficacia
G76: Misional | J76: Eficiencia
G77: Apoyo | J77: Acreditación
G78: Seguimiento, Medición, Análisis y Evaluación | J78: Positiva
G79: Direccionamiento Estratégico | J79: Negativa
G80: Planeación Institucional | J80: Por Unidad Regional
G81: Proyectos Especiales y Relaciones Interinstitucionales | J81: Por Facultad
G82: Sistemas Integrados | J82: Por Programa Académico
G83: Autoevaluación y Acreditación | J83: Por área
G84: Comunicaciones | J84: Por Laboratorio
G85: Formación y Aprendizaje | J85: Otros
G86: Ciencia, Tecnología e Innovación | J86: No Aplica
G87: Interacción Social Universitaria
G88: Bienestar Universitario
G89: Admisiones y Registro
G90: Graduados
G91: Dialogando con el Mundo
G92: Talento Humano
G93: Jurídica
G94: Financiera
G95: Sistemas y Tecnología
G96: Bienes y Servicios
G97: Documental
G98: Apoyo Académico
G99: Control Interno
G100: Control Disciplinario
G101: Servicio de Atención al Ciudadano

Sheet SCI-6 (hidden)
B2: REGRESAR
E5: MACROPROCESO ESTRATÉGICO | M5: CÓDIGO: ESGr027
E6: PROCESO GESTIÓN SISTEMAS INTEGRADOS | M6: VERSIÓN: 7
E7: MATRIZ DE MEDICIÓN Y SEGUIMIENTO A LOS PROCESOS DE GESTIÓN | M7: VIGENCIA: 2020-03-20
M8: PÁGINA: 1 de 1
C10: FICHA DE INDICADOR
C12: MACROPROCESO | E12: Seguimiento, Medición, Análisis y Evaluación | I12: NOMBRE DEL INDICADOR | K12: Oportunidad en la entrega de pre -informes de auditoría
C13: PROCESO GESTIÓN | E13: Control Interno
C14: RESPONSABLE DE MEDICIÓN | E14: Director(a) de Control Interno
C16: 1. COMPORTAMIENTO DE INDICADOR
C17: CLASIFICACIÓN DE LA MEDICIÓN | E17: 1 | H17: TIPO DE INDICADOR | J17: Eficacia | L17: META ANUAL | N17: 0.9
C18: FÓRMULA | E18: NUMERADOR | G18: Pre-Informes de auditoría entregados a tiempo*100 | L18: UNIDAD DE MEDIDA | N18: Porcentual
E19: DENOMINADOR | G19: Total Pre- informes de procesos auditados
C20: TENDENCIA | E20: Positiva | H20: NIVEL DE SEGREGACIÓN * | J20: No Aplica | L20: ESCALA
L21: Deficiente | M21: Aceptable | N21: Bueno | O21: Excelente
L22: 0 - 59,9% | M22: 60% - 79,9% | N22: 80% - 89,9% | O22: 90% - 100%
C23: ORIGEN DE DATOS NUMERADOR | E23: Base de datos indicadores Control Interno | H23: FRECUENCIA DE LA MEDICIÓN | J23: SEMESTRAL | L23: FRECUENCIA DE RESULTADO | N23: SEMESTRAL
C24: ORIGEN DE DATOS DENOMINADOR | E24: Base de datos indicadores Control Interno
C26: RESULTADOS
J27: ANÁLISIS DE DATOS
J28: Primer Semestre: Para el IPA_2021, se realizan auditorias internas a los procesos de: 1. Dialogando con el Mundo. A tiempo 2. Admisiones y Registro. A tiempo 3. Formación y Aprendizaje. A tiempo 4. Dirección de Planeación Institucional. Fuera de la fecha establecida ( Aplazamiento reunión de cierre, motivo fuerza mayor). Las cuales dan cumplimiento a lo establecido en el Procedimiento SCIP04 "Auditoria Interna". Se hace claridad que el Preinforme de auditoria derivado de la auditoria interna realizada a la Dirección de Planeación Institucional se presenta por fuera de los 20 dias habiles establecidos, esto debido a afectaciones de salud que presentaban los miembros del el equipo auditado por lo cual fue necesario aplazar la reunión de cierre de auditoria, lo cual se cruzo con la finalización de contrato de los funcionarios de las areas (vacaciones colectivas). Así las cosas y dando claridad a lo anterior se da por cumplido el indicador jutificando el echo a motivos, causa fuerza mayor.
J34: ACCIÓN FORMULADA
J41: RESPONSABLE
J42: =E14 -> Director(a) de Control Interno
C45: PERIODO DE EVALUACIÓN
C46: MES | D46: =IF(J23="MENSUAL","ENERO",IF(J23="TRIMESTRAL","MARZO",IF(J23="SEMESTRAL","JUNIO",IF(J23="ANUAL",YEAR(TODAY()),"")))) -> JUNIO | E46: =IF(J23="MENSUAL","FEBRERO",IF(J23="TRIMESTRAL","JUNIO",IF(J23="SEMESTRAL","DICIEMBRE",""))) -> DICIEMBRE | F46: =IF(J23="MENSUAL","MARZO",IF(J23="TRIMESTRAL","SEPTIEMBRE","")) ->  | G46: =IF(J23="MENSUAL","ABRIL",IF(J23="TRIMESTRAL","DICIEMBRE","")) ->  | H46: =IF(J23="MENSUAL","MAYO","") ->  | I46: =IF(J23="MENSUAL","JUNIO","") ->  | J46: =IF(J23="MENSUAL","JULIO","") ->  | K46: =IF(J23="MENSUAL","AGOSTO","") ->  | L46: =IF(J23="MENSUAL","SEPTIEMBRE","") ->  | M46: =IF(J23="MENSUAL","OCTUBRE","") ->  | N46: =IF(J23="MENSUAL","NOVIEMBRE","") ->  | O46: =IF(J23="MENSUAL","DICIEMBRE","") -> 
C47: =G18 -> Pre-Informes de auditoría entregados a tiempo*100 | D47: 4
C48: =G19 -> Total Pre- informes de procesos auditados | D48: 4
C49: VALOR | D49: =IFERROR(IF($E$17=1,D47/D48,IF($E$17=2,D47,"")),"") -> 1
C50: META PONDERADA | D50: =IF(AND(N23="ANUAL",J23="MENSUAL"),N17/12,IF(AND(N23="ANUAL",J23="TRIMESTRAL"),N17/4,IF(AND(N23="ANUAL",J23="SEMESTRAL"),N17/2,IF(AND(N23="ANUAL",J23="ANUAL"),N17,IF(AND(N23="SEMESTRAL",J23="MENSUAL"),N17/6,IF(AND(N23="SEMESTRAL",J23="TRIMESTRAL"),N17/2,IF(AND(N23="SEMESTRAL",J23="SEMESTRAL"),N17,IF(AND(N23="SEMESTRAL",J23="ANUAL"),"REVISAR FRECUENCIAS",IF(AND(N23="TRIMESTRAL",J23="MENSUAL"),N17/3,IF(AND(N23="TRIMESTRAL",J23="TRIMESTRAL"),N17,IF(AND(N23="TRIMESTRAL",J23="SEMESTRAL"),"REVISAR FRECUENCIAS",IF(AND(N23="TRIMESTRAL",J23="ANUAL"),"REVISAR FRECUENCIAS",IF(AND(N23="MENSUAL",J23="MENSUAL"),N17,IF(AND(N23="MENSUAL",J23="TRIMESTRAL"),"REVISAR FRECUENCIAS",IF(AND(N23="MENSUAL",J23="SEMESTRAL"),"REVISAR FRECUENCIAS",IF(AND(N23="MENSUAL",J23="ANUAL"),"REVISAR FRECUENCIAS","")))))))))))))))) -> 0.9 | E50: =IF(AND(N23="ANUAL",J23="MENSUAL"),N17/12+D50,IF(AND(N23="ANUAL",J23="TRIMESTRAL"),N17/4+D50,IF(AND(N23="ANUAL",J23="SEMESTRAL"),N17/2+D50,IF(AND(N23="SEMESTRAL",J23="MENSUAL"),N17/6+D50,IF(AND(N23="SEMESTRAL",J23="TRIMESTRAL"),N17/2+D50,IF(AND(N23="SEMESTRAL",J23="SEMESTRAL"),N17,IF(AND(N23="TRIMESTRAL",J23="MENSUAL"),N17/3+D50,IF(AND(N23="TRIMESTRAL",J23="TRIMESTRAL"),N17,IF(AND(N23="MENSUAL",J23="MENSUAL"),N17,""))))))))) -> 0.9 | F50: =IF(AND(N23="ANUAL",J23="MENSUAL"),N17/12+E50,IF(AND(N23="ANUAL",J23="TRIMESTRAL"),N17/4+E50,IF(AND(N23="SEMESTRAL",J23="MENSUAL"),N17/6+E50,IF(AND(N23="SEMESTRAL",J23="TRIMESTRAL"),N17/2,IF(AND(N23="TRIMESTRAL",J23="MENSUAL"),N17/3+E50,IF(AND(N23="TRIMESTRAL",J23="TRIMESTRAL"),N17,IF(AND(N23="MENSUAL",J23="MENSUAL"),N17,""))))))) ->  | G50: =IF(AND(N23="ANUAL",J23="MENSUAL"),N17/12+F50,IF(AND(N23="ANUAL",J23="TRIMESTRAL"),N17/4+F50,IF(AND(N23="SEMESTRAL",J23="MENSUAL"),N17/6+F50,IF(AND(N23="SEMESTRAL",J23="TRIMESTRAL"),N17/2+F50,IF(AND(N23="TRIMESTRAL",J23="MENSUAL"),N17/3,IF(AND(N23="TRIMESTRAL",J23="TRIMESTRAL"),N17,IF(AND(N23="MENSUAL",J23="MENSUAL"),N17,""))))))) ->  | H50: =IF(AND($N$23="ANUAL",$J$23="MENSUAL"),$N$17/12+G50,IF(AND(N23="SEMESTRAL",J23="MENSUAL"),N17/6+G50,IF(AND(N23="TRIMESTRAL",J23="MENSUAL"),N17/3+G50,IF(AND(N23="MENSUAL",J23="MENSUAL"),N17,"")))) ->  | I50: =IF(AND($N$23="ANUAL",$J$23="MENSUAL"),$N$17/12+H50,IF(AND(N23="SEMESTRAL",J23="MENSUAL"),N17/6+H50,IF(AND(N23="TRIMESTRAL",J23="MENSUAL"),N17/3+H50,IF(AND(N23="MENSUAL",J23="MENSUAL"),N17,"")))) ->  | J50: =IF(AND($N$23="ANUAL",$J$23="MENSUAL"),$N$17/12+I50,IF(AND(N23="SEMESTRAL",J23="MENSUAL"),N17/6,IF(AND(N23="TRIMESTRAL",J23="MENSUAL"),N17/3,IF(AND(N23="MENSUAL",J23="MENSUAL"),N17,"")))) ->  | K50: =IF(AND($N$23="ANUAL",$J$23="MENSUAL"),$N$17/12+J50,IF(AND(N23="SEMESTRAL",J23="MENSUAL"),N17/6+J50,IF(AND(N23="TRIMESTRAL",J23="MENSUAL"),N17/3+J50,IF(AND(N23="MENSUAL",J23="MENSUAL"),N17,"")))) ->  | L50: =IF(AND($N$23="ANUAL",$J$23="MENSUAL"),$N$17/12+K50,IF(AND(N23="SEMESTRAL",J23="MENSUAL"),N17/6+K50,IF(AND(N23="TRIMESTRAL",J23="MENSUAL"),N17/3+K50,IF(AND(N23="MENSUAL",J23="MENSUAL"),N17,"")))) ->  | M50: =IF(AND($N$23="ANUAL",$J$23="MENSUAL"),$N$17/12+L50,IF(AND(N23="SEMESTRAL",J23="MENSUAL"),N17/6+L50,IF(AND(N23="TRIMESTRAL",J23="MENSUAL"),N17/3,IF(AND(N23="MENSUAL",J23="MENSUAL"),N17,"")))) ->  | N50: =IF(AND($N$23="ANUAL",$J$23="MENSUAL"),$N$17/12+M50,IF(AND(N23="SEMESTRAL",J23="MENSUAL"),N17/6+M50,IF(AND(N23="TRIMESTRAL",J23="MENSUAL"),N17/3+M50,IF(AND(N23="MENSUAL",J23="MENSUAL"),N17,"")))) ->  | O50: =IF(AND($N$23="ANUAL",$J$23="MENSUAL"),$N$17/12+N50,IF(AND(N23="SEMESTRAL",J23="MENSUAL"),N17/6+N50,IF(AND(N23="TRIMESTRAL",J23="MENSUAL"),N17/3+N50,IF(AND(N23="MENSUAL",J23="MENSUAL"),N17,"")))) -> 
C52: NIVEL DE SEGREGACIÓN *
C53: UNIDAD SEGREGADA (Ej. Facultad, Programa Académico, Área) | G53: RESULTADO | K53: ANÁLISIS DE DATOS SEGREGADO
G72: Estratégico | J72: Eficacia
G73: Misional | J73: Eficiencia
G74: Apoyo | J74: Acreditación
G75: Seguimiento, Medición, Análisis y Evaluación | J75: Positiva
G76: Direccionamiento Estratégico | J76: Negativa
G77: Planeación Institucional | J77: Por Unidad Regional
G78: Proyectos Especiales y Relaciones Interinstitucionales | J78: Por Facultad
G79: Sistemas Integrados | J79: Por Programa Académico
G80: Autoevaluación y Acreditación | J80: Por área
G81: Comunicaciones | J81: Por Laboratorio
G82: Formación y Aprendizaje | J82: Otros
G83: Ciencia, Tecnología e Innovación | J83: No Aplica
G84: Interacción Social Universitaria
G85: Bienestar Universitario
G86: Admisiones y Registro
G87: Graduados
G88: Dialogando con el Mundo
G89: Talento Humano
G90: Jurídica
G91: Financiera
G92: Sistemas y Tecnología
G93: Bienes y Servicios
G94: Documental
G95: Apoyo Académico
G96: Control Interno
G97: Control Disciplinario
G98: Servicio de Atención al Ciudadano

Sheet INS-2 (hidden)
B2: REGRESAR
E5: MACROPROCESO ESTRATÉGICO | M5: CÓDIGO: ESGr027
E6: PROCESO GESTIÓN SISTEMAS INTEGRADOS | M6: VERSIÓN: 7
E7: MATRIZ DE MEDICIÓN Y SEGUIMIENTO A LOS PROCESOS DE GESTIÓN | M7: VIGENCIA: 2020-03-20
M8: PÁGINA: 1 de 1
C10: FICHA DE INDICADOR
C12: MACROPROCESO | E12: Seguimiento, Medición, Análisis y Evaluación | I12: NOMBRE DEL INDICADOR | K12: Nivel de mejoramiento
C13: PROCESO GESTIÓN | E13: Control Interno
C14: RESPONSABLE DE MEDICIÓN | E14: Director(a) de Control Interno
C16: 1. COMPORTAMIENTO DE INDICADOR
C17: CLASIFICACIÓN DE LA MEDICIÓN | E17: 1 | H17: TIPO DE INDICADOR | J17: Eficacia | L17: META ANUAL | N17: 0.8
C18: FÓRMULA | E18: NUMERADOR | G18: Mejoras cerradas*100 | L18: UNIDAD DE MEDIDA | N18: Porcentual
E19: DENOMINADOR | G19: Total de mejoras por proceso
C20: TENDENCIA | E20: Positiva | H20: NIVEL DE SEGREGACIÓN * | J20: No Aplica | L20: ESCALA
L21: Deficiente | M21: Aceptable | N21: Bueno | O21: Excelente
L22: 0% - 60% | M22: 61% - 70% | N22: 71% - 79% | O22: 80 %- 100%
C23: ORIGEN DE DATOS NUMERADOR | E23: Base de datos seguimiento al avance de planes de mejora | H23: FRECUENCIA DE LA MEDICIÓN | J23: TRIMESTRAL | L23: FRECUENCIA DE RESULTADO | N23: TRIMESTRAL
C24: ORIGEN DE DATOS DENOMINADOR | E24: Base de datos seguimiento al avance de planes de mejora
C26: RESULTADOS
J27: ANÁLISIS DE DATOS
J28: TRIMESTRE I: Para el primer trimestre de la vigencia 2021 se generan un total de 21 Planes de Mejoramiento Interno y se cierran un total de 2 Planes de Mejoramiento. Lo anterior como resultado del cargue de los hallazgos derivados de la Auditoria Interna tercerizada realizada al Sistema de Gestión de Seguridad y Salud en el Trabajo, Auditoria de ICONTEC y Auditorias Internas de Control Interno. Así las cosas es evidente el número de Planes de Mejoramiento Abiertos con respecto a los cerrados en el Primer trimestre de la Vigencia 2021, lo cual se aduce que es generado por posibles factores los cuales están alineados a los siguientes aspectos: - Acciones correctivas que esta supeditadas a la ejecución de terceros. - Establecimiento de Acciones correctivas con metas superiores a una vigencia lo cual representa Planes de Mejoramiento con periodos largos de ejecución. - Falta fortalecer el autocontol y autogestion de los procesos en temas de administracion de la plataforma de planes de mejoramiento, Motivo por el cual es importante que se den las acciones necesarias por parte de cada uno del proceso a fin de dar avance y cumplimiento a los Planes de Mejoramiento. TRIMESTRE II: Para el II trimestre de la vigencia 2021 se generan un total de 12 Planes de Mejoramiento Internos, y se cierran un total de 10 Planes de Mejoramiento. Lo anterior como resultado del cargue de los hallazgos derivados de auditorias internas de Control Interno. De igual forma como se manifiesta en la medición del indicador anterior, se evidencia un numero de Planes de Mejoramiento inferior a los aperturados, peroe esto es debido las siguientes posibles causas: - Acciones correctivas que esta supeditadas a la ejecución de terceros. - Establecimiento de Acciones correctivas con metas superiores a una vigencia lo cual representa Planes de Mejoramiento con periodos largos de ejecución. - Falta fortalecer el autocontol y autogestion de los procesos en temas de administracion de la plataforma de planes de mejoramiento, Motivo por el cual es importante que se den las acciones necesarias por parte de cada uno del proceso a fin de dar avance y cumplimiento a los Planes de Mejoramiento
J43: ACCIÓN FORMULADA
J44: Se establece el Plan de Mejoramiento Interno No. 584 el cual tiene como fin generar lineamientos que permitan generar trazabilidad y medicion de los datos de manera exacta. De igual forma se solicita la actualización del Aplicativo de Control Interno "Acciones Correctivas y de Mejora", a fin de tener estados de avance en los Planes de Mejoramiento Internos mas exactos, lo cual permite tener analiticas relevantes y oportunas para la toma de decisiones.
J46: RESPONSABLE
J47: =E14 -> Director(a) de Control Interno
C50: PERIODO DE EVALUACIÓN
C51: MES | D51: =IF(J23="MENSUAL","ENERO",IF(J23="TRIMESTRAL","MARZO",IF(J23="SEMESTRAL","JUNIO",IF(J23="ANUAL",YEAR(TODAY()),"")))) -> MARZO | E51: =IF(J23="MENSUAL","FEBRERO",IF(J23="TRIMESTRAL","JUNIO",IF(J23="SEMESTRAL","DICIEMBRE",""))) -> JUNIO | F51: =IF(J23="MENSUAL","MARZO",IF(J23="TRIMESTRAL","SEPTIEMBRE","")) -> SEPTIEMBRE | G51: =IF(J23="MENSUAL","ABRIL",IF(J23="TRIMESTRAL","DICIEMBRE","")) -> DICIEMBRE | H51: =IF(J23="MENSUAL","MAYO","") ->  | I51: =IF(J23="MENSUAL","JUNIO","") ->  | J51: =IF(J23="MENSUAL","JULIO","") ->  | K51: =IF(J23="MENSUAL","AGOSTO","") ->  | L51: =IF(J23="MENSUAL","SEPTIEMBRE","") ->  | M51: =IF(J23="MENSUAL","OCTUBRE","") ->  | N51: =IF(J23="MENSUAL","NOVIEMBRE","") ->  | O51: =IF(J23="MENSUAL","DICIEMBRE","") -> 
C52: =G18 -> Mejoras cerradas*100 | D52: 190 | E52: 200
C53: =G19 -> Total de mejoras por proceso | D53: 331 | E53: 343
C54: VALOR | D54: =IFERROR(IF($E$17=1,D52/D53,IF($E$17=2,D52,"")),"") -> 0.5740181269 | E54: 0.583090379
C55: META PONDERADA | D55: =IF(AND(N23="ANUAL",J23="MENSUAL"),N17/12,IF(AND(N23="ANUAL",J23="TRIMESTRAL"),N17/4,IF(AND(N23="ANUAL",J23="SEMESTRAL"),N17/2,IF(AND(N23="ANUAL",J23="ANUAL"),N17,IF(AND(N23="SEMESTRAL",J23="MENSUAL"),N17/6,IF(AND(N23="SEMESTRAL",J23="TRIMESTRAL"),N17/2,IF(AND(N23="SEMESTRAL",J23="SEMESTRAL"),N17,IF(AND(N23="SEMESTRAL",J23="ANUAL"),"REVISAR FRECUENCIAS",IF(AND(N23="TRIMESTRAL",J23="MENSUAL"),N17/3,IF(AND(N23="TRIMESTRAL",J23="TRIMESTRAL"),N17,IF(AND(N23="TRIMESTRAL",J23="SEMESTRAL"),"REVISAR FRECUENCIAS",IF(AND(N23="TRIMESTRAL",J23="ANUAL"),"REVISAR FRECUENCIAS",IF(AND(N23="MENSUAL",J23="MENSUAL"),N17,IF(AND(N23="MENSUAL",J23="TRIMESTRAL"),"REVISAR FRECUENCIAS",IF(AND(N23="MENSUAL",J23="SEMESTRAL"),"REVISAR FRECUENCIAS",IF(AND(N23="MENSUAL",J23="ANUAL"),"REVISAR FRECUENCIAS","")))))))))))))))) -> 0.8 | E55: =IF(AND(N23="ANUAL",J23="MENSUAL"),N17/12+D55,IF(AND(N23="ANUAL",J23="TRIMESTRAL"),N17/4+D55,IF(AND(N23="ANUAL",J23="SEMESTRAL"),N17/2+D55,IF(AND(N23="SEMESTRAL",J23="MENSUAL"),N17/6+D55,IF(AND(N23="SEMESTRAL",J23="TRIMESTRAL"),N17/2+D55,IF(AND(N23="SEMESTRAL",J23="SEMESTRAL"),N17,IF(AND(N23="TRIMESTRAL",J23="MENSUAL"),N17/3+D55,IF(AND(N23="TRIMESTRAL",J23="TRIMESTRAL"),N17,IF(AND(N23="MENSUAL",J23="MENSUAL"),N17,""))))))))) -> 0.8 | F55: =IF(AND(N23="ANUAL",J23="MENSUAL"),N17/12+E55,IF(AND(N23="ANUAL",J23="TRIMESTRAL"),N17/4+E55,IF(AND(N23="SEMESTRAL",J23="MENSUAL"),N17/6+E55,IF(AND(N23="SEMESTRAL",J23="TRIMESTRAL"),N17/2,IF(AND(N23="TRIMESTRAL",J23="MENSUAL"),N17/3+E55,IF(AND(N23="TRIMESTRAL",J23="TRIMESTRAL"),N17,IF(AND(N23="MENSUAL",J23="MENSUAL"),N17,""))))))) -> 0.8 | G55: =IF(AND(N23="ANUAL",J23="MENSUAL"),N17/12+F55,IF(AND(N23="ANUAL",J23="TRIMESTRAL"),N17/4+F55,IF(AND(N23="SEMESTRAL",J23="MENSUAL"),N17/6+F55,IF(AND(N23="SEMESTRAL",J23="TRIMESTRAL"),N17/2+F55,IF(AND(N23="TRIMESTRAL",J23="MENSUAL"),N17/3,IF(AND(N23="TRIMESTRAL",J23="TRIMESTRAL"),N17,IF(AND(N23="MENSUAL",J23="MENSUAL"),N17,""))))))) -> 0.8 | H55: =IF(AND($N$23="ANUAL",$J$23="MENSUAL"),$N$17/12+G55,IF(AND(N23="SEMESTRAL",J23="MENSUAL"),N17/6+G55,IF(AND(N23="TRIMESTRAL",J23="MENSUAL"),N17/3+G55,IF(AND(N23="MENSUAL",J23="MENSUAL"),N17,"")))) ->  | I55: =IF(AND($N$23="ANUAL",$J$23="MENSUAL"),$N$17/12+H55,IF(AND(N23="SEMESTRAL",J23="MENSUAL"),N17/6+H55,IF(AND(N23="TRIMESTRAL",J23="MENSUAL"),N17/3+H55,IF(AND(N23="MENSUAL",J23="MENSUAL"),N17,"")))) ->  | J55: =IF(AND($N$23="ANUAL",$J$23="MENSUAL"),$N$17/12+I55,IF(AND(N23="SEMESTRAL",J23="MENSUAL"),N17/6,IF(AND(N23="TRIMESTRAL",J23="MENSUAL"),N17/3,IF(AND(N23="MENSUAL",J23="MENSUAL"),N17,"")))) ->  | K55: =IF(AND($N$23="ANUAL",$J$23="MENSUAL"),$N$17/12+J55,IF(AND(N23="SEMESTRAL",J23="MENSUAL"),N17/6+J55,IF(AND(N23="TRIMESTRAL",J23="MENSUAL"),N17/3+J55,IF(AND(N23="MENSUAL",J23="MENSUAL"),N17,"")))) ->  | L55: =IF(AND($N$23="ANUAL",$J$23="MENSUAL"),$N$17/12+K55,IF(AND(N23="SEMESTRAL",J23="MENSUAL"),N17/6+K55,IF(AND(N23="TRIMESTRAL",J23="MENSUAL"),N17/3+K55,IF(AND(N23="MENSUAL",J23="MENSUAL"),N17,"")))) ->  | M55: =IF(AND($N$23="ANUAL",$J$23="MENSUAL"),$N$17/12+L55,IF(AND(N23="SEMESTRAL",J23="MENSUAL"),N17/6+L55,IF(AND(N23="TRIMESTRAL",J23="MENSUAL"),N17/3,IF(AND(N23="MENSUAL",J23="MENSUAL"),N17,"")))) ->  | N55: =IF(AND($N$23="ANUAL",$J$23="MENSUAL"),$N$17/12+M55,IF(AND(N23="SEMESTRAL",J23="MENSUAL"),N17/6+M55,IF(AND(N23="TRIMESTRAL",J23="MENSUAL"),N17/3+M55,IF(AND(N23="MENSUAL",J23="MENSUAL"),N17,"")))) ->  | O55: =IF(AND($N$23="ANUAL",$J$23="MENSUAL"),$N$17/12+N55,IF(AND(N23="SEMESTRAL",J23="MENSUAL"),N17/6+N55,IF(AND(N23="TRIMESTRAL",J23="MENSUAL"),N17/3+N55,IF(AND(N23="MENSUAL",J23="MENSUAL"),N17,"")))) -> 
C57: NIVEL DE SEGREGACIÓN *
C58: UNIDAD SEGREGADA (Ej. Facultad, Programa Académico, Área) | G58: RESULTADO | K58: ANÁLISIS DE DATOS SEGREGADO
G77: Estratégico | J77: Eficacia
G78: Misional | J78: Eficiencia
G79: Apoyo | J79: Acreditación
G80: Seguimiento, Medición, Análisis y Evaluación | J80: Positiva
G81: Direccionamiento Estratégico | J81: Negativa
G82: Planeación Institucional | J82: Por Unidad Regional
G83: Proyectos Especiales y Relaciones Interinstitucionales | J83: Por Facultad
G84: Sistemas Integrados | J84: Por Programa Académico
G85: Autoevaluación y Acreditación | J85: Por área
G86: Comunicaciones | J86: Por Laboratorio
G87: Formación y Aprendizaje | J87: Otros
G88: Ciencia, Tecnología e Innovación | J88: No Aplica
G89: Interacción Social Universitaria
G90: Bienestar Universitario
G91: Admisiones y Registro
G92: Graduados
G93: Dialogando con el Mundo
G94: Talento Humano
G95: Jurídica
G96: Financiera
G97: Sistemas y Tecnología
G98: Bienes y Servicios
G99: Documental
G100: Apoyo Académico
G101: Control Interno
G102: Control Disciplinario
G103: Servicio de Atención al Ciudadano

Sheet INS-5 (hidden)
B2: REGRESAR
E5: MACROPROCESO ESTRATÉGICO | M5: CÓDIGO: ESGr027
E6: PROCESO GESTIÓN SISTEMAS INTEGRADOS | M6: VERSIÓN: 7
E7: MATRIZ DE MEDICIÓN Y SEGUIMIENTO A LOS PROCESOS DE GESTIÓN | M7: VIGENCIA: 2020-03-20
M8: PÁGINA: 1 de 1
C10: FICHA DE INDICADOR
C12: MACROPROCESO | E12: Seguimiento, Medición, Análisis y Evaluación | I12: NOMBRE DEL INDICADOR | K12: Eficacia en el control de riesgos
C13: PROCESO GESTIÓN | E13: Control Interno
C14: RESPONSABLE DE MEDICIÓN | E14: Director(a) de Control Interno
C16: 1. COMPORTAMIENTO DE INDICADOR
C17: CLASIFICACIÓN DE LA MEDICIÓN | E17: 1 | H17: TIPO DE INDICADOR | J17: Eficacia | L17: META ANUAL | N17: 0.65
C18: FÓRMULA | E18: NUMERADOR | G18: No. de riesgos residuales (A - E) residuales operativos institucionales controlados*100 | L18: UNIDAD DE MEDIDA | N18: Porcentual
E19: DENOMINADOR | G19: Total de riesgos Altos y Extremos residuales operativos institucionales
C20: TENDENCIA | E20: Positiva | H20: NIVEL DE SEGREGACIÓN * | J20: No Aplica | L20: ESCALA
L21: Deficiente | M21: Aceptable | N21: Bueno | O21: Excelente
L22: 0%-44% | M22: 46%-54% | N22: 55%-65% | O22: >66%
C23: ORIGEN DE DATOS NUMERADOR | E23: Matrices de Riesgo | H23: FRECUENCIA DE LA MEDICIÓN | J23: SEMESTRAL | L23: FRECUENCIA DE RESULTADO | N23: SEMESTRAL
C24: ORIGEN DE DATOS DENOMINADOR | E24: Matrices de Riesgo
C26: RESULTADOS
J27: ANÁLISIS DE DATOS
J28: En abril de 2021 se hace seguimiento a la eficacia en el control de los riesgos de tal manera que se identifican 5 riesgos institucionales materializados asi: 1) Incumplimiento en actividades y metas propias del proceso evidenciandose en el proceso de bienes y servicios incumplimiento al indicador de oportunidad de la compras con corte a diciembre de 2020 el cual refleja un resultado del 59% con una meta del 80%; 2) Inadecuada implementacion del procesos, dado que se evidencia en las auditorias de control interno y las interna de calidad y SGSST incumplimientos en la actualizacion e implementacion de procedimientos al interior de los procesos; 3) Potencial daño o deterioro de activos de la universidad, en tanto que se repiten hallazgos del ente de control externo relacionado con planes de mejoramiento orientados a la chatarrizacion de los vehiculos; 4)sanciones disciplinarias o pecuniarias por parte del ente de control; a la fecha no se ha producido sanciones sin embargo el informe de control interno contable de febrero de 2021 refleja el factor 121 como posible riesgos sancionatorio 5)Aplicacion inadecuada de lineamientos institucionales, llama la atención que no se precisa una alineacion de indicadores de calidad y planeacion con el fin de definir los indicadores estrategicos , esto como resultado de la revision por la direccion 2020.
J34: ACCIÓN FORMULADA
J37: RESPONSABLE
J38: =E14 -> Director(a) de Control Interno
C41: PERIODO DE EVALUACIÓN
C42: MES | D42: =IF(J23="MENSUAL","ENERO",IF(J23="TRIMESTRAL","MARZO",IF(J23="SEMESTRAL","JUNIO",IF(J23="ANUAL",YEAR(TODAY()),"")))) -> JUNIO | E42: =IF(J23="MENSUAL","FEBRERO",IF(J23="TRIMESTRAL","JUNIO",IF(J23="SEMESTRAL","DICIEMBRE",""))) -> DICIEMBRE | F42: =IF(J23="MENSUAL","MARZO",IF(J23="TRIMESTRAL","SEPTIEMBRE","")) ->  | G42: =IF(J23="MENSUAL","ABRIL",IF(J23="TRIMESTRAL","DICIEMBRE","")) ->  | H42: =IF(J23="MENSUAL","MAYO","") ->  | I42: =IF(J23="MENSUAL","JUNIO","") ->  | J42: =IF(J23="MENSUAL","JULIO","") ->  | K42: =IF(J23="MENSUAL","AGOSTO","") ->  | L42: =IF(J23="MENSUAL","SEPTIEMBRE","") ->  | M42: =IF(J23="MENSUAL","OCTUBRE","") ->  | N42: =IF(J23="MENSUAL","NOVIEMBRE","") ->  | O42: =IF(J23="MENSUAL","DICIEMBRE","") -> 
C43: =G18 -> No. de riesgos residuales (A - E) residuales operativos institucionales controlados*100 | D43: 5
C44: =G19 -> Total de riesgos Altos y Extremos residuales operativos institucionales | D44: 11
C45: VALOR | D45: =IFERROR(IF($E$17=1,D43/D44,IF($E$17=2,D43,"")),"") -> 0.4545454545
C46: META PONDERADA | D46: =IF(AND(N23="ANUAL",J23="MENSUAL"),N17/12,IF(AND(N23="ANUAL",J23="TRIMESTRAL"),N17/4,IF(AND(N23="ANUAL",J23="SEMESTRAL"),N17/2,IF(AND(N23="ANUAL",J23="ANUAL"),N17,IF(AND(N23="SEMESTRAL",J23="MENSUAL"),N17/6,IF(AND(N23="SEMESTRAL",J23="TRIMESTRAL"),N17/2,IF(AND(N23="SEMESTRAL",J23="SEMESTRAL"),N17,IF(AND(N23="SEMESTRAL",J23="ANUAL"),"REVISAR FRECUENCIAS",IF(AND(N23="TRIMESTRAL",J23="MENSUAL"),N17/3,IF(AND(N23="TRIMESTRAL",J23="TRIMESTRAL"),N17,IF(AND(N23="TRIMESTRAL",J23="SEMESTRAL"),"REVISAR FRECUENCIAS",IF(AND(N23="TRIMESTRAL",J23="ANUAL"),"REVISAR FRECUENCIAS",IF(AND(N23="MENSUAL",J23="MENSUAL"),N17,IF(AND(N23="MENSUAL",J23="TRIMESTRAL"),"REVISAR FRECUENCIAS",IF(AND(N23="MENSUAL",J23="SEMESTRAL"),"REVISAR FRECUENCIAS",IF(AND(N23="MENSUAL",J23="ANUAL"),"REVISAR FRECUENCIAS","")))))))))))))))) -> 0.65 | E46: =IF(AND(N23="ANUAL",J23="MENSUAL"),N17/12+D46,IF(AND(N23="ANUAL",J23="TRIMESTRAL"),N17/4+D46,IF(AND(N23="ANUAL",J23="SEMESTRAL"),N17/2+D46,IF(AND(N23="SEMESTRAL",J23="MENSUAL"),N17/6+D46,IF(AND(N23="SEMESTRAL",J23="TRIMESTRAL"),N17/2+D46,IF(AND(N23="SEMESTRAL",J23="SEMESTRAL"),N17,IF(AND(N23="TRIMESTRAL",J23="MENSUAL"),N17/3+D46,IF(AND(N23="TRIMESTRAL",J23="TRIMESTRAL"),N17,IF(AND(N23="MENSUAL",J23="MENSUAL"),N17,""))))))))) -> 0.65 | F46: =IF(AND(N23="ANUAL",J23="MENSUAL"),N17/12+E46,IF(AND(N23="ANUAL",J23="TRIMESTRAL"),N17/4+E46,IF(AND(N23="SEMESTRAL",J23="MENSUAL"),N17/6+E46,IF(AND(N23="SEMESTRAL",J23="TRIMESTRAL"),N17/2,IF(AND(N23="TRIMESTRAL",J23="MENSUAL"),N17/3+E46,IF(AND(N23="TRIMESTRAL",J23="TRIMESTRAL"),N17,IF(AND(N23="MENSUAL",J23="MENSUAL"),N17,""))))))) ->  | G46: =IF(AND(N23="ANUAL",J23="MENSUAL"),N17/12+F46,IF(AND(N23="ANUAL",J23="TRIMESTRAL"),N17/4+F46,IF(AND(N23="SEMESTRAL",J23="MENSUAL"),N17/6+F46,IF(AND(N23="SEMESTRAL",J23="TRIMESTRAL"),N17/2+F46,IF(AND(N23="TRIMESTRAL",J23="MENSUAL"),N17/3,IF(AND(N23="TRIMESTRAL",J23="TRIMESTRAL"),N17,IF(AND(N23="MENSUAL",J23="MENSUAL"),N17,""))))))) ->  | H46: =IF(AND($N$23="ANUAL",$J$23="MENSUAL"),$N$17/12+G46,IF(AND(N23="SEMESTRAL",J23="MENSUAL"),N17/6+G46,IF(AND(N23="TRIMESTRAL",J23="MENSUAL"),N17/3+G46,IF(AND(N23="MENSUAL",J23="MENSUAL"),N17,"")))) ->  | I46: =IF(AND($N$23="ANUAL",$J$23="MENSUAL"),$N$17/12+H46,IF(AND(N23="SEMESTRAL",J23="MENSUAL"),N17/6+H46,IF(AND(N23="TRIMESTRAL",J23="MENSUAL"),N17/3+H46,IF(AND(N23="MENSUAL",J23="MENSUAL"),N17,"")))) ->  | J46: =IF(AND($N$23="ANUAL",$J$23="MENSUAL"),$N$17/12+I46,IF(AND(N23="SEMESTRAL",J23="MENSUAL"),N17/6,IF(AND(N23="TRIMESTRAL",J23="MENSUAL"),N17/3,IF(AND(N23="MENSUAL",J23="MENSUAL"),N17,"")))) ->  | K46: =IF(AND($N$23="ANUAL",$J$23="MENSUAL"),$N$17/12+J46,IF(AND(N23="SEMESTRAL",J23="MENSUAL"),N17/6+J46,IF(AND(N23="TRIMESTRAL",J23="MENSUAL"),N17/3+J46,IF(AND(N23="MENSUAL",J23="MENSUAL"),N17,"")))) ->  | L46: =IF(AND($N$23="ANUAL",$J$23="MENSUAL"),$N$17/12+K46,IF(AND(N23="SEMESTRAL",J23="MENSUAL"),N17/6+K46,IF(AND(N23="TRIMESTRAL",J23="MENSUAL"),N17/3+K46,IF(AND(N23="MENSUAL",J23="MENSUAL"),N17,"")))) ->  | M46: =IF(AND($N$23="ANUAL",$J$23="MENSUAL"),$N$17/12+L46,IF(AND(N23="SEMESTRAL",J23="MENSUAL"),N17/6+L46,IF(AND(N23="TRIMESTRAL",J23="MENSUAL"),N17/3,IF(AND(N23="MENSUAL",J23="MENSUAL"),N17,"")))) ->  | N46: =IF(AND($N$23="ANUAL",$J$23="MENSUAL"),$N$17/12+M46,IF(AND(N23="SEMESTRAL",J23="MENSUAL"),N17/6+M46,IF(AND(N23="TRIMESTRAL",J23="MENSUAL"),N17/3+M46,IF(AND(N23="MENSUAL",J23="MENSUAL"),N17,"")))) ->  | O46: =IF(AND($N$23="ANUAL",$J$23="MENSUAL"),$N$17/12+N46,IF(AND(N23="SEMESTRAL",J23="MENSUAL"),N17/6+N46,IF(AND(N23="TRIMESTRAL",J23="MENSUAL"),N17/3+N46,IF(AND(N23="MENSUAL",J23="MENSUAL"),N17,"")))) -> 
C48: NIVEL DE SEGREGACIÓN *
C49: UNIDAD SEGREGADA (Ej. Facultad, Programa Académico, Área) | G49: RESULTADO | K49: ANÁLISIS DE DATOS SEGREGADO
G68: Estratégico | J68: Eficacia
G69: Misional | J69: Eficiencia
G70: Apoyo | J70: Acreditación
G71: Seguimiento, Medición, Análisis y Evaluación | J71: Positiva
G72: Direccionamiento Estratégico | J72: Negativa
G73: Planeación Institucional | J73: Por Unidad Regional
G74: Proyectos Especiales y Relaciones Interinstitucionales | J74: Por Facultad
G75: Sistemas Integrados | J75: Por Programa Académico
G76: Autoevaluación y Acreditación | J76: Por área
G77: Comunicaciones | J77: Por Laboratorio
G78: Formación y Aprendizaje | J78: Otros
G79: Ciencia, Tecnología e Innovación | J79: No Aplica
G80: Interacción Social Universitaria
G81: Bienestar Universitario
G82: Admisiones y Registro
G83: Graduados
G84: Dialogando con el Mundo
G85: Talento Humano
G86: Jurídica
G87: Financiera
G88: Sistemas y Tecnología
G89: Bienes y Servicios
G90: Documental
G91: Apoyo Académico
G92: Control Interno
G93: Control Disciplinario
G94: Servicio de Atención al Ciudadano

Sheet MGD-1
B2: REGRESAR
E5: MACROPROCESO ESTRATÉGICO | M5: CÓDIGO: ESGr027
E6: PROCESO GESTIÓN SISTEMAS INTEGRADOS - CALIDAD | M6: VERSIÓN: 8
E7: MATRIZ DE MEDICIÓN Y SEGUIMIENTO A LOS PROCESOS DE GESTIÓN | M7: VIGENCIA: 2023-07-28
M8: PÁGINA: 2 de 5
C10: FICHA DE INDICADOR
C12: MACROPROCESO | E12: Misional | I12: NOMBRE DEL INDICADOR | K12: Satisfacción de Graduados
C13: PROCESO GESTIÓN | E13: Graduados
C14: RESPONSABLE DE MEDICIÓN | E14: Coordinador(a) Oficina de Graduados
C16: 1. COMPORTAMIENTO DE INDICADOR
C17: CLASIFICACIÓN DE LA MEDICIÓN | E17: 1 | H17: TIPO DE INDICADOR | J17: Eficacia | L17: META ANUAL | N17: 0.6
C18: FÓRMULA | E18: NUMERADOR | G18: Número de graduados satisfechos *100 | L18: UNIDAD DE MEDIDA | N18: Porcentaje
E19: DENOMINADOR | G19: Número de graduados que participan en eventos
C20: TENDENCIA | E20: Positiva | H20: NIVEL DE SEGREGACIÓN * | J20: Por Unidad Regional | L20: ESCALA
L21: Deficiente | M21: Aceptable | N21: Bueno | O21: Excelente
L22: 0%-20% | M22: 21%-44% | N22: 45%-59% | O22: 60%-100%
C23: ORIGEN DE DATOS NUMERADOR | E23: Base de datos resultados encuesta de satisfacción | H23: FRECUENCIA DE LA MEDICIÓN | J23: SEMESTRAL | L23: FRECUENCIA DE RESULTADO | N23: ANUAL
C24: ORIGEN DE DATOS DENOMINADOR | E24: Reporte de asistencia actividades
C26: RESULTADOS
J27: ANÁLISIS DE DATOS
J28: PRIMER SEMESTRE: Teniendo en cuenta la medición para lograr la meta del indicador sobre la participación de los Graduados en las diferentes experiencias que se realizaron durante el IPA 2023, se tiene un cumplimiento del 31% a la meta esperada mediante el desarrollo de las experiencias como acompañamiento a las ceremonias de grado, talleres de normatividad y trámite de tarjeta profesional. SEGUNDA SEMESTRE: Teniendo en cuenta la medición para lograr la meta del indicador sobre la participación de los Graduados en las diferentes experiencias que se realizaron durante el IIPA 2023, se tiene un cumplimiento del 52% a la meta esperada mediante el desarrollo de las experiencias como acompañamiento a las ceremonias de grado, talleres de normatividad, V encuentro deportivo y cultural de Graduados, IV congreso de Graduados y trámite de tarjeta profesional.
J34: ACCIÓN FORMULADA
J35: Con el propósito de cumplir con éxito cada una de las experiencias propuestas para el IPA y IIPA-2023 por la Oficina de Graduados, se implementaron estrategias como las plataformas digitales mediadas por las TIC y el apoyo de la presencialidad, donde se midió por medio de una encuesta de satisfacción las experiencias virtuales y presenciales, con el propósito de conocer, mejorar y reforzar los aspectos que se presenten en los periodos futuros.
J41: RESPONSABLE
J42: =E14 -> Coordinador(a) Oficina de Graduados
C45: PERIODO DE EVALUACIÓN
C46: MES | D46: =IF(J23="MENSUAL","ENERO",IF(J23="TRIMESTRAL","MARZO",IF(J23="SEMESTRAL","JUNIO",IF(J23="ANUAL",YEAR(TODAY()),"")))) -> JUNIO | E46: =IF(J23="MENSUAL","FEBRERO",IF(J23="TRIMESTRAL","JUNIO",IF(J23="SEMESTRAL","DICIEMBRE",""))) -> DICIEMBRE | F46: =IF(J23="MENSUAL","MARZO",IF(J23="TRIMESTRAL","SEPTIEMBRE","")) ->  | G46: =IF(J23="MENSUAL","ABRIL",IF(J23="TRIMESTRAL","DICIEMBRE","")) ->  | H46: =IF(J23="MENSUAL","MAYO","") ->  | I46: =IF(J23="MENSUAL","JUNIO","") ->  | J46: =IF(J23="MENSUAL","JULIO","") ->  | K46: =IF(J23="MENSUAL","AGOSTO","") ->  | L46: =IF(J23="MENSUAL","SEPTIEMBRE","") ->  | M46: =IF(J23="MENSUAL","OCTUBRE","") ->  | N46: =IF(J23="MENSUAL","NOVIEMBRE","") ->  | O46: =IF(J23="MENSUAL","DICIEMBRE","") -> 
C47: =G18 -> Número de graduados satisfechos *100 | D47: 1572 | E47: 2580
C48: =G19 -> Número de graduados que participan en eventos | D48: 5000 | E48: 5000
C49: VALOR | D49: =IFERROR(IF($E$17=1,D47/D48,IF($E$17=2,D47,"")),"") -> 0.3144 | E49: =IFERROR(IF($E$17=1,E47/E48,IF($E$17=2,E47,"")),"") -> 0.516 | F49: =IFERROR(IF($E$17=1,F47/F48,IF($E$17=2,F47,"")),"") -> 
C50: META PONDERADA | D50: =IF(AND(N23="ANUAL",J23="MENSUAL"),N17/12,IF(AND(N23="ANUAL",J23="TRIMESTRAL"),N17/4,IF(AND(N23="ANUAL",J23="SEMESTRAL"),N17/2,IF(AND(N23="ANUAL",J23="ANUAL"),N17,IF(AND(N23="SEMESTRAL",J23="MENSUAL"),N17/6,IF(AND(N23="SEMESTRAL",J23="TRIMESTRAL"),N17/2,IF(AND(N23="SEMESTRAL",J23="SEMESTRAL"),N17,IF(AND(N23="SEMESTRAL",J23="ANUAL"),"REVISAR FRECUENCIAS",IF(AND(N23="TRIMESTRAL",J23="MENSUAL"),N17/3,IF(AND(N23="TRIMESTRAL",J23="TRIMESTRAL"),N17,IF(AND(N23="TRIMESTRAL",J23="SEMESTRAL"),"REVISAR FRECUENCIAS",IF(AND(N23="TRIMESTRAL",J23="ANUAL"),"REVISAR FRECUENCIAS",IF(AND(N23="MENSUAL",J23="MENSUAL"),N17,IF(AND(N23="MENSUAL",J23="TRIMESTRAL"),"REVISAR FRECUENCIAS",IF(AND(N23="MENSUAL",J23="SEMESTRAL"),"REVISAR FRECUENCIAS",IF(AND(N23="MENSUAL",J23="ANUAL"),"REVISAR FRECUENCIAS","")))))))))))))))) -> 0.3 | E50: =IF(AND(N23="ANUAL",J23="MENSUAL"),N17/12+D50,IF(AND(N23="ANUAL",J23="TRIMESTRAL"),N17/4+D50,IF(AND(N23="ANUAL",J23="SEMESTRAL"),N17/2+D50,IF(AND(N23="SEMESTRAL",J23="MENSUAL"),N17/6+D50,IF(AND(N23="SEMESTRAL",J23="TRIMESTRAL"),N17/2+D50,IF(AND(N23="SEMESTRAL",J23="SEMESTRAL"),N17,IF(AND(N23="TRIMESTRAL",J23="MENSUAL"),N17/3+D50,IF(AND(N23="TRIMESTRAL",J23="TRIMESTRAL"),N17,IF(AND(N23="MENSUAL",J23="MENSUAL"),N17,""))))))))) -> 0.6 | F50: =IF(AND(N23="ANUAL",J23="MENSUAL"),N17/12+E50,IF(AND(N23="ANUAL",J23="TRIMESTRAL"),N17/4+E50,IF(AND(N23="SEMESTRAL",J23="MENSUAL"),N17/6+E50,IF(AND(N23="SEMESTRAL",J23="TRIMESTRAL"),N17/2,IF(AND(N23="TRIMESTRAL",J23="MENSUAL"),N17/3+E50,IF(AND(N23="TRIMESTRAL",J23="TRIMESTRAL"),N17,IF(AND(N23="MENSUAL",J23="MENSUAL"),N17,""))))))) ->  | G50: =IF(AND(N23="ANUAL",J23="MENSUAL"),N17/12+F50,IF(AND(N23="ANUAL",J23="TRIMESTRAL"),N17/4+F50,IF(AND(N23="SEMESTRAL",J23="MENSUAL"),N17/6+F50,IF(AND(N23="SEMESTRAL",J23="TRIMESTRAL"),N17/2+F50,IF(AND(N23="TRIMESTRAL",J23="MENSUAL"),N17/3,IF(AND(N23="TRIMESTRAL",J23="TRIMESTRAL"),N17,IF(AND(N23="MENSUAL",J23="MENSUAL"),N17,""))))))) ->  | H50: =IF(AND($N$23="ANUAL",$J$23="MENSUAL"),$N$17/12+G50,IF(AND(N23="SEMESTRAL",J23="MENSUAL"),N17/6+G50,IF(AND(N23="TRIMESTRAL",J23="MENSUAL"),N17/3+G50,IF(AND(N23="MENSUAL",J23="MENSUAL"),N17,"")))) ->  | I50: =IF(AND($N$23="ANUAL",$J$23="MENSUAL"),$N$17/12+H50,IF(AND(N23="SEMESTRAL",J23="MENSUAL"),N17/6+H50,IF(AND(N23="TRIMESTRAL",J23="MENSUAL"),N17/3+H50,IF(AND(N23="MENSUAL",J23="MENSUAL"),N17,"")))) ->  | J50: =IF(AND($N$23="ANUAL",$J$23="MENSUAL"),$N$17/12+I50,IF(AND(N23="SEMESTRAL",J23="MENSUAL"),N17/6,IF(AND(N23="TRIMESTRAL",J23="MENSUAL"),N17/3,IF(AND(N23="MENSUAL",J23="MENSUAL"),N17,"")))) ->  | K50: =IF(AND($N$23="ANUAL",$J$23="MENSUAL"),$N$17/12+J50,IF(AND(N23="SEMESTRAL",J23="MENSUAL"),N17/6+J50,IF(AND(N23="TRIMESTRAL",J23="MENSUAL"),N17/3+J50,IF(AND(N23="MENSUAL",J23="MENSUAL"),N17,"")))) ->  | L50: =IF(AND($N$23="ANUAL",$J$23="MENSUAL"),$N$17/12+K50,IF(AND(N23="SEMESTRAL",J23="MENSUAL"),N17/6+K50,IF(AND(N23="TRIMESTRAL",J23="MENSUAL"),N17/3+K50,IF(AND(N23="MENSUAL",J23="MENSUAL"),N17,"")))) ->  | M50: =IF(AND($N$23="ANUAL",$J$23="MENSUAL"),$N$17/12+L50,IF(AND(N23="SEMESTRAL",J23="MENSUAL"),N17/6+L50,IF(AND(N23="TRIMESTRAL",J23="MENSUAL"),N17/3,IF(AND(N23="MENSUAL",J23="MENSUAL"),N17,"")))) ->  | N50: =IF(AND($N$23="ANUAL",$J$23="MENSUAL"),$N$17/12+M50,IF(AND(N23="SEMESTRAL",J23="MENSUAL"),N17/6+M50,IF(AND(N23="TRIMESTRAL",J23="MENSUAL"),N17/3+M50,IF(AND(N23="MENSUAL",J23="MENSUAL"),N17,"")))) ->  | O50: =IF(AND($N$23="ANUAL",$J$23="MENSUAL"),$N$17/12+N50,IF(AND(N23="SEMESTRAL",J23="MENSUAL"),N17/6+N50,IF(AND(N23="TRIMESTRAL",J23="MENSUAL"),N17/3+N50,IF(AND(N23="MENSUAL",J23="MENSUAL"),N17,"")))) -> 
C52: NIVEL DE SEGREGACIÓN SEMESTRE I
C53: UNIDAD SEGREGADA (Ej. Facultad, Programa Académico, Área) | G53: RESULTADO | K53: ANÁLISIS DE DATOS SEGREGADO
C54: EXTENSIÓN CHÍA | G54: 0.0092
C55: EXTENSIÓN FACATATIVÁ | G55: 0.1015
C56: SEDE FUSAGASUGÁ | G56: 0.2558
C57: SECCIONAL GIRARDOT | G57: 0.0162
C58: EXTENSIÓN SOACHA | G58: 0.0301
C59: SECCIONAL UBATÉ | G59: 0.008
C60: EXTENSIÓN ZIPAQUIRÁ | G60: 0.001
C61: TOTAL | G61: =SUM(G54:G60) -> 0.4218
C63: NIVEL DE SEGREGACIÓN SEMESTRE II
C64: UNIDAD SEGREGADA (Ej. Facultad, Programa Académico, Área) | G64: RESULTADO | K64: ANÁLISIS DE DATOS SEGREGADO
C65: EXTENSIÓN CHÍA | G65: 0.002
C66: EXTENSIÓN FACATATIVÁ | G66: 0.096
C67: SEDE FUSAGASUGÁ | G67: 0.2476
C68: SECCIONAL GIRARDOT | G68: 0.1002
C69: EXTENSIÓN SOACHA | G69: 0.0019
C70: SECCIONAL UBATÉ | G70: 0.0715
C71: EXTENSIÓN ZIPAQUIRÁ | G71: 0.0008
C72: TOTAL | G72: =SUM(G65:G71) -> 0.52
G74: Apoyo | J74: Acreditación
G75: Seguimiento, Medición, Análisis y Evaluación | J75: Positiva
G76: Direccionamiento Estratégico | J76: Negativa
G77: Planeación Institucional | J77: Por Unidad Regional
G78: Proyectos Especiales y Relaciones Interinstitucionales | J78: Por Facultad
G79: Sistemas Integrados | J79: Por Programa Académico
G80: Autoevaluación y Acreditación | J80: Por área
G81: Comunicaciones | J81: Por Laboratorio
G82: Formación y Aprendizaje | J82: Otros
G83: Ciencia, Tecnología e Innovación | J83: No Aplica
G84: Interacción Social Universitaria
G85: Bienestar Universitario
G86: Admisiones y Registro
G87: Graduados
G88: Dialogando con el Mundo
G89: Talento Humano
G90: Jurídica
G91: Financiera
G92: Sistemas y Tecnología
G93: Bienes y Servicios
G94: Documental
G95: Apoyo Académico
G96: Control Interno
G97: Control Disciplinario
G98: Servicio de Atención al Ciudadano

Sheet MGD-2
B2: REGRESAR
E5: MACROPROCESO ESTRATÉGICO | M5: CÓDIGO: ESGr027
E6: PROCESO GESTIÓN SISTEMAS INTEGRADOS - CALIDAD | M6: VERSIÓN: 8
E7: MATRIZ DE MEDICIÓN Y SEGUIMIENTO A LOS PROCESOS DE GESTIÓN | M7: VIGENCIA: 2023-07-28
M8: PÁGINA: 3 de 5
C10: FICHA DE INDICADOR
C12: MACROPROCESO | E12: Misional | I12: NOMBRE DEL INDICADOR | K12: Participación de los Graduados en los eventos institucionales
C13: PROCESO GESTIÓN | E13: Graduados
C14: RESPONSABLE DE MEDICIÓN | E14: Coordinador(a) Oficina de Graduados
C16: 1. COMPORTAMIENTO DE INDICADOR
C17: CLASIFICACIÓN DE LA MEDICIÓN | E17: 1 | H17: TIPO DE INDICADOR | J17: Eficacia | L17: META ANUAL | N17: 0.6
C18: FÓRMULA | E18: NUMERADOR | G18: Número de graduados vinculados a la dinámica institucional *100 | L18: UNIDAD DE MEDIDA | N18: Porcentaje
E19: DENOMINADOR | G19: Número de graduados esperados para la vigencia 2023 (5.000)
C20: TENDENCIA | E20: Positiva | H20: NIVEL DE SEGREGACIÓN * | J20: Por Unidad Regional | L20: ESCALA
L21: Deficiente | M21: Aceptable | N21: Bueno | O21: Excelente
L22: 0%-20% | M22: 21%-44% | N22: 45%-59% | O22: 60%-100%
C23: ORIGEN DE DATOS NUMERADOR | E23: Reporte de asistencia actividades | H23: FRECUENCIA DE LA MEDICIÓN | J23: SEMESTRAL | L23: FRECUENCIA DE RESULTADO | N23: ANUAL
C24: ORIGEN DE DATOS DENOMINADOR | E24: Informe de gestión graduados 2018 a 2023
C26: RESULTADOS
J27: ANÁLISIS DE DATOS
J28: PRIMER SEMESTRE: Teniendo en cuenta la medición para lograr la meta del indicador sobre la participación de los Graduados en las diferentes experiencias que se realizaron durante el IPA 2023, se tiene un cumplimiento del 31% a la meta esperada mediante el desarrollo de las experiencias como acompañamiento a las ceremonias de grado, talleres de normatividad y trámite de tarjeta profesional. SEGUNDA SEMESTRE: Teniendo en cuenta la medición para lograr la meta del indicador sobre la participación de los Graduados en las diferentes experiencias que se realizaron durante el IIPA 2023, se tiene un cumplimiento del 52% a la meta esperada mediante el desarrollo de las experiencias como acompañamiento a las ceremonias de grado, talleres de normatividad, V encuentro deportivo y cultural de Graduados, IV congreso de Graduados y trámite de tarjeta profesional.
J34: ACCIÓN FORMULADA
J35: Se fortalecieron los procesos de divulgación utilizando plataformas digitales, redes sociales, correos electrónicos institucionales, divulgaciones de la información voz a voz, en la página de Ucundinamarca, Teams y presencialmente, con el propósito de cumplir la meta establecida de cada una de las experiencias propuestas para el IIPA 2023, en sede, seccionales y extensiones, con la apertura de la institución se decidió retomar los procesos presenciales sin dejar de lado la virtualidad para el beneficio del graduado
J41: RESPONSABLE
J42: =E14 -> Coordinador(a) Oficina de Graduados
C45: PERIODO DE EVALUACIÓN
C46: MES | D46: =IF(J23="MENSUAL","ENERO",IF(J23="TRIMESTRAL","MARZO",IF(J23="SEMESTRAL","JUNIO",IF(J23="ANUAL",YEAR(TODAY()),"")))) -> JUNIO | E46: =IF(J23="MENSUAL","FEBRERO",IF(J23="TRIMESTRAL","JUNIO",IF(J23="SEMESTRAL","DICIEMBRE",""))) -> DICIEMBRE | F46: =IF(J23="MENSUAL","MARZO",IF(J23="TRIMESTRAL","SEPTIEMBRE","")) ->  | G46: =IF(J23="MENSUAL","ABRIL",IF(J23="TRIMESTRAL","DICIEMBRE","")) ->  | H46: =IF(J23="MENSUAL","MAYO","") ->  | I46: =IF(J23="MENSUAL","JUNIO","") ->  | J46: =IF(J23="MENSUAL","JULIO","") ->  | K46: =IF(J23="MENSUAL","AGOSTO","") ->  | L46: =IF(J23="MENSUAL","SEPTIEMBRE","") ->  | M46: =IF(J23="MENSUAL","OCTUBRE","") ->  | N46: =IF(J23="MENSUAL","NOVIEMBRE","") ->  | O46: =IF(J23="MENSUAL","DICIEMBRE","") -> 
C47: =G18 -> Número de graduados vinculados a la dinámica institucional *100 | D47: 1572 | E47: 2580
C48: =G19 -> Número de graduados esperados para la vigencia 2023 (5.000) | D48: 5000 | E48: 5000
C49: VALOR | D49: =IFERROR(IF($E$17=1,D47/D48,IF($E$17=2,D47,"")),"") -> 0.3144 | E49: =IFERROR(IF($E$17=1,E47/E48,IF($E$17=2,E47,"")),"") -> 0.516 | F49: =IFERROR(IF($E$17=1,F47/F48,IF($E$17=2,F47,"")),"") -> 
C50: META PONDERADA | D50: =IF(AND(N23="ANUAL",J23="MENSUAL"),N17/12,IF(AND(N23="ANUAL",J23="TRIMESTRAL"),N17/4,IF(AND(N23="ANUAL",J23="SEMESTRAL"),N17/2,IF(AND(N23="ANUAL",J23="ANUAL"),N17,IF(AND(N23="SEMESTRAL",J23="MENSUAL"),N17/6,IF(AND(N23="SEMESTRAL",J23="TRIMESTRAL"),N17/2,IF(AND(N23="SEMESTRAL",J23="SEMESTRAL"),N17,IF(AND(N23="SEMESTRAL",J23="ANUAL"),"REVISAR FRECUENCIAS",IF(AND(N23="TRIMESTRAL",J23="MENSUAL"),N17/3,IF(AND(N23="TRIMESTRAL",J23="TRIMESTRAL"),N17,IF(AND(N23="TRIMESTRAL",J23="SEMESTRAL"),"REVISAR FRECUENCIAS",IF(AND(N23="TRIMESTRAL",J23="ANUAL"),"REVISAR FRECUENCIAS",IF(AND(N23="MENSUAL",J23="MENSUAL"),N17,IF(AND(N23="MENSUAL",J23="TRIMESTRAL"),"REVISAR FRECUENCIAS",IF(AND(N23="MENSUAL",J23="SEMESTRAL"),"REVISAR FRECUENCIAS",IF(AND(N23="MENSUAL",J23="ANUAL"),"REVISAR FRECUENCIAS","")))))))))))))))) -> 0.3 | E50: =IF(AND(N23="ANUAL",J23="MENSUAL"),N17/12+D50,IF(AND(N23="ANUAL",J23="TRIMESTRAL"),N17/4+D50,IF(AND(N23="ANUAL",J23="SEMESTRAL"),N17/2+D50,IF(AND(N23="SEMESTRAL",J23="MENSUAL"),N17/6+D50,IF(AND(N23="SEMESTRAL",J23="TRIMESTRAL"),N17/2+D50,IF(AND(N23="SEMESTRAL",J23="SEMESTRAL"),N17,IF(AND(N23="TRIMESTRAL",J23="MENSUAL"),N17/3+D50,IF(AND(N23="TRIMESTRAL",J23="TRIMESTRAL"),N17,IF(AND(N23="MENSUAL",J23="MENSUAL"),N17,""))))))))) -> 0.6 | F50: =IF(AND(N23="ANUAL",J23="MENSUAL"),N17/12+E50,IF(AND(N23="ANUAL",J23="TRIMESTRAL"),N17/4+E50,IF(AND(N23="SEMESTRAL",J23="MENSUAL"),N17/6+E50,IF(AND(N23="SEMESTRAL",J23="TRIMESTRAL"),N17/2,IF(AND(N23="TRIMESTRAL",J23="MENSUAL"),N17/3+E50,IF(AND(N23="TRIMESTRAL",J23="TRIMESTRAL"),N17,IF(AND(N23="MENSUAL",J23="MENSUAL"),N17,""))))))) ->  | G50: =IF(AND(N23="ANUAL",J23="MENSUAL"),N17/12+F50,IF(AND(N23="ANUAL",J23="TRIMESTRAL"),N17/4+F50,IF(AND(N23="SEMESTRAL",J23="MENSUAL"),N17/6+F50,IF(AND(N23="SEMESTRAL",J23="TRIMESTRAL"),N17/2+F50,IF(AND(N23="TRIMESTRAL",J23="MENSUAL"),N17/3,IF(AND(N23="TRIMESTRAL",J23="TRIMESTRAL"),N17,IF(AND(N23="MENSUAL",J23="MENSUAL"),N17,""))))))) ->  | H50: =IF(AND($N$23="ANUAL",$J$23="MENSUAL"),$N$17/12+G50,IF(AND(N23="SEMESTRAL",J23="MENSUAL"),N17/6+G50,IF(AND(N23="TRIMESTRAL",J23="MENSUAL"),N17/3+G50,IF(AND(N23="MENSUAL",J23="MENSUAL"),N17,"")))) ->  | I50: =IF(AND($N$23="ANUAL",$J$23="MENSUAL"),$N$17/12+H50,IF(AND(N23="SEMESTRAL",J23="MENSUAL"),N17/6+H50,IF(AND(N23="TRIMESTRAL",J23="MENSUAL"),N17/3+H50,IF(AND(N23="MENSUAL",J23="MENSUAL"),N17,"")))) ->  | J50: =IF(AND($N$23="ANUAL",$J$23="MENSUAL"),$N$17/12+I50,IF(AND(N23="SEMESTRAL",J23="MENSUAL"),N17/6,IF(AND(N23="TRIMESTRAL",J23="MENSUAL"),N17/3,IF(AND(N23="MENSUAL",J23="MENSUAL"),N17,"")))) ->  | K50: =IF(AND($N$23="ANUAL",$J$23="MENSUAL"),$N$17/12+J50,IF(AND(N23="SEMESTRAL",J23="MENSUAL"),N17/6+J50,IF(AND(N23="TRIMESTRAL",J23="MENSUAL"),N17/3+J50,IF(AND(N23="MENSUAL",J23="MENSUAL"),N17,"")))) ->  | L50: =IF(AND($N$23="ANUAL",$J$23="MENSUAL"),$N$17/12+K50,IF(AND(N23="SEMESTRAL",J23="MENSUAL"),N17/6+K50,IF(AND(N23="TRIMESTRAL",J23="MENSUAL"),N17/3+K50,IF(AND(N23="MENSUAL",J23="MENSUAL"),N17,"")))) ->  | M50: =IF(AND($N$23="ANUAL",$J$23="MENSUAL"),$N$17/12+L50,IF(AND(N23="SEMESTRAL",J23="MENSUAL"),N17/6+L50,IF(AND(N23="TRIMESTRAL",J23="MENSUAL"),N17/3,IF(AND(N23="MENSUAL",J23="MENSUAL"),N17,"")))) ->  | N50: =IF(AND($N$23="ANUAL",$J$23="MENSUAL"),$N$17/12+M50,IF(AND(N23="SEMESTRAL",J23="MENSUAL"),N17/6+M50,IF(AND(N23="TRIMESTRAL",J23="MENSUAL"),N17/3+M50,IF(AND(N23="MENSUAL",J23="MENSUAL"),N17,"")))) ->  | O50: =IF(AND($N$23="ANUAL",$J$23="MENSUAL"),$N$17/12+N50,IF(AND(N23="SEMESTRAL",J23="MENSUAL"),N17/6+N50,IF(AND(N23="TRIMESTRAL",J23="MENSUAL"),N17/3+N50,IF(AND(N23="MENSUAL",J23="MENSUAL"),N17,"")))) -> 
C52: NIVEL DE SEGREGACIÓN SEMESTRE I
C53: UNIDAD SEGREGADA (Ej. Facultad, Programa Académico, Área) | G53: RESULTADO | K53: ANÁLISIS DE DATOS SEGREGADO
C54: EXTENSIÓN CHÍA | G54: 0.0312
C55: EXTENSIÓN FACATATIVÁ | G55: 0.0533
C56: SEDE FUSAGASUGÁ | G56: 0.1607
C57: SECCIONAL GIRARDOT | G57: 0.033
C58: EXTENSIÓN SOACHA | G58: 0.0113
C59: SECCIONAL UBATÉ | G59: 0.0219
C60: EXTENSIÓN ZIPAQUIRÁ | G60: 0.003
C61: TOTAL | G61: =SUM(G54:G60) -> 0.3144
C63: NIVEL DE SEGREGACIÓN SEMESTRE II
C64: UNIDAD SEGREGADA (Ej. Facultad, Programa Académico, Área) | G64: RESULTADO | K64: ANÁLISIS DE DATOS SEGREGADO
C65: EXTENSIÓN CHÍA | G65: 0.002
C66: EXTENSIÓN FACATATIVÁ | G66: 0.096
C67: SEDE FUSAGASUGÁ | G67: 0.2476
C68: SECCIONAL GIRARDOT | G68: 0.1002
C69: EXTENSIÓN SOACHA | G69: 0.0019
C70: SECCIONAL UBATÉ | G70: 0.0715
C71: EXTENSIÓN ZIPAQUIRÁ | G71: 0.0008
C72: TOTAL | G72: =SUM(G65:G71) -> 0.52
G73: Misional | J73: Eficiencia
G74: Apoyo | J74: Acreditación
G75: Seguimiento, Medición, Análisis y Evaluación | J75: Positiva
G76: Direccionamiento Estratégico | J76: Negativa
G77: Planeación Institucional | J77: Por Unidad Regional
G78: Proyectos Especiales y Relaciones Interinstitucionales | J78: Por Facultad
G79: Sistemas Integrados | J79: Por Programa Académico
G80: Autoevaluación y Acreditación | J80: Por área
G81: Comunicaciones | J81: Por Laboratorio
G82: Formación y Aprendizaje | J82: Otros
G83: Ciencia, Tecnología e Innovación | J83: No Aplica
G84: Interacción Social Universitaria
G85: Bienestar Universitario
G86: Admisiones y Registro
G87: Graduados
G88: Dialogando con el Mundo
G89: Talento Humano
G90: Jurídica
G91: Financiera
G92: Sistemas y Tecnología
G93: Bienes y Servicios
G94: Documental
G95: Apoyo Académico
G96: Control Interno
G97: Control Disciplinario
G98: Servicio de Atención al Ciudadano

Sheet MGD-3 (hidden)
B2: REGRESAR
E5: MACROPROCESO ESTRATÉGICO | M5: CÓDIGO: ESGr027
E6: PROCESO GESTIÓN SISTEMAS INTEGRADOS | M6: VERSIÓN: 7
E7: MATRIZ DE MEDICIÓN Y SEGUIMIENTO A LOS PROCESOS DE GESTIÓN | M7: VIGENCIA: 2020-03-31
M8: PÁGINA: 1 de 1
C10: FICHA DE INDICADOR
C12: MACROPROCESO | E12: Misional | I12: NOMBRE DEL INDICADOR | K12: Tasa de graduación efectiva
C13: PROCESO GESTIÓN | E13: Graduados
C14: RESPONSABLE DE MEDICIÓN | E14: Coordinador(a) Oficina de Graduados
C16: 1. COMPORTAMIENTO DE INDICADOR
C17: CLASIFICACIÓN DE LA MEDICIÓN | E17: 1 | H17: TIPO DE INDICADOR | J17: Eficacia | L17: META ANUAL | N17: 0.9
C18: FORMULA | E18: NUMERADOR | G18: Número de graduados oportunos (Plan de estudios + 1 semestre) * 100 | L18: UNIDAD DE MEDIDA | N18: Porcentaje
E19: DENOMINADOR | G19: Total de estudiantes inscritos de cada programa académico de la vigencia actual a medir
C20: TENDENCIA | E20: Positiva | H20: NIVEL DE SEGREGACIÓN * | J20: Por Programa Académico | L20: ESCALA
L21: Deficiente | M21: Aceptable | N21: Bueno | O21: Excelente
L22: 0 - 60% | M22: 61% - 80% | N22: 81% - 90% | O22: 91% - 100%
C23: ORIGEN DE DATOS NUMERADOR | E23: Reporteador aplicativo academusoft | H23: FRECUENCIA DE LA MEDICIÓN | J23: SEMESTRAL | L23: FRECUENCIA DE RESULTADO | N23: SEMESTRAL
C24: ORIGEN DE DATOS DENOMINADOR | E24: Reporteador aplicativo academusoft
C26: RESULTADOS
J27: ANÁLISIS DE DATOS
J28: PRIMER SEMESTRE: En las ceremonias de grado efectuadas en el IPA2021 para los diferentes programas y títulos recibidos, se cumple a cabalidad con el proceso establecido, desde la revisión de carpeta, paz y salvo académico y financiero, el reporte tanto del acta como de Diploma al título generado para cada estudiante que aplica a su proceso; dando cumplimiento a la entrega de los mismos, por medio de ceremonia presencial en cada una de las sedes teniendo en cuenta las medidas y protocolos pertinentes y a tener en cuenta, para con la Pandemia Mundial Covid-19. SEGUNDO SEMESTRE: Se logra evidenciar el compromiso adquirido tanto por las partes interesadas - Estudiantes a graduarse, como por la Comunidad Universitaria - Administrativa, quienes manejan los procesos adecuados para dar cumplimiento a la tramitología del proceso a Grado; así mismo; se refleja lo anteriormente citado en el % adquirido al cumplimiento al proceso y en un 47%, finiquitado, para aquellos estudiantes que culminan su proceso de Aprendizaje en el tiempo determinado, incluido un semestre de más a su Plan de Estudios.
J34: ACCIÓN FORMULADA
J35: PRIMER SEMESTRE: Para culminar con éxito su proceso de formación y recibir su título académico, el estudiante debe cumplir a cabalidad con todos los requisitos exigidos; dentro el cargue de documentos exigidos para revisión posterior, estar a Paz y Salvo por todo concepto, tanto Académico como Financiero con la institución y legalizar mediante el pago de sus derechos a grado, para que el proceso termine con rotundo éxito.
J41: RESPONSABLE
J42: =E14 -> Coordinador(a) Oficina de Graduados
C45: PERIODO DE EVALUACIÓN
C46: MES | D46: =IF(J23="MENSUAL","ENERO",IF(J23="TRIMESTRAL","MARZO",IF(J23="SEMESTRAL","JUNIO",IF(J23="ANUAL",YEAR(TODAY()),"")))) -> JUNIO | E46: =IF(J23="MENSUAL","FEBRERO",IF(J23="TRIMESTRAL","JUNIO",IF(J23="SEMESTRAL","DICIEMBRE",""))) -> DICIEMBRE | F46: =IF(J23="MENSUAL","MARZO",IF(J23="TRIMESTRAL","SEPTIEMBRE","")) ->  | G46: =IF(J23="MENSUAL","ABRIL",IF(J23="TRIMESTRAL","DICIEMBRE","")) ->  | H46: =IF(J23="MENSUAL","MAYO","") ->  | I46: =IF(J23="MENSUAL","JUNIO","") ->  | J46: =IF(J23="MENSUAL","JULIO","") ->  | K46: =IF(J23="MENSUAL","AGOSTO","") ->  | L46: =IF(J23="MENSUAL","SEPTIEMBRE","") ->  | M46: =IF(J23="MENSUAL","OCTUBRE","") ->  | N46: =IF(J23="MENSUAL","NOVIEMBRE","") ->  | O46: =IF(J23="MENSUAL","DICIEMBRE","") -> 
C47: =G18 -> Número de graduados oportunos (Plan de estudios + 1 semestre) * 100
C48: =G19 -> Total de estudiantes inscritos de cada programa académico de la vigencia actual a medir
C49: VALOR | D49: =IFERROR(IF($E$17=1,D47/D48,IF($E$17=2,D47,"")),"") ->  | E49: =IFERROR(IF($E$17=1,E47/E48,IF($E$17=2,E47,"")),"") -> 
C50: META PONDERADA | D50: =IF(AND(N23="ANUAL",J23="MENSUAL"),N17/12,IF(AND(N23="ANUAL",J23="TRIMESTRAL"),N17/4,IF(AND(N23="ANUAL",J23="SEMESTRAL"),N17/2,IF(AND(N23="ANUAL",J23="ANUAL"),N17,IF(AND(N23="SEMESTRAL",J23="MENSUAL"),N17/6,IF(AND(N23="SEMESTRAL",J23="TRIMESTRAL"),N17/2,IF(AND(N23="SEMESTRAL",J23="SEMESTRAL"),N17,IF(AND(N23="SEMESTRAL",J23="ANUAL"),"REVISAR FRECUENCIAS",IF(AND(N23="TRIMESTRAL",J23="MENSUAL"),N17/3,IF(AND(N23="TRIMESTRAL",J23="TRIMESTRAL"),N17,IF(AND(N23="TRIMESTRAL",J23="SEMESTRAL"),"REVISAR FRECUENCIAS",IF(AND(N23="TRIMESTRAL",J23="ANUAL"),"REVISAR FRECUENCIAS",IF(AND(N23="MENSUAL",J23="MENSUAL"),N17,IF(AND(N23="MENSUAL",J23="TRIMESTRAL"),"REVISAR FRECUENCIAS",IF(AND(N23="MENSUAL",J23="SEMESTRAL"),"REVISAR FRECUENCIAS",IF(AND(N23="MENSUAL",J23="ANUAL"),"REVISAR FRECUENCIAS","")))))))))))))))) -> 0.9 | E50: =IF(AND(N23="ANUAL",J23="MENSUAL"),N17/12+D50,IF(AND(N23="ANUAL",J23="TRIMESTRAL"),N17/4+D50,IF(AND(N23="ANUAL",J23="SEMESTRAL"),N17/2+D50,IF(AND(N23="SEMESTRAL",J23="MENSUAL"),N17/6+D50,IF(AND(N23="SEMESTRAL",J23="TRIMESTRAL"),N17/2+D50,IF(AND(N23="SEMESTRAL",J23="SEMESTRAL"),N17,IF(AND(N23="TRIMESTRAL",J23="MENSUAL"),N17/3+D50,IF(AND(N23="TRIMESTRAL",J23="TRIMESTRAL"),N17,IF(AND(N23="MENSUAL",J23="MENSUAL"),N17,""))))))))) -> 0.9 | F50: =IF(AND(N23="ANUAL",J23="MENSUAL"),N17/12+E50,IF(AND(N23="ANUAL",J23="TRIMESTRAL"),N17/4+E50,IF(AND(N23="SEMESTRAL",J23="MENSUAL"),N17/6+E50,IF(AND(N23="SEMESTRAL",J23="TRIMESTRAL"),N17/2,IF(AND(N23="TRIMESTRAL",J23="MENSUAL"),N17/3+E50,IF(AND(N23="TRIMESTRAL",J23="TRIMESTRAL"),N17,IF(AND(N23="MENSUAL",J23="MENSUAL"),N17,""))))))) ->  | G50: =IF(AND(N23="ANUAL",J23="MENSUAL"),N17/12+F50,IF(AND(N23="ANUAL",J23="TRIMESTRAL"),N17/4+F50,IF(AND(N23="SEMESTRAL",J23="MENSUAL"),N17/6+F50,IF(AND(N23="SEMESTRAL",J23="TRIMESTRAL"),N17/2+F50,IF(AND(N23="TRIMESTRAL",J23="MENSUAL"),N17/3,IF(AND(N23="TRIMESTRAL",J23="TRIMESTRAL"),N17,IF(AND(N23="MENSUAL",J23="MENSUAL"),N17,""))))))) ->  | H50: =IF(AND($N$23="ANUAL",$J$23="MENSUAL"),$N$17/12+G50,IF(AND(N23="SEMESTRAL",J23="MENSUAL"),N17/6+G50,IF(AND(N23="TRIMESTRAL",J23="MENSUAL"),N17/3+G50,IF(AND(N23="MENSUAL",J23="MENSUAL"),N17,"")))) ->  | I50: =IF(AND($N$23="ANUAL",$J$23="MENSUAL"),$N$17/12+H50,IF(AND(N23="SEMESTRAL",J23="MENSUAL"),N17/6+H50,IF(AND(N23="TRIMESTRAL",J23="MENSUAL"),N17/3+H50,IF(AND(N23="MENSUAL",J23="MENSUAL"),N17,"")))) ->  | J50: =IF(AND($N$23="ANUAL",$J$23="MENSUAL"),$N$17/12+I50,IF(AND(N23="SEMESTRAL",J23="MENSUAL"),N17/6,IF(AND(N23="TRIMESTRAL",J23="MENSUAL"),N17/3,IF(AND(N23="MENSUAL",J23="MENSUAL"),N17,"")))) ->  | K50: =IF(AND($N$23="ANUAL",$J$23="MENSUAL"),$N$17/12+J50,IF(AND(N23="SEMESTRAL",J23="MENSUAL"),N17/6+J50,IF(AND(N23="TRIMESTRAL",J23="MENSUAL"),N17/3+J50,IF(AND(N23="MENSUAL",J23="MENSUAL"),N17,"")))) ->  | L50: =IF(AND($N$23="ANUAL",$J$23="MENSUAL"),$N$17/12+K50,IF(AND(N23="SEMESTRAL",J23="MENSUAL"),N17/6+K50,IF(AND(N23="TRIMESTRAL",J23="MENSUAL"),N17/3+K50,IF(AND(N23="MENSUAL",J23="MENSUAL"),N17,"")))) ->  | M50: =IF(AND($N$23="ANUAL",$J$23="MENSUAL"),$N$17/12+L50,IF(AND(N23="SEMESTRAL",J23="MENSUAL"),N17/6+L50,IF(AND(N23="TRIMESTRAL",J23="MENSUAL"),N17/3,IF(AND(N23="MENSUAL",J23="MENSUAL"),N17,"")))) ->  | N50: =IF(AND($N$23="ANUAL",$J$23="MENSUAL"),$N$17/12+M50,IF(AND(N23="SEMESTRAL",J23="MENSUAL"),N17/6+M50,IF(AND(N23="TRIMESTRAL",J23="MENSUAL"),N17/3+M50,IF(AND(N23="MENSUAL",J23="MENSUAL"),N17,"")))) ->  | O50: =IF(AND($N$23="ANUAL",$J$23="MENSUAL"),$N$17/12+N50,IF(AND(N23="SEMESTRAL",J23="MENSUAL"),N17/6+N50,IF(AND(N23="TRIMESTRAL",J23="MENSUAL"),N17/3+N50,IF(AND(N23="MENSUAL",J23="MENSUAL"),N17,"")))) -> 
C52: NIVEL DE SEGREGACIÓN *
C53: UNIDAD SEGREGADA (Ej. Facultad, Programa Académico, Área) | G53: RESULTADO | K53: ANÁLISIS DE DATOS SEGREGADO | Q53: GRADUADOS VIGENCIA 2021-1 | S53: GRADUADOS OPORTUNAMENTE
C54: UNIDAD REGIONAL, EXTENSIÓN CHÍA | Q54: 0 | S54: 0
C55: ADMINISTRACIÓN DE EMPRESAS 2007 | G55: 0.5 | Q55: 92 | S55: 46 | T55: =S55/Q55 -> 0.5
C56: CONTADURÍA PÚBLICA 2008 - 2 | G56: 1 | Q56: 13 | S56: 13 | T56: =S56/Q56 -> 1
C57: INGENIERÍA DE SISTEMAS 2007 | G57: 0.7142857143 | Q57: 14 | S57: 10 | T57: 0.7142857143
C58: INGENIERÍA DE SISTEMAS 2013 | G58: 0.7142857143 | Q58: 14 | S58: 10 | T58: 0.7142857143
C59: MAESTRÍA EN EDUCACIÓN | G59: 1 | Q59: 8 | S59: 8 | T59: 1
C60: UNIDAD REGIONAL, EXTENSIÓN FACATATIVÁ | T60: 0
C61: ADMINISTRACIÓN DE EMPRESAS 2007 | G61: 0.537037037 | Q61: 54 | S61: 29 | T61: 0.537037037
C62: CONTADURÍA PÚBLICA 2008 - 2 | G62: 0.6458333333 | Q62: 48 | S62: 31 | T62: 0.6458333333
C63: ESPECIALIZACIÓN EN EDUCACIÓN AMBIENTAL Y DESARROLLO DE LA COMUNIDAD | G63: 0 | Q63: 11 | S63: 0 | T63: 0
C64: INGENIERÍA AGRONÓMICA 2007 | G64: 0 | Q64: 1 | S64: 0 | T64: 0
C65: INGENIERÍA AGRONÓMICA 2013 | G65: 0.4583333333 | Q65: 24 | S65: 11 | T65: 0.4583333333
C66: INGENIERÍA AMBIENTAL 20082 | G66: 0.1525423729 | Q66: 59 | S66: 9 | T66: 0.1525423729
C67: INGENIERÍA DE SISTEMAS 2013 | G67: 0.5555555556 | Q67: 18 | S67: 10 | T67: 0.5555555556
C68: PSICOLOGÍA 2011 | G68: 0.54 | Q68: 50 | S68: 27 | T68: 0.54
C69: UNIDAD REGIONAL, EXTENSIÓN SOACHA | T69: 0
C70: CIENCIAS DEL DEPORTE Y LA EDUCACIÓN FÍSICA - 2007 | G70: 0.5789473684 | Q70: 38 | S70: 22 | T70: 0.5789473684
C71: ESP. EN PROCESOS PEDAGÓGICOS DEL ENTRENAMIENTO DEPORTIVO | G71: 0.75 | Q71: 16 | S71: 12 | T71: 0.75
C72: INGENIERÍA INDUSTRIAL | G72: 0.2 | Q72: 45 | S72: 9 | T72: 0.2
C73: TECNOLOGÍA EN DESARROLLO DE SOFTWARE 2011 | G73: 0.2 | Q73: 5 | S73: 1 | T73: 0.2
C74: UNIDAD REGIONAL, EXTENSIÓN ZIPAQUIRÁ | T74: 0
C75: MÚSICA 2010 1 | G75: 0.3333333333 | Q75: 18 | S75: 6 | T75: 0.3333333333
C76: UNIDAD REGIONAL, SECCIONAL GIRARDOT | T76: 0
C77: ADMINISTRACIÓN DE EMPRESAS 2007 | G77: 0.6326530612 | Q77: 49 | S77: 31 | T77: 0.6326530612
C78: ENFERMERÍA 2009 | G78: 0.4102564103 | Q78: 39 | S78: 16 | T78: 0.4102564103
C79: ESPECIALIZACIÓN EN GERENCIA PARA EL DESARROLLO ORGANIZACIONAL | G79: 0.6666666667 | Q79: 3 | S79: 2 | T79: 0.6666666667
C80: ESPECIALIZACIÓN EN EDUCACIÓN AMBIENTAL Y DESARROLLO DE LA COMUNIDAD | G80: 0.1 | Q80: 10 | S80: 1 | T80: 0.1
C81: INGENIERÍA AMBIENTAL 20082 | G81: 0.2692307692 | Q81: 78 | S81: 21 | T81: 0.2692307692
C82: LIC.EN EDUC. BASICA/ENF/HUMAN/LENG/CAST/ING 2007 | G82: 0.5882352941 | Q82: 17 | S82: 10 | T82: 0.5882352941
C83: TECNOLOGÍA EN GESTIÓN TURISTICA Y HOTELERA 2008-2 | G83: 0.9166666667 | Q83: 12 | S83: 11 | T83: 0.9166666667
C84: UNIDAD REGIONAL, SECCIONAL UBATÉ | T84: 0
C85: ADMINISTRACIÓN AGROPECUARIA 2007 | G85: 0 | Q85: 1 | S85: 0 | T85: 0
C86: ADMINISTRACIÓN DE EMPRESAS 2007 | G86: 0.5 | Q86: 18 | S86: 9 | T86: 0.5
C87: CONTADURÍA PÚBLICA 2008 - 2 | G87: 0.6904761905 | Q87: 42 | S87: 29 | T87: 0.6904761905
C88: INGENIERÍA DE SISTEMAS 2013 | G88: 0 | Q88: 2 | S88: 0 | T88: 0
C89: ZOOTECNIA 2007 | G89: 0.1111111111 | Q89: 9 | S89: 1 | T89: 0.1111111111
C90: UNIDAD REGIONAL, SEDE FUSAGASUGÁ | T90: 0
C91: ADMINISTRACIÓN DE EMPRESAS 2007 | G91: 0.5581395349 | Q91: 43 | S91: 24 | T91: 0.5581395349
C92: CONTADURÍA PÚBLICA 2008 - 2 | G92: 0.7368421053 | Q92: 38 | S92: 28 | T92: 0.7368421053
C93: ESP. GERENCIA PARA EL DESARROLLO ORGANIZACIONAL | G93: 0.25 | Q93: 4 | S93: 1 | T93: 0.25
C94: ESPECIALIZACION EN GERENCIA PARA EL DESARROLLO ORGANIZACIONAL | G94: 0 | Q94: 2 | S94: 0 | T94: 0
C95: ESPECIALIZACIÓN EN EDUCACIÓN AMBIENTAL Y DESARROLLO DE LA COMUNIDAD | G95: 0.5 | Q95: 6 | S95: 3 | T95: 0.5
C96: ESPECIALIZACIÓN EN GESTIÓN DE SISTEMAS DE INFORMACIÓN GERENCIAL | G96: 0.15 | Q96: 40 | S96: 6 | T96: 0.15
C97: ESPECIALIZACIÓN EN NEGOCIOS Y COMERCIO ELECTRÓNICO | G97: 0.1818181818 | Q97: 11 | S97: 2 | T97: 0.1818181818
C98: INGENIERÍA AGRONÓMICA 2007 | G98: 0 | Q98: 2 | S98: 0 | T98: 0
C99: INGENIERÍA AGRONÓMICA 2013 | G99: 0.1176470588 | Q99: 34 | S99: 4 | T99: 0.1176470588
C100: INGENIERÍA DE SISTEMAS 2013 | G100: 0.4 | Q100: 30 | S100: 12 | T100: 0.4
C101: INGENIERÍA ELECTRÓNICA 2007 | G101: 0.3181818182 | Q101: 22 | S101: 7 | T101: 0.3181818182
C102: LIC. EN EDUC. BAS. CON ENF. EN EDUCACIÓN FÍSICA, RECREACIÓN Y DEPORTE | G102: 0.7045454545 | Q102: 44 | S102: 31 | T102: 0.7045454545
C103: LIC. EN EDUCACIÓN BÁSICA CON ÉNFASIS EN CIENCIAS SOCIALES 2012 | G103: 0.625 | Q103: 24 | S103: 15 | T103: 0.625
C104: LICENCIATURA EN EDUCACIÓN BÁSICA CON ÉNFASIS EN CIENCIAS SOCIALES 2007 | G104: 0 | Q104: 2 | S104: 0 | T104: 0
C105: LICENCIATURA EN MATEMÁTICAS 2007 | G105: 0.6 | Q105: 5 | S105: 3 | T105: 0.6
C106: MAESTRÍA EN CIENCIAS AMBIENTALES | G106: 0.9285714286 | Q106: 14 | S106: 13 | T106: 0.9285714286
C107: MAESTRÍA EN EDUCACIÓN | G107: 1 | Q107: 12 | S107: 12 | T107: 1
C108: TECNOLOGÍA EN CARTOGRAFÍA | G108: 0.6666666667 | Q108: 3 | S108: 2 | T108: 0.6666666667
C109: ZOOTECNIA 2007 | G109: 0.2571428571 | Q109: 35 | S109: 9 | T109: 0.2571428571
C110: Total general | G110: 0.4724342663 | Q110: 1179 | S110: 557 | T110: 0.4724342663
G123: Estratégico | J123: Eficacia
G124: Misional | J124: Eficiencia
G125: Apoyo | J125: Acreditación
G126: Seguimiento, Medición, Análisis y Evaluación | J126: Positiva
G127: Direccionamiento Estratégico | J127: Negativa
G128: Planeación Institucional | J128: Por Unidad Regional
G129: Proyectos Especiales y Relaciones Interinstitucionales | J129: Por Facultad
G130: Sistemas Integrados | J130: Por Programa Académico
G131: Autoevaluación y Acreditación | J131: Por área
G132: Comunicaciones | J132: Por Laboratorio
G133: Formación y Aprendizaje | J133: Otros
G134: Ciencia, Tecnología e Innovación | J134: No Aplica
G135: Interacción Social Universitaria
G136: Bienestar Universitario
G137: Admisiones y Registro
G138: Graduados
G139: Dialogando con el Mundo
G140: Talento Humano
G141: Jurídica
G142: Financiera
G143: Sistemas y Tecnología
G144: Bienes y Servicios
G145: Documental
G146: Apoyo Académico
G147: Control Interno
G148: Control Disciplinario
G149: Servicio de Atención al Ciudadano

Sheet MGD-4
B2: REGRESAR
E5: MACROPROCESO ESTRATÉGICO | M5: CÓDIGO: ESGr027
E6: PROCESO GESTIÓN SISTEMAS INTEGRADOS - CALIDAD | M6: VERSIÓN: 8
E7: MATRIZ DE MEDICIÓN Y SEGUIMIENTO A LOS PROCESOS DE GESTIÓN | M7: VIGENCIA: 2023-07-28
M8: PÁGINA: 4 de 5
C10: FICHA DE INDICADOR
C12: MACROPROCESO | E12: Misional | I12: NOMBRE DEL INDICADOR | K12: Eficacia en la certificación de cursos
C13: PROCESO GESTIÓN | E13: Graduados
C14: RESPONSABLE DE MEDICIÓN | E14: Coordinador(a) Oficina de Graduados
C16: 1. COMPORTAMIENTO DE INDICADOR
C17: CLASIFICACIÓN DE LA MEDICIÓN | E17: 1 | H17: TIPO DE INDICADOR | J17: Eficacia | L17: META ANUAL | N17: 0.2
C18: FÓRMULA | E18: NUMERADOR | G18: Número de certificados *100 | L18: UNIDAD DE MEDIDA | N18: Porcentaje
E19: DENOMINADOR | G19: Número de inscritos
C20: TENDENCIA | E20: Positiva | H20: NIVEL DE SEGREGACIÓN * | J20: Otros | L20: ESCALA
L21: Deficiente | M21: Aceptable | N21: Bueno | O21: Excelente
L22: 0%-9% | M22: 10%-14% | N22: 15%-19% | O22: 20%-100%
C23: ORIGEN DE DATOS NUMERADOR | E23: Reporte de asistencia actividades | H23: FRECUENCIA DE LA MEDICIÓN | J23: SEMESTRAL | L23: FRECUENCIA DE RESULTADO | N23: SEMESTRAL
C24: ORIGEN DE DATOS DENOMINADOR | E24: Informe de gestión graduados 2018 a 2023
C26: RESULTADOS
J27: ANÁLISIS DE DATOS
J28: PRIMER SEMESTRE: Teniendo en cuenta la meta propuesta en el indicador del IPA 2023, se realizaron cursos auto gestionables de educación continuada contando con un total de 333 graduados inscritos, con un total de 17 graduados certificados para un porcentaje del 5,11% del total de participantes. El cual demuestra que no se cumplió con la meta fijada en el primer semestre del año 2023. SEGNDO SEMESTRE: Teniendo en cuenta la meta propuesta en el indicador del IIPA-2023, se realizaron cursos auto gestionables de educación continuada contando con un total de 11 graduados inscritos, con un total de 03 graduados certificados para un porcentaje del 27% del total de participantes. Es así, que la Universidad de Cundinamarca comprometida con la formación para la vida de sus graduados abrió espacios para la participación de nuestros profesionales en el Programa de Formación y Desarrollo gratuito en los cursos en modalidad virtual, certificables, cada uno con duración de 48 horas. Durante del segundo periodo académico se ofertaron u total de19 cursos, sin embargo, en esta implementación fue baja, con relación a las anteriores. Como acción de mejora para las implementaciones, se planea divulgar la apertura, con un rango de tiempo que permita llegar a más profesionales, adicionalmente manejar las fechas de inscripción y seguimiento de manera independiente.
J34: ACCIÓN FORMULADA
J35: Con el propósito de cumplir con éxito la meta propuesta se tendrá en cuenta en este indicador una serie de cursos de educación continuada gratuitos que beneficie al graduado y su interés en culminarlos en el IIPA 2023 gestionados por la Oficina de Graduados teniendo en cuenta la mejora y reforzar los procesos hacia futuro.
J41: RESPONSABLE
J42: =E14 -> Coordinador(a) Oficina de Graduados
C45: PERIODO DE EVALUACIÓN
C46: MES | D46: =IF(J23="MENSUAL","ENERO",IF(J23="TRIMESTRAL","MARZO",IF(J23="SEMESTRAL","JUNIO",IF(J23="ANUAL",YEAR(TODAY()),"")))) -> JUNIO | E46: =IF(J23="MENSUAL","FEBRERO",IF(J23="TRIMESTRAL","JUNIO",IF(J23="SEMESTRAL","DICIEMBRE",""))) -> DICIEMBRE | F46: =IF(J23="MENSUAL","MARZO",IF(J23="TRIMESTRAL","SEPTIEMBRE","")) ->  | G46: =IF(J23="MENSUAL","ABRIL",IF(J23="TRIMESTRAL","DICIEMBRE","")) ->  | H46: =IF(J23="MENSUAL","MAYO","") ->  | I46: =IF(J23="MENSUAL","JUNIO","") ->  | J46: =IF(J23="MENSUAL","JULIO","") ->  | K46: =IF(J23="MENSUAL","AGOSTO","") ->  | L46: =IF(J23="MENSUAL","SEPTIEMBRE","") ->  | M46: =IF(J23="MENSUAL","OCTUBRE","") ->  | N46: =IF(J23="MENSUAL","NOVIEMBRE","") ->  | O46: =IF(J23="MENSUAL","DICIEMBRE","") -> 
C47: =G18 -> Número de certificados *100 | D47: 17 | E47: 3
C48: =G19 -> Número de inscritos | D48: 333 | E48: 11
C49: VALOR | D49: =IFERROR(IF($E$17=1,D47/D48,IF($E$17=2,D47,"")),"") -> 0.05105105105 | E49: =IFERROR(IF($E$17=1,E47/E48,IF($E$17=2,E47,"")),"") -> 0.2727272727 | F49: =IFERROR(IF($E$17=1,F47/F48,IF($E$17=2,F47,"")),"") -> 
C50: META PONDERADA | D50: =IF(AND(N23="ANUAL",J23="MENSUAL"),N17/12,IF(AND(N23="ANUAL",J23="TRIMESTRAL"),N17/4,IF(AND(N23="ANUAL",J23="SEMESTRAL"),N17/2,IF(AND(N23="ANUAL",J23="ANUAL"),N17,IF(AND(N23="SEMESTRAL",J23="MENSUAL"),N17/6,IF(AND(N23="SEMESTRAL",J23="TRIMESTRAL"),N17/2,IF(AND(N23="SEMESTRAL",J23="SEMESTRAL"),N17,IF(AND(N23="SEMESTRAL",J23="ANUAL"),"REVISAR FRECUENCIAS",IF(AND(N23="TRIMESTRAL",J23="MENSUAL"),N17/3,IF(AND(N23="TRIMESTRAL",J23="TRIMESTRAL"),N17,IF(AND(N23="TRIMESTRAL",J23="SEMESTRAL"),"REVISAR FRECUENCIAS",IF(AND(N23="TRIMESTRAL",J23="ANUAL"),"REVISAR FRECUENCIAS",IF(AND(N23="MENSUAL",J23="MENSUAL"),N17,IF(AND(N23="MENSUAL",J23="TRIMESTRAL"),"REVISAR FRECUENCIAS",IF(AND(N23="MENSUAL",J23="SEMESTRAL"),"REVISAR FRECUENCIAS",IF(AND(N23="MENSUAL",J23="ANUAL"),"REVISAR FRECUENCIAS","")))))))))))))))) -> 0.2 | E50: =IF(AND(N23="ANUAL",J23="MENSUAL"),N17/12+D50,IF(AND(N23="ANUAL",J23="TRIMESTRAL"),N17/4+D50,IF(AND(N23="ANUAL",J23="SEMESTRAL"),N17/2+D50,IF(AND(N23="SEMESTRAL",J23="MENSUAL"),N17/6+D50,IF(AND(N23="SEMESTRAL",J23="TRIMESTRAL"),N17/2+D50,IF(AND(N23="SEMESTRAL",J23="SEMESTRAL"),N17,IF(AND(N23="TRIMESTRAL",J23="MENSUAL"),N17/3+D50,IF(AND(N23="TRIMESTRAL",J23="TRIMESTRAL"),N17,IF(AND(N23="MENSUAL",J23="MENSUAL"),N17,""))))))))) -> 0.2 | F50: =IF(AND(N23="ANUAL",J23="MENSUAL"),N17/12+E50,IF(AND(N23="ANUAL",J23="TRIMESTRAL"),N17/4+E50,IF(AND(N23="SEMESTRAL",J23="MENSUAL"),N17/6+E50,IF(AND(N23="SEMESTRAL",J23="TRIMESTRAL"),N17/2,IF(AND(N23="TRIMESTRAL",J23="MENSUAL"),N17/3+E50,IF(AND(N23="TRIMESTRAL",J23="TRIMESTRAL"),N17,IF(AND(N23="MENSUAL",J23="MENSUAL"),N17,""))))))) ->  | G50: =IF(AND(N23="ANUAL",J23="MENSUAL"),N17/12+F50,IF(AND(N23="ANUAL",J23="TRIMESTRAL"),N17/4+F50,IF(AND(N23="SEMESTRAL",J23="MENSUAL"),N17/6+F50,IF(AND(N23="SEMESTRAL",J23="TRIMESTRAL"),N17/2+F50,IF(AND(N23="TRIMESTRAL",J23="MENSUAL"),N17/3,IF(AND(N23="TRIMESTRAL",J23="TRIMESTRAL"),N17,IF(AND(N23="MENSUAL",J23="MENSUAL"),N17,""))))))) ->  | H50: =IF(AND($N$23="ANUAL",$J$23="MENSUAL"),$N$17/12+G50,IF(AND(N23="SEMESTRAL",J23="MENSUAL"),N17/6+G50,IF(AND(N23="TRIMESTRAL",J23="MENSUAL"),N17/3+G50,IF(AND(N23="MENSUAL",J23="MENSUAL"),N17,"")))) ->  | I50: =IF(AND($N$23="ANUAL",$J$23="MENSUAL"),$N$17/12+H50,IF(AND(N23="SEMESTRAL",J23="MENSUAL"),N17/6+H50,IF(AND(N23="TRIMESTRAL",J23="MENSUAL"),N17/3+H50,IF(AND(N23="MENSUAL",J23="MENSUAL"),N17,"")))) ->  | J50: =IF(AND($N$23="ANUAL",$J$23="MENSUAL"),$N$17/12+I50,IF(AND(N23="SEMESTRAL",J23="MENSUAL"),N17/6,IF(AND(N23="TRIMESTRAL",J23="MENSUAL"),N17/3,IF(AND(N23="MENSUAL",J23="MENSUAL"),N17,"")))) ->  | K50: =IF(AND($N$23="ANUAL",$J$23="MENSUAL"),$N$17/12+J50,IF(AND(N23="SEMESTRAL",J23="MENSUAL"),N17/6+J50,IF(AND(N23="TRIMESTRAL",J23="MENSUAL"),N17/3+J50,IF(AND(N23="MENSUAL",J23="MENSUAL"),N17,"")))) ->  | L50: =IF(AND($N$23="ANUAL",$J$23="MENSUAL"),$N$17/12+K50,IF(AND(N23="SEMESTRAL",J23="MENSUAL"),N17/6+K50,IF(AND(N23="TRIMESTRAL",J23="MENSUAL"),N17/3+K50,IF(AND(N23="MENSUAL",J23="MENSUAL"),N17,"")))) ->  | M50: =IF(AND($N$23="ANUAL",$J$23="MENSUAL"),$N$17/12+L50,IF(AND(N23="SEMESTRAL",J23="MENSUAL"),N17/6+L50,IF(AND(N23="TRIMESTRAL",J23="MENSUAL"),N17/3,IF(AND(N23="MENSUAL",J23="MENSUAL"),N17,"")))) ->  | N50: =IF(AND($N$23="ANUAL",$J$23="MENSUAL"),$N$17/12+M50,IF(AND(N23="SEMESTRAL",J23="MENSUAL"),N17/6+M50,IF(AND(N23="TRIMESTRAL",J23="MENSUAL"),N17/3+M50,IF(AND(N23="MENSUAL",J23="MENSUAL"),N17,"")))) ->  | O50: =IF(AND($N$23="ANUAL",$J$23="MENSUAL"),$N$17/12+N50,IF(AND(N23="SEMESTRAL",J23="MENSUAL"),N17/6+N50,IF(AND(N23="TRIMESTRAL",J23="MENSUAL"),N17/3+N50,IF(AND(N23="MENSUAL",J23="MENSUAL"),N17,"")))) -> 
C52: NIVEL DE SEGREGACIÓN SEMESTRE I
C53: UNIDAD SEGREGADA (Ej. Facultad, Programa Académico, Área) | G53: RESULTADO | K53: ANÁLISIS DE DATOS SEGREGADO
C54: EXTENSIÓN CHÍA | G54: 0.0147
C55: EXTENSIÓN FACATATIVÁ | G55: 0
C56: SEDE FUSAGASUGÁ | G56: 0.0214
C57: SECCIONAL GIRARDOT | G57: 0.0124
C58: EXTENSIÓN SOACHA | G58: 0.0013
C59: SECCIONAL UBATÉ | G59: 0.0013
C60: EXTENSIÓN ZIPAQUIRÁ | G60: 0
C61: TOTAL | G61: =SUM(G54:G60) -> 0.0511
C63: NIVEL DE SEGREGACIÓN SEMESTRE II
C64: UNIDAD SEGREGADA (Ej. Facultad, Programa Académico, Área) | G64: RESULTADO | K64: ANÁLISIS DE DATOS SEGREGADO
C65: EXTENSIÓN CHÍA | G65: 0
C66: EXTENSIÓN FACATATIVÁ | G66: 0.0833
C67: SEDE FUSAGASUGÁ | G67: 0.1867
C68: SECCIONAL GIRARDOT | G68: 0
C69: EXTENSIÓN SOACHA | G69: 0
C70: SECCIONAL UBATÉ | G70: 0
C71: EXTENSIÓN ZIPAQUIRÁ | G71: 0
C72: TOTAL | G72: =SUM(G65:G71) -> 0.27
G73: Misional | J73: Eficiencia
G74: Apoyo | J74: Acreditación
G75: Seguimiento, Medición, Análisis y Evaluación | J75: Positiva
G76: Direccionamiento Estratégico | J76: Negativa
G77: Planeación Institucional | J77: Por Unidad Regional
G78: Proyectos Especiales y Relaciones Interinstitucionales | J78: Por Facultad
G79: Sistemas Integrados | J79: Por Programa Académico
G80: Autoevaluación y Acreditación | J80: Por área
G81: Comunicaciones | J81: Por Laboratorio
G82: Formación y Aprendizaje | J82: Otros
G83: Ciencia, Tecnología e Innovación | J83: No Aplica
G84: Interacción Social Universitaria
G85: Bienestar Universitario
G86: Admisiones y Registro
G87: Graduados
G88: Dialogando con el Mundo
G89: Talento Humano
G90: Jurídica
G91: Financiera
G92: Sistemas y Tecnología
G93: Bienes y Servicios
G94: Documental
G95: Apoyo Académico
G96: Control Interno
G97: Control Disciplinario
G98: Servicio de Atención al Ciudadano

Sheet ACTUALIZACIONES
C2: MACROPROCESO ESTRATÉGICO | E2: CÓDIGO: ESGr027
C3: PROCESO GESTIÓN SISTEMAS INTEGRADOS - CALIDAD | E3: VERSIÓN: 8
C4: MATRIZ DE MEDICIÓN Y SEGUIMIENTO A LOS PROCESOS DE GESTIÓN | E4: VIGENCIA: 2023-07-28
E5: PÁGINA: 5 de 5
B7: CONTROL DE ACTUALIZACIONES
B8: FECHA | C8: DESCRIPCIÓN DE LA ACTUALIZACIÓN | D8: RESPONSABLE | E8: CARGO
B9: 2021-06-19 | C9: MGD: Se crearon 2 Indicadores para el proceso Gestión graduados, con medición semestral y resultado anual. 1.Satisfacción de Graduados. 2. Participación de los Graduados en los eventos institucionales. | D9: María Eulalia Buenahora Ochoa | E9: Vicerrectoría Académica
B10: 00/09/2022 | C10: El indicador MGD-3 Tasa de graduación efectiva pasa a ser medido por el proceso de Admisiones y Registro, toda vez que son ellos quienes cuentas con la data necesaria para ser medido. | D10: Víctor Hugo Londoño Aguirre | E10: Vicerrector Académico
B11: 2023-03-13 | C11: Se modifica la escala de los indicadores MGD-1 & MGD-2 y quedan de la siguiente manera: Deficiente:0% - 20% Aceptable: 21% - 50% Bueno: 51% - 55% Excelente: 56% - 100% Cambia el denominador del indicador MGD-2 y queda de la siguiente manera "Número de graduados esperados para la vigencia 2023 (5.000)" teniendo en cuenta el cambio de la vigencia | D11: Víctor Hugo Londoño Aguirre | E11: Vicerrector Académico
B12: 2023-04-25 | C12: Se crea el indicador MGD-4 Eficacia en la certificación de cursos, el cual será medición semestral y resultado semestral. Adicional la meta de los indicadores MGD-1 & MGD-2 incrementan la meta en un 5%, pasando de 55% a 60% respectivamente. Se modifica la escala de los indicadores MGD-1 & MGD-2 y quedan de la siguiente manera: - Deficiente:0% - 20% - Aceptable: 21% - 44% - Bueno: 45% - 59% - Excelente: 60% - 100% | D12: Víctor Hugo Londoño Aguirre | E12: Vicerrector Académico
B26: Diagonal 18 No. 20-29 Fusagasugá – Cundinamarca Teléfono (601) 8281483 Línea Gratuita 018000180414 www.ucundinamarca.edu.co E-mail: info@ucundinamarca.edu.co NIT: 890.680.062-2
B29: Documento controlado por el Sistema de Gestión de la Calidad Asegúrese que corresponde a la última versión consultando el Portal Institucional

Sheet ITEM (hidden)
A1: MENSUAL | C1: NÚMERO
A2: TRIMESTRAL | C2: PORCENTAJE
A3: SEMESTRAL
A4: ANUAL
